Workbook

Sheet Settings (hidden)
B5: Lists
B7: Sectors | C7: Roads
C8: Ports
C9: Airports
C10: SWM
C11: Sports
E12: Roads | F12: Ports | G12: Airports | H12: SWM | I12: Sports
B13: Covenants | C13: =CHOOSE('User Manual'!$J$20,Settings!E13:E15,Settings!F13:F15,Settings!G13:G15,Settings!H13:H15,Settings!I13:I15) -> Change in Law | E13: Change in Law | F13: Change in Law | G13: Change in Law | H13: Change in Law | I13: Change in Law
C14: Termination Payment | E14: Termination Payment | F14: Termination Payment | G14: Termination Payment | H14: Termination Payment | I14: Termination Payment
C15: Variation in Traffic | E15: Variation in Traffic
E16: Roads | F16: Ports | G16: Airports | H16: SWM | I16: Sports
B17: Models | C17: =CHOOSE('User Manual'!$J$20,Settings!E17:E20,Settings!F17:F18,Settings!G17:G18,Settings!H17:H18,Settings!I17) -> BOT | E17: BOT | F17: DBFOT | G17: DBFOT | H17: DBFOT | I17: DBFOT
C18: HAM | E18: HAM | G18: OMDA
C19: TOT | E19: TOT
C20: DBFOT | E20: DBFOT
B25: Constants
B27: Months in Year | C27: 12 | D27: rngMthsYr
B28: Financial Year End month number | C28: 3 | D28: rngYrEnd
B29: Financial Year End month last day number | C29: 31 | D29: rngYrEndDay
B30: Days in a month | C30: 30 | D30: rngMthDays
B31: Semis in a year | C31: 2

Sheet Disclaimer
A1: Disclaimer
A2: This excel-sheet model (“Model”) forms part of the public private partnership (“PPP”) structuring toolkit and has been prepared by the Department of Economic Affairs (“DEA”), Ministry of Finance, Government of India. The Model aims inter alia to assist persons accessing it (the “Recipient(s)”) in appraising, evaluating, verifying, selecting viable models/ options of [insert the sector of project] projects on PPP basis, and for related matters thereof (“Purpose”) (2). The term DEA hereafter refers to DEA, its officials, advisors, consultants, employees, agents and representatives unless expressly mentioned herein otherwise. “You” and “Recipient(s)” have been used interchangeably and refers to the Recipients (including their officials, advisors, consultants, employees, agents and representatives) who access and/or use the Model for their own purposes or on behalf of any other Recipients. By clicking “I Accept”, You, the Recipient are accessing the Model with below mentioned express consent, undertaking, confirmations and understanding (as the case may be): (i) that in preparing the Model, DEA has considered parameters, assumptions, data, information, formulae, revenue and other forecasts (3), rates and results in its possession and which in its view may be relevant or essential to assist the Recipient in achieving its Purpose. However, the above factors considered by DEA may not be exhaustive and/or adequate for the Purpose. The Model is for reference purposes only and shall be merely considered by the Recipients as a guiding tool for its Purpose; (ii) that all project assumptions, data, revenue forecasts, information, and results contained in the Model, whether mentioned expressly or are implied, are provided by the DEA in good faith and are based on the information collected from various sources and consultants and advisors of DEA, the accuracy and correctness of which has not been independently investigated and verified by the DEA. Further, the fact that the information or any resources forming part of the Model is placed on the public record, should not be taken to indicate that DEA has verified or validated the same in all respects; (iii) that no independent audit of the Model has been undertaken by any independent agency/ auditor. DEA reserves the right to make modifications and alterations in the material contained in the Model at its own discretion without any prior intimation to the subscribers or users of such modifications or alterations. (iv) that DEA does not take any responsibility for any errors and omission on its part in preparation of the Model. It does not warrant the accuracy, adequacy, or completeness of the Model and the information and materials used in preparing / contained in the Model. DEA expressly disclaims any liability of any nature whatsoever in relation to the above (including as a result of any loss caused to or liability to the Recipient due to the use of the Model by the Recipient). DEA does not make any warranties towards non-infringement of third-party rights in respect of preparation of the Model. Any reliance placed by the Recipient on such information is therefore strictly at the Recipients’ own risk; (v) that the preparation and sharing of the Model by DEA is not and shall not in any manner be considered any recommendation, opinion or direction by DEA for consideration or use of the Model by the Recipient. The Recipient undertakes to use and apply its own independent discretion in considering, use or adoption of the Model and the contents therein and for arriving at any decision in respect of its Purpose. Recipient undertakes to independently investigate and verify the accuracy, adequacy, completeness and relevance of the Model and the contents therein. By accessing, retaining and using the Model, the Recipient represents to DEA that it is capable of making its own independent assessment as to the validity of the information, assumptions, data, results and other parameters and factors contained in the Model and the economic, financial, regulatory, legal, taxation and accounting implications of those assumptions; (vi) the Recipient acknowledges the risk pertaining to access and use of the Model (and its contents) and understands and accepts that DEA shall not be liable and responsible to the Recipient for any direct or indirect loss, damage, cost, and expense of any kind whatsoever arising as a result of the Recipient’s consideration or use of the Model or for any opinion, suggestion, recommendations, representation or information, express or implied, contained therein, notwithstanding any negligence, default or lack of care by DEA or that such loss, damage, cost and/or expense was foreseeable. The Recipient undertakes that is shall not hold DEA responsible for, nor shall it make any claims on or against the DEA in relation to the above. The Recipient undertakes to use the Model and the contents therein at its sole discretion, risks, costs and consequences; and (vii) Recipient shall indemnify and hold DEA harmless against all actions, proceedings, and claims brought or threatened against DEA (including from third parties) and all loss, damage, cost and/or expense (including legal expenses) relating thereto, in any way arising out of or in connection with Recipient’s receipt and/or use of the Model or information derived from the Model. Notes: (1) Based on our discussions over our last call, we understand that the Model can be accessed by any person by creating a login and accepting the disclaimers in the PPP toolkit. Accordingly, we understand that the information so provided is not confidential in nature (given the same is going to be in the public domain). Accordingly, the disclaimer does not mention that the contents of the Model are private, privileged or confidential. Please let us know if the understanding is otherwise. (2)ADB to confirm if there are any other factors/ items that shall constitute ‘Purpose’. (3)ADB to confirm if there are any other parameters or factors to be incorporated here.

Sheet User Manual (hidden)
A1: User Manual
A2: Settings
A4: Enable Macros - Open the Tool and locate the Security Warning icon just below the toolbar on the top left of the screen (or) Click Options button. Select the Enable this content radio button in the Microsoft Office Security Options popup window that appears. Click the OK button in the bottom left of the Microsoft Office Security Options popup window in order to enable macros
A7: Objective
A9: To find the selected covenant for the selected model based on provided inputs
A11: Step 1
A13: Choose the sector, covenant and the model. Then click the 'Submit' button.
D14: Sector | J14: Covenants | P14: Mode
J20: 1 | K20: 2 | L20: 1 | M20: =J20&K20&L20 -> 121
A24: Step 2
A26: Once the selected model is opened,
A27: Click the reset button to remove any previous data - havent added as of now, do we need it?
A28: Update the inputs in the input cells
A29: Choose the decision option among the provided alternatives (click on the option button to choose)
A30: Click the info button to remove any previous data
A32: Step 3
A34: The results will appear in the result cells
A35: The applicable norms will appear in the sheet
A36: Verify the results
A38: Models Abbreviations
A40: OMDA | B40: Operation maintenance development agreement
A41: BOT | B41: Build operate transfer
A42: DBFOT | B42: Design build finance, operate transfer
A43: HAM | B43: Hybrid annuity model
A44: DBFOO | B44: Design build finance own operate
A45: TOT | B45: Toll operate transfer

Sheet 204 (hidden)

Sheet 123 (hidden)
A4: Termination Payment | B4: DBFOT

Sheet Road_CIL_BOT_Dashboard (hidden)
A1: Dashboard
A2: Key Inputs | L2: Key Outputs
C6: Change in CP/ One Time Payment
C11: Reference of your selection | G11: 2
B18: Project Particulars
B20: Construction Period (months) | H20: 30
B21: Appointed Date | H21: 2000-01-01
B22: Change in Law (months) from Appointed Date | H22: 20 | M22: Result
B23: Reduction in Revenue | H23: 0.3
B24: Total Cashflow - No change period | H24: =HYPERLINK("#'" & RIGHT(CELL("FILENAME",F64:F94), LEN(CELL("FILENAME",F64:F94)) - SEARCH("]", CELL("FILENAME",F64:F94))) & "'!" &CELL("address",F64:F94), "Click here to update figures") -> Click here to update figures | M24: Change in law year | S24: =EDATE(S36, H22) -> 2001-09-01
B25: Concession Period Considered (yrs) | H25: 30 | M25: You have selected | S25: =IF($G$11=1,"Change in CP", "One Time Payment") -> One Time Payment
B26: Total Project Cost | H26: 300 | M26: Change in Revenue | S26: =H27*H30 -> 0
B27: Initial Revenue (in INR Crs) | H27: 20 | M27: Is Change in CP/ Compensation valid ? | S27: =IF(S60>=0,IF(S60>MAX(H32,S26),"YES","NO"),IF(-SS60>MAX(H32,S26),"YES","NO")) -> YES
B28: Discount Factor | H28: 0.08 | M28: Change in Concession Period | S28: =Road_CIL_BOT_Workings!G11 -> 0
B29: Total Cashflow - Last Period | H29: =HYPERLINK("#'" & RIGHT(CELL("FILENAME",R64:R94), LEN(CELL("FILENAME",R64:R94)) - SEARCH("]", CELL("FILENAME",R64:R94))) & "'!" &CELL("address",R64:R94), "Click here to update figures") -> Click here to update figures | M29: Revised Concession Period | S29: =Road_CIL_BOT_Workings!G14 -> 30
B30: Limit for % change in realisable fees | M30: =IF(S25="One Time Payment","Payment to be made by either party","") -> Payment to be made by either party | S30: =Road_CIL_BOT_Workings!G17 -> 99.36979285
B31: Capex infusion post concession period | M31: Change in NPV post concession period | S31: =S60-S61-H31 -> 0.7177251795
B32: Limit for change in realisable fees
B33: Applicable Norms | H33: =HYPERLINK("#'" & RIGHT(CELL("FILENAME", Road_CIL_BOT_Workings!$C$70), LEN(CELL("FILENAME", Road_CIL_BOT_Workings!$C$70)) - SEARCH("]", CELL("FILENAME",Road_CIL_BOT_Workings!$C$70))) & "'!" & MID(CELL("address", Road_CIL_BOT_Workings!$C$70), SEARCH("!", CELL("address", Road_CIL_BOT_Workings!$C$70)) + 1, LEN(CELL("address",Road_CIL_BOT_Workings!$C$70)) - SEARCH("!", CELL("address", Road_CIL_BOT_Workings!$C$70))), "Click here to update figures") -> Click here to update figures
M34: Key Dates
M36: Appointed Date | S36: =H21 -> 2000-01-01
M37: Date of Construction Completion | S37: =EDATE(H21,H20)-1 -> 2002-06-30
M38: Commercial Operations Date (COD) | S38: =S37+1 -> 2002-07-01
B39: Project Timeline | M39: Termination Date | S39: =EDATE(H21,H25*rngMthsYr)-1 -> 2029-12-31
M40: First Financial Year Ending | S40: =DATE(IF(MONTH(S36) > rngYrEnd, YEAR(S36) + 1, YEAR(S36)), rngYrEnd, rngYrEndDay) -> 2000-03-31
M41: No. of months in first Financial Year | S41: =ROUND((S40 - S36) / rngMthDays, 0) -> 3
M42: Construction Ending Financial Year | S42: =DATE(IF(MONTH(S37) > rngYrEnd, YEAR(S37) + 1, YEAR(S37)), rngYrEnd, rngYrEndDay) -> 2003-03-31
M43: Construction Ending Financial Year No. | S43: =YEAR(S42) - YEAR(S40) + 1 -> 4
M44: No. of operational months in Cons Ending FY | S44: =ROUND((S42-S37)/rngMthDays,0) -> 9
M45: Last Financial Year Ending | S45: =DATE(IF(MONTH(S39) > rngYrEnd, YEAR(S39) + 1, YEAR(S39)), rngYrEnd, rngYrEndDay) -> 2030-03-31
M46: Last Financial Year Ending No. | S46: =YEAR(S45)-YEAR(S40)+1 -> 31
M47: No. of months in last Financial Year | S47: =rngMthsYr - ROUND((S45 - S39) / rngMthDays, 0) -> 9
A50: Norms on Change in Law
B52: =Road_CIL_BOT_Workings!G76 -> Increase in costs If because of change in law, the concessionaire suffers increase in cost or reduction in after tax return [aggregate financial effect of which exceeds higher of Rs. 1 crore or 0.5 % of realizable fees in any accounting year, concessionaire may notify the authority and Propose amendments to nullify the aftermath of change in laws by transferring the amount of NPV lacking from authority.
A57: Cash Flows
B59: No Change in Law Scenario | H59: Change in Law Scenario | N59: Post Last FY Period
B60: NPV at Change in Law Year | H60: =NPV(H28,F64:F94) -> 274.1829019 | I60: NPV at Change in Law Year | L60: =NPV(H28,I64:I94) -> 174.0953839 | N60: Difference between the NPVs | S60: =H60-L60-H34 -> 100.087518
B61: Till Termination period - NPV at Change in Law Year | H61: =NPV(H28,F64:INDEX(F64:F94,H25)) -> 271.7904846 | I61: NPV at Change in Law Year (Termination Period) | L61: =NPV(H28,I64:INDEX(I64:I94,H25)) -> 172.4206918 | N61: Difference between the NPVs | S61: =H61-L61 -> 99.36979285
B63: Change in Law Year | C63: Year Ending | F63: Net Cash Flow | H63: Discounted Cash Flow | I63: Net Cash Flow | L63: Discounted Cash Flow | N63: Year No. | O63: Year Ending | R63: Net Cash Flow | S63: Discounted Cash Flow | T63: Cumulative Discounted Cash Flow
B64: =Road_CIL_BOT_Workings!J27 ->  | C64: =S40 -> 2000-03-31 | F64: -33.33333333 | H64: =Road_CIL_BOT_Workings!F27 -> 0 | I64: =Road_CIL_BOT_Workings!L27 -> -33.33333333 | L64: =Road_CIL_BOT_Workings!M27 -> 0 | N64: =Road_CIL_BOT_Workings!O27 -> 1 | O64: =Road_CIL_BOT_Workings!P27 -> 2030-03-31 | R64: 100 | S64: =Road_CIL_BOT_Workings!R27 -> 9.937733255 | T64: =Road_CIL_BOT_Workings!T27 -> 9.937733255
B65: =Road_CIL_BOT_Workings!J28 ->  | C65: =EDATE(C64,12) -> 2001-03-31 | F65: -33.33333333 | H65: =Road_CIL_BOT_Workings!F28 -> 0 | I65: =Road_CIL_BOT_Workings!L28 -> -33.33333333 | L65: =Road_CIL_BOT_Workings!M28 -> 0 | N65: =Road_CIL_BOT_Workings!O28 -> 2 | O65: =Road_CIL_BOT_Workings!P28 -> 2031-03-31 | R65: 260.9 | S65: =Road_CIL_BOT_Workings!R28 -> 24.00698709 | T65: =Road_CIL_BOT_Workings!T28 -> 33.94472035
B66: =Road_CIL_BOT_Workings!J29 -> CIL | C66: =EDATE(C65,12) -> 2002-03-31 | F66: -33.33333333 | H66: =Road_CIL_BOT_Workings!F29 -> -30.86419753 | I66: =Road_CIL_BOT_Workings!L29 -> -23.33333333 | L66: =Road_CIL_BOT_Workings!M29 -> -21.60493827 | N66: =Road_CIL_BOT_Workings!O29 -> 3 | O66: =Road_CIL_BOT_Workings!P29 -> 2032-03-31 | R66: 339.2 | S66: =Road_CIL_BOT_Workings!R29 -> 28.89985528 | T66: =Road_CIL_BOT_Workings!T29 -> 62.84457563
B67: =Road_CIL_BOT_Workings!J30 ->  | C67: 2003-03-31 | F67: 14.05536 | H67: =Road_CIL_BOT_Workings!F30 -> 12.05020576 | I67: =Road_CIL_BOT_Workings!L30 -> 9.838752 | L67: =Road_CIL_BOT_Workings!M30 -> 8.435144033 | N67: =Road_CIL_BOT_Workings!O30 -> 4 | O67: =Road_CIL_BOT_Workings!P30 -> 2033-03-31 | R67: 441 | S67: =Road_CIL_BOT_Workings!R30 -> 34.7900184 | T67: =Road_CIL_BOT_Workings!T30 -> 97.63459403
B68: =Road_CIL_BOT_Workings!J31 ->  | C68: 2004-03-31 | F68: 15.460896 | H68: =Road_CIL_BOT_Workings!F31 -> 12.27335772 | I68: =Road_CIL_BOT_Workings!L31 -> 10.8226272 | L68: =Road_CIL_BOT_Workings!M31 -> 8.591350404 | N68: =Road_CIL_BOT_Workings!O31 -> 5 | O68: =Road_CIL_BOT_Workings!P31 -> 2034-03-31 | R68: 573.3 | S68: =Road_CIL_BOT_Workings!R31 -> 41.876874 | T68: =Road_CIL_BOT_Workings!T31 -> 139.511468
B69: =Road_CIL_BOT_Workings!J32 ->  | C69: 2005-03-31 | F69: 17.0069856 | H69: =Road_CIL_BOT_Workings!F32 -> 12.50064212 | I69: =Road_CIL_BOT_Workings!L32 -> 11.90488992 | L69: =Road_CIL_BOT_Workings!M32 -> 8.750449485 | N69: =Road_CIL_BOT_Workings!O32 -> 6 | O69: =Road_CIL_BOT_Workings!P32 -> 2035-03-31 | R69: 745.4 | S69: =Road_CIL_BOT_Workings!R32 -> 50.41478813 | T69: =Road_CIL_BOT_Workings!T32 -> 189.9262562
B70: =Road_CIL_BOT_Workings!J33 ->  | C70: 2006-03-31 | F70: 18.70768416 | H70: =Road_CIL_BOT_Workings!F33 -> 12.73213549 | I70: =Road_CIL_BOT_Workings!L33 -> 13.09537891 | L70: =Road_CIL_BOT_Workings!M33 -> 8.912494846 | N70: =Road_CIL_BOT_Workings!O33 -> 7 | O70: =Road_CIL_BOT_Workings!P33 -> 2036-03-31 | R70: 969 | S70: =Road_CIL_BOT_Workings!R33 -> 60.6832147 | T70: =Road_CIL_BOT_Workings!T33 -> 250.6094709
B71: =Road_CIL_BOT_Workings!J34 ->  | C71: 2007-03-31 | F71: 20.57845258 | H71: =Road_CIL_BOT_Workings!F34 -> 12.96791578 | I71: =Road_CIL_BOT_Workings!L34 -> 14.4049168 | L71: =Road_CIL_BOT_Workings!M34 -> 9.077541047 | N71: =Road_CIL_BOT_Workings!O34 -> 8 | O71: =Road_CIL_BOT_Workings!P34 -> 2037-03-31 | R71: 0 | S71: =Road_CIL_BOT_Workings!R34 -> 0 | T71: =Road_CIL_BOT_Workings!T34 -> 250.6094709
B72: =Road_CIL_BOT_Workings!J35 ->  | C72: 2008-03-31 | F72: 22.63629783 | H72: =Road_CIL_BOT_Workings!F35 -> 13.20806237 | I72: =Road_CIL_BOT_Workings!L35 -> 15.84540848 | L72: =Road_CIL_BOT_Workings!M35 -> 9.245643659 | N72: =Road_CIL_BOT_Workings!O35 -> 9 | O72: =Road_CIL_BOT_Workings!P35 -> 2038-03-31 | R72: 0 | S72: =Road_CIL_BOT_Workings!R35 -> 0 | T72: =Road_CIL_BOT_Workings!T35 -> 250.6094709
B73: =Road_CIL_BOT_Workings!J36 ->  | C73: 2009-03-31 | F73: 24.89992762 | H73: =Road_CIL_BOT_Workings!F36 -> 13.45265612 | I73: =Road_CIL_BOT_Workings!L36 -> 17.42994933 | L73: =Road_CIL_BOT_Workings!M36 -> 9.416859282 | N73: =Road_CIL_BOT_Workings!O36 -> 10 | O73: =Road_CIL_BOT_Workings!P36 -> 2039-03-31 | R73: 0 | S73: =Road_CIL_BOT_Workings!R36 -> 0 | T73: =Road_CIL_BOT_Workings!T36 -> 250.6094709
B74: =Road_CIL_BOT_Workings!J37 ->  | C74: 2010-03-31 | F74: 27.38992038 | H74: =Road_CIL_BOT_Workings!F37 -> 13.70177938 | I74: =Road_CIL_BOT_Workings!L37 -> 19.17294427 | L74: =Road_CIL_BOT_Workings!M37 -> 9.591245565 | N74: =Road_CIL_BOT_Workings!O37 -> 11 | O74: =Road_CIL_BOT_Workings!P37 -> 2040-03-31 | R74: 0 | S74: =Road_CIL_BOT_Workings!R37 -> 0 | T74: =Road_CIL_BOT_Workings!T37 -> 250.6094709
B75: =Road_CIL_BOT_Workings!J38 ->  | C75: 2011-03-31 | F75: 30.12891242 | H75: =Road_CIL_BOT_Workings!F38 -> 13.95551603 | I75: =Road_CIL_BOT_Workings!L38 -> 21.09023869 | L75: =Road_CIL_BOT_Workings!M38 -> 9.768861224 | N75: =Road_CIL_BOT_Workings!O38 -> 12 | O75: =Road_CIL_BOT_Workings!P38 -> 2041-03-31 | R75: 0 | S75: =Road_CIL_BOT_Workings!R38 -> 0 | T75: =Road_CIL_BOT_Workings!T38 -> 250.6094709
B76: =Road_CIL_BOT_Workings!J39 ->  | C76: 2012-03-31 | F76: 33.14180366 | H76: =Road_CIL_BOT_Workings!F39 -> 14.21395152 | I76: =Road_CIL_BOT_Workings!L39 -> 23.19926256 | L76: =Road_CIL_BOT_Workings!M39 -> 9.949766062 | N76: =Road_CIL_BOT_Workings!O39 -> 13 | O76: =Road_CIL_BOT_Workings!P39 -> 2042-03-31 | R76: 0 | S76: =Road_CIL_BOT_Workings!R39 -> 0 | T76: =Road_CIL_BOT_Workings!T39 -> 250.6094709
B77: =Road_CIL_BOT_Workings!J40 ->  | C77: 2013-03-31 | F77: 36.45598402 | H77: =Road_CIL_BOT_Workings!F40 -> 14.47717284 | I77: =Road_CIL_BOT_Workings!L40 -> 25.51918882 | L77: =Road_CIL_BOT_Workings!M40 -> 10.13402099 | N77: =Road_CIL_BOT_Workings!O40 -> 14 | O77: =Road_CIL_BOT_Workings!P40 -> 2043-03-31 | R77: 0 | S77: =Road_CIL_BOT_Workings!R40 -> 0 | T77: =Road_CIL_BOT_Workings!T40 -> 250.6094709
B78: =Road_CIL_BOT_Workings!J41 ->  | C78: 2014-03-31 | F78: 40.10158243 | H78: =Road_CIL_BOT_Workings!F41 -> 14.74526863 | I78: =Road_CIL_BOT_Workings!L41 -> 28.0711077 | L78: =Road_CIL_BOT_Workings!M41 -> 10.32168804 | N78: =Road_CIL_BOT_Workings!O41 -> 15 | O78: =Road_CIL_BOT_Workings!P41 -> 2044-03-31 | R78: 0 | S78: =Road_CIL_BOT_Workings!R41 -> 0 | T78: =Road_CIL_BOT_Workings!T41 -> 250.6094709
B79: =Road_CIL_BOT_Workings!J42 ->  | C79: 2015-03-31 | F79: 44.11174067 | H79: =Road_CIL_BOT_Workings!F42 -> 15.01832916 | I79: =Road_CIL_BOT_Workings!L42 -> 30.87821847 | L79: =Road_CIL_BOT_Workings!M42 -> 10.51283042 | N79: =Road_CIL_BOT_Workings!O42 -> 16 | O79: =Road_CIL_BOT_Workings!P42 -> 2045-03-31 | R79: 0 | S79: =Road_CIL_BOT_Workings!R42 -> 0 | T79: =Road_CIL_BOT_Workings!T42 -> 250.6094709
B80: =Road_CIL_BOT_Workings!J43 ->  | C80: 2016-03-31 | F80: 48.52291474 | H80: =Road_CIL_BOT_Workings!F43 -> 15.29644637 | I80: =Road_CIL_BOT_Workings!L43 -> 33.96604032 | L80: =Road_CIL_BOT_Workings!M43 -> 10.70751246 | N80: =Road_CIL_BOT_Workings!O43 -> 17 | O80: =Road_CIL_BOT_Workings!P43 -> 2046-03-31 | R80: 0 | S80: =Road_CIL_BOT_Workings!R43 -> 0 | T80: =Road_CIL_BOT_Workings!T43 -> 250.6094709
B81: =Road_CIL_BOT_Workings!J44 ->  | C81: 2017-03-31 | F81: 53.37520621 | H81: =Road_CIL_BOT_Workings!F44 -> 15.5797139 | I81: =Road_CIL_BOT_Workings!L44 -> 37.36264435 | L81: =Road_CIL_BOT_Workings!M44 -> 10.90579973 | N81: =Road_CIL_BOT_Workings!O44 -> 18 | O81: =Road_CIL_BOT_Workings!P44 -> 2047-03-31 | R81: 0 | S81: =Road_CIL_BOT_Workings!R44 -> 0 | T81: =Road_CIL_BOT_Workings!T44 -> 250.6094709
B82: =Road_CIL_BOT_Workings!J45 ->  | C82: 2018-03-31 | F82: 58.71272683 | H82: =Road_CIL_BOT_Workings!F45 -> 15.86822712 | I82: =Road_CIL_BOT_Workings!L45 -> 41.09890878 | L82: =Road_CIL_BOT_Workings!M45 -> 11.10775898 | N82: =Road_CIL_BOT_Workings!O45 -> 19 | O82: =Road_CIL_BOT_Workings!P45 -> 2048-03-31 | R82: 0 | S82: =Road_CIL_BOT_Workings!R45 -> 0 | T82: =Road_CIL_BOT_Workings!T45 -> 250.6094709
B83: =Road_CIL_BOT_Workings!J46 ->  | C83: 2019-03-31 | F83: 64.58399951 | H83: =Road_CIL_BOT_Workings!F46 -> 16.16208317 | I83: =Road_CIL_BOT_Workings!L46 -> 45.20879966 | L83: =Road_CIL_BOT_Workings!M46 -> 11.31345822 | N83: =Road_CIL_BOT_Workings!O46 -> 20 | O83: =Road_CIL_BOT_Workings!P46 -> 2049-03-31 | R83: 0 | S83: =Road_CIL_BOT_Workings!R46 -> 0 | T83: =Road_CIL_BOT_Workings!T46 -> 250.6094709
B84: =Road_CIL_BOT_Workings!J47 ->  | C84: 2020-03-31 | F84: 71.04239946 | H84: =Road_CIL_BOT_Workings!F47 -> 16.46138101 | I84: =Road_CIL_BOT_Workings!L47 -> 49.72967963 | L84: =Road_CIL_BOT_Workings!M47 -> 11.52296671 | N84: =Road_CIL_BOT_Workings!O47 -> 21 | O84: =Road_CIL_BOT_Workings!P47 -> 2050-03-31 | R84: 0 | S84: =Road_CIL_BOT_Workings!R47 -> 0 | T84: =Road_CIL_BOT_Workings!T47 -> 250.6094709
B85: =Road_CIL_BOT_Workings!J48 ->  | C85: 2021-03-31 | F85: 78.14663941 | H85: =Road_CIL_BOT_Workings!F48 -> 16.7662214 | I85: =Road_CIL_BOT_Workings!L48 -> 54.70264759 | L85: =Road_CIL_BOT_Workings!M48 -> 11.73635498 | N85: =Road_CIL_BOT_Workings!O48 -> 22 | O85: =Road_CIL_BOT_Workings!P48 -> 2051-03-31 | R85: 0 | S85: =Road_CIL_BOT_Workings!R48 -> 0 | T85: =Road_CIL_BOT_Workings!T48 -> 250.6094709
B86: =Road_CIL_BOT_Workings!J49 ->  | C86: 2022-03-31 | F86: 85.96130335 | H86: =Road_CIL_BOT_Workings!F49 -> 17.07670698 | I86: =Road_CIL_BOT_Workings!L49 -> 60.17291235 | L86: =Road_CIL_BOT_Workings!M49 -> 11.95369489 | N86: =Road_CIL_BOT_Workings!O49 -> 23 | O86: =Road_CIL_BOT_Workings!P49 -> 2052-03-31 | R86: 0 | S86: =Road_CIL_BOT_Workings!R49 -> 0 | T86: =Road_CIL_BOT_Workings!T49 -> 250.6094709
B87: =Road_CIL_BOT_Workings!J50 ->  | C87: 2023-03-31 | F87: 94.55743369 | H87: =Road_CIL_BOT_Workings!F50 -> 17.3929423 | I87: =Road_CIL_BOT_Workings!L50 -> 66.19020358 | L87: =Road_CIL_BOT_Workings!M50 -> 12.17505961 | N87: =Road_CIL_BOT_Workings!O50 -> 24 | O87: =Road_CIL_BOT_Workings!P50 -> 2053-03-31 | R87: 0 | S87: =Road_CIL_BOT_Workings!R50 -> 0 | T87: =Road_CIL_BOT_Workings!T50 -> 250.6094709
B88: =Road_CIL_BOT_Workings!J51 ->  | C88: 2024-03-31 | F88: 104.01 | H88: =Road_CIL_BOT_Workings!F51 -> 17.71449272 | I88: =Road_CIL_BOT_Workings!L51 -> 72.807 | L88: =Road_CIL_BOT_Workings!M51 -> 12.4001449 | N88: =Road_CIL_BOT_Workings!O51 -> 25 | O88: =Road_CIL_BOT_Workings!P51 -> 2054-03-31 | R88: 0 | S88: =Road_CIL_BOT_Workings!R51 -> 0 | T88: =Road_CIL_BOT_Workings!T51 -> 250.6094709
B89: =Road_CIL_BOT_Workings!J52 ->  | C89: 2025-03-31 | F89: 114.41 | H89: =Road_CIL_BOT_Workings!F52 -> 18.04238118 | I89: =Road_CIL_BOT_Workings!L52 -> 80.087 | L89: =Road_CIL_BOT_Workings!M52 -> 12.62966683 | N89: =Road_CIL_BOT_Workings!O52 -> 26 | O89: =Road_CIL_BOT_Workings!P52 -> 2055-03-31 | R89: 0 | S89: =Road_CIL_BOT_Workings!R52 -> 0 | T89: =Road_CIL_BOT_Workings!T52 -> 250.6094709
B90: =Road_CIL_BOT_Workings!J53 ->  | C90: 2026-03-31 | F90: 125.84 | H90: =Road_CIL_BOT_Workings!F53 -> 18.37489315 | I90: =Road_CIL_BOT_Workings!L53 -> 88.088 | L90: =Road_CIL_BOT_Workings!M53 -> 12.86242521 | N90: =Road_CIL_BOT_Workings!O53 -> 27 | O90: =Road_CIL_BOT_Workings!P53 -> 2056-03-31 | R90: 0 | S90: =Road_CIL_BOT_Workings!R53 -> 0 | T90: =Road_CIL_BOT_Workings!T53 -> 250.6094709
B91: =Road_CIL_BOT_Workings!J54 ->  | C91: 2027-03-31 | F91: 138.41 | H91: =Road_CIL_BOT_Workings!F54 -> 18.71327613 | I91: =Road_CIL_BOT_Workings!L54 -> 96.887 | L91: =Road_CIL_BOT_Workings!M54 -> 13.09929329 | N91: =Road_CIL_BOT_Workings!O54 -> 28 | O91: =Road_CIL_BOT_Workings!P54 -> 2057-03-31 | R91: 0 | S91: =Road_CIL_BOT_Workings!R54 -> 0 | T91: =Road_CIL_BOT_Workings!T54 -> 250.6094709
B92: =Road_CIL_BOT_Workings!J55 ->  | C92: 2028-03-31 | F92: 152.24 | H92: =Road_CIL_BOT_Workings!F55 -> 19.05844122 | I92: =Road_CIL_BOT_Workings!L55 -> 106.568 | L92: =Road_CIL_BOT_Workings!M55 -> 13.34090886 | N92: =Road_CIL_BOT_Workings!O55 -> 29 | O92: =Road_CIL_BOT_Workings!P55 -> 2058-03-31 | R92: 0 | S92: =Road_CIL_BOT_Workings!R55 -> 0 | T92: =Road_CIL_BOT_Workings!T55 -> 250.6094709
B93: =Road_CIL_BOT_Workings!J56 ->  | C93: 2029-03-31 | F93: 167.45 | H93: =Road_CIL_BOT_Workings!F56 -> 19.40975253 | I93: =Road_CIL_BOT_Workings!L56 -> 117.215 | L93: =Road_CIL_BOT_Workings!M56 -> 13.58682677 | N93: =Road_CIL_BOT_Workings!O56 -> 30 | O93: =Road_CIL_BOT_Workings!P56 -> 2059-03-31 | R93: 0 | S93: =Road_CIL_BOT_Workings!R56 -> 0 | T93: =Road_CIL_BOT_Workings!T56 -> 250.6094709
B94: =Road_CIL_BOT_Workings!J57 ->  | C94: 2030-03-31 | F94: 26 | H94: =Road_CIL_BOT_Workings!F57 -> 2.790515498 | I94: =Road_CIL_BOT_Workings!L57 -> 18.2 | L94: =Road_CIL_BOT_Workings!M57 -> 1.953360849 | N94: =Road_CIL_BOT_Workings!O57 -> 31 | O94: =Road_CIL_BOT_Workings!P57 -> 2060-03-31 | R94: 0 | S94: =Road_CIL_BOT_Workings!R57 -> 0 | T94: =Road_CIL_BOT_Workings!T57 -> 250.6094709
A118: Instructions
L121: Legend
B122: General | E122: Project details need to be entered in the yellow marked cells.
N124: Input Cell
B125: Project Particulars | E125: ="Cell "&SUBSTITUTE(CELL("address",H20),"$","")&" - Construction Period" -> Cell H20 - Construction Period | N125: Change in law Year
E126: ="Cell "&SUBSTITUTE(CELL("address",H25),"$","")&" - Concession Period" -> Cell H25 - Concession Period | M126: Units | N126: Amount are in Rs. Cr
B128: Change in Law | E128: ="Cell "&SUBSTITUTE(CELL("address",S24),"$","")&" - the year in which change of law is observed." -> Cell S24 - the year in which change of law is observed.
E129: ="Cell "&SUBSTITUTE(CELL("address",B23),"$","")&" - type of change observed." -> Cell B23 - type of change observed.
E130: ="Cell "&SUBSTITUTE(CELL("address",H23),"$","")&" - reduction in revenue due to change in law." -> Cell H23 - reduction in revenue due to change in law.
E131: ="Cell "&SUBSTITUTE(CELL("address",F63),"$","")&" - Cash Flow in every additional year" -> Cell F63 - Cash Flow in every additional year
B133: Key Information about the Project | E133: ="Cell "&SUBSTITUTE(CELL("address",H25),"$","")&" - Concession Period Considered (yrs)" -> Cell H25 - Concession Period Considered (yrs)
E134: ="Cell "&SUBSTITUTE(CELL("address",H26),"$","")&" - Total Project Cost " -> Cell H26 - Total Project Cost
E135: ="Cell "&SUBSTITUTE(CELL("address",H27),"$","")&" - Initial Revenue (in INR Crs) " -> Cell H27 - Initial Revenue (in INR Crs)
E136: ="Cell "&SUBSTITUTE(CELL("address",H28),"$","")&" - Discount Factor " -> Cell H28 - Discount Factor
E137: ="Cell "&SUBSTITUTE(CELL("address",H30),"$","")&" - Limit for % change in realisable fees" -> Cell H30 - Limit for % change in realisable fees
E138: ="Cell "&SUBSTITUTE(CELL("address",H32),"$","")&" - Limit for change in realisable fees" -> Cell H32 - Limit for change in realisable fees
B140: Key Dates | E140: ="Cell "&SUBSTITUTE(CELL("address",H21),"$","")&" - Appointed Date" -> Cell H21 - Appointed Date
B142: Option | E142: ="Cell "&SUBSTITUTE(CELL("address",C9),"$","")&" - various reasons for method of completion" -> Cell C9 - various reasons for method of completion
B144: Results | E144: ="Cell "&SUBSTITUTE(CELL("address",S28),"$","")&" - indicates the inc/ dec in concession period." -> Cell S28 - indicates the inc/ dec in concession period.
A147: // End

Sheet Road_CIL_BOT_Workings (hidden)
A1: Workings
F2: Inputs | G2: Inputs from other sheets
F3: Calculation | G3: Major Calculation
F4: Inputs | G4: Manual Inputs
F5: Inputs | G5: Hardcoded Values
A7: Results
C9: Reason Selected | G9: =Road_CIL_BOT_Dashboard!S25 -> One Time Payment
C10: Change in Concession Period | G10: =V22 -> 4.041435729
C11: Change in Concession Period | G11: =IF(G9="Change in CP",G10,0) -> 0
C13: Concession Period Considered (yrs) | G13: =Road_CIL_BOT_Dashboard!H25 -> 30
C14: Concession Period | G14: =G13+G11 -> 30
C16: Difference Between the NPVs | G16: =V21 -> 99.36979285
C17: Payment to be made by either party | G17: =IF(G9="One Time Payment",G16,"") -> 99.36979285
A19: NPV Calculations
C21: Change in the law date | F21: =Road_CIL_BOT_Dashboard!S24 -> 2001-09-01 | H21: Change in law year | J21: =IF(MONTH(F21)<= 3, YEAR(F21) -1, YEAR(F21)) -> 2001 | O21: Last Financial Year | R21: =Road_CIL_BOT_Dashboard!S45 -> 2030-03-31 | T21: Difference between the NPVs | V21: =Road_CIL_BOT_Dashboard!S61 -> 99.36979285
C22: Discount Factor | F22: =Road_CIL_BOT_Dashboard!H28 -> 0.08 | H22: Reduction in Revenue | J22: =Road_CIL_BOT_Dashboard!H23 -> 0.3 | O22: Month in a Year | R22: =rngMthsYr -> 12 | T22: Change in Concession Period | V22: =SUM(V27:V57) -> 4.041435729
C23: Appointed Date | F23: =Road_CIL_BOT_Dashboard!S36 -> 2000-01-01 | H23: Appointed Date Year | J23: =YEAR(F23) -> 2000
C25: Year Ending | E25: Net Cash Flow | F25: Discounted Cash Flow | G25: Post change in law period flag | H25: Pre change in law period flag | I25: Duration (Yrs) | J25: Change in Law (CIL) | L25: Net Cash Flow | M25: Discounted Cash Flow | O25: Year No. | P25: Year Ending | Q25: Net Cash Flow | R25: Discounted Cash Flow | S25: Duration (Yrs) | T25: Cumulative Discounted Cash Flow | U25: Recovery Period | V25: Recovery Year
C27: =Road_CIL_BOT_Dashboard!C64 -> 2000-03-31 | E27: =Road_CIL_BOT_Dashboard!F64 -> -33.33333333 | F27: =(E27/((1+$F$22)^$I27))*$G27 -> 0 | G27: =IF(C27>$F$21,1,0) -> 0 | H27: =IF(C27<$F$21,1,0) -> 1 | I27: =IF(H27=1,YEAR(C27)-$J$23,YEAR(C27)-$J$21) -> 0 | J27: =IF(AND($F$21>C26,$F$21<C27),"CIL","") ->  | L27: =IF(G27=1,E27*(1-$J$22),E27) -> -33.33333333 | M27: =(L27/((1+$F$22)^$I27))*$G27 -> 0 | O27: =SUM(O26)+1 -> 1 | P27: =IF(O27=1,$R$21,EDATE(P26,$R$22)) -> 2030-03-31 | Q27: =Road_CIL_BOT_Dashboard!R64 -> 100 | R27: =(Q27/((1+$F$22)^S27)) -> 9.937733255 | S27: =YEAR(P27)+1-$J$21 -> 30 | T27: =SUM($R$27:R27) -> 9.937733255 | U27: =IF(AND(T27>$V$21,T26<$V$21),1,0) -> 0 | V27: =IF(U27=1,O26+(($V$21-T26)/R27),0) -> 0
C28: =Road_CIL_BOT_Dashboard!C65 -> 2001-03-31 | E28: =Road_CIL_BOT_Dashboard!F65 -> -33.33333333 | F28: =(E28/((1+$F$22)^$I28))*$G28 -> 0 | G28: =IF(C28>$F$21,1,0) -> 0 | H28: =IF(C28<$F$21,1,0) -> 1 | I28: =IF(H28=1,YEAR(C28)-$J$23,YEAR(C28)-$J$21) -> 1 | J28: =IF(AND($F$21>C27,$F$21<C28),"CIL","") ->  | L28: =IF(G28=1,E28*(1-$J$22),E28) -> -33.33333333 | M28: =(L28/((1+$F$22)^$I28))*$G28 -> 0 | O28: =SUM(O27)+1 -> 2 | P28: =IF(O28=1,$R$21,EDATE(P27,$R$22)) -> 2031-03-31 | Q28: =Road_CIL_BOT_Dashboard!R65 -> 260.9 | R28: =(Q28/((1+$F$22)^S28)) -> 24.00698709 | S28: =YEAR(P28)+1-$J$21 -> 31 | T28: =SUM($R$27:R28) -> 33.94472035 | U28: =IF(AND(T28>$V$21,T27<$V$21),1,0) -> 0 | V28: =IF(U28=1,O27+(($V$21-T27)/R28),0) -> 0
C29: =Road_CIL_BOT_Dashboard!C66 -> 2002-03-31 | E29: =Road_CIL_BOT_Dashboard!F66 -> -33.33333333 | F29: -30.86419753 | G29: 1 | H29: 0 | I29: 1 | J29: CIL | L29: -23.33333333 | M29: -21.60493827 | O29: 3 | P29: 2032-03-31 | Q29: =Road_CIL_BOT_Dashboard!R66 -> 339.2 | R29: 28.89985528 | S29: 32 | T29: =SUM($R$27:R29) -> 62.84457563 | U29: 0 | V29: 0
C30: =Road_CIL_BOT_Dashboard!C67 -> 2003-03-31 | E30: =Road_CIL_BOT_Dashboard!F67 -> 14.05536 | F30: 12.05020576 | G30: 1 | H30: 0 | I30: 2 | L30: 9.838752 | M30: 8.435144033 | O30: 4 | P30: 2033-03-31 | Q30: =Road_CIL_BOT_Dashboard!R67 -> 441 | R30: 34.7900184 | S30: 33 | T30: =SUM($R$27:R30) -> 97.63459403 | U30: 0 | V30: 0
C31: =Road_CIL_BOT_Dashboard!C68 -> 2004-03-31 | E31: =Road_CIL_BOT_Dashboard!F68 -> 15.460896 | F31: 12.27335772 | G31: 1 | H31: 0 | I31: 3 | L31: 10.8226272 | M31: 8.591350404 | O31: 5 | P31: 2034-03-31 | Q31: =Road_CIL_BOT_Dashboard!R68 -> 573.3 | R31: 41.876874 | S31: 34 | T31: =SUM($R$27:R31) -> 139.511468 | U31: 1 | V31: 4.041435729
C32: =Road_CIL_BOT_Dashboard!C69 -> 2005-03-31 | E32: =Road_CIL_BOT_Dashboard!F69 -> 17.0069856 | F32: 12.50064212 | G32: 1 | H32: 0 | I32: 4 | L32: 11.90488992 | M32: 8.750449485 | O32: 6 | P32: 2035-03-31 | Q32: =Road_CIL_BOT_Dashboard!R69 -> 745.4 | R32: 50.41478813 | S32: 35 | T32: =SUM($R$27:R32) -> 189.9262562 | U32: 0 | V32: 0
C33: =Road_CIL_BOT_Dashboard!C70 -> 2006-03-31 | E33: =Road_CIL_BOT_Dashboard!F70 -> 18.70768416 | F33: 12.73213549 | G33: 1 | H33: 0 | I33: 5 | L33: 13.09537891 | M33: 8.912494846 | O33: 7 | P33: 2036-03-31 | Q33: =Road_CIL_BOT_Dashboard!R70 -> 969 | R33: 60.6832147 | S33: 36 | T33: =SUM($R$27:R33) -> 250.6094709 | U33: 0 | V33: 0
C34: =Road_CIL_BOT_Dashboard!C71 -> 2007-03-31 | E34: =Road_CIL_BOT_Dashboard!F71 -> 20.57845258 | F34: 12.96791578 | G34: 1 | H34: 0 | I34: 6 | L34: 14.4049168 | M34: 9.077541047 | O34: 8 | P34: 2037-03-31 | Q34: =Road_CIL_BOT_Dashboard!R71 -> 0 | R34: 0 | S34: 37 | T34: =SUM($R$27:R34) -> 250.6094709 | U34: 0 | V34: 0
C35: =Road_CIL_BOT_Dashboard!C72 -> 2008-03-31 | E35: =Road_CIL_BOT_Dashboard!F72 -> 22.63629783 | F35: 13.20806237 | G35: 1 | H35: 0 | I35: 7 | L35: 15.84540848 | M35: 9.245643659 | O35: 9 | P35: 2038-03-31 | Q35: =Road_CIL_BOT_Dashboard!R72 -> 0 | R35: 0 | S35: 38 | T35: =SUM($R$27:R35) -> 250.6094709 | U35: 0 | V35: 0
C36: =Road_CIL_BOT_Dashboard!C73 -> 2009-03-31 | E36: =Road_CIL_BOT_Dashboard!F73 -> 24.89992762 | F36: 13.45265612 | G36: 1 | H36: 0 | I36: 8 | L36: 17.42994933 | M36: 9.416859282 | O36: 10 | P36: 2039-03-31 | Q36: =Road_CIL_BOT_Dashboard!R73 -> 0 | R36: 0 | S36: 39 | T36: =SUM($R$27:R36) -> 250.6094709 | U36: 0 | V36: 0
C37: =Road_CIL_BOT_Dashboard!C74 -> 2010-03-31 | E37: =Road_CIL_BOT_Dashboard!F74 -> 27.38992038 | F37: 13.70177938 | G37: 1 | H37: 0 | I37: 9 | L37: 19.17294427 | M37: 9.591245565 | O37: 11 | P37: 2040-03-31 | Q37: =Road_CIL_BOT_Dashboard!R74 -> 0 | R37: 0 | S37: 40 | T37: =SUM($R$27:R37) -> 250.6094709 | U37: 0 | V37: 0
C38: =Road_CIL_BOT_Dashboard!C75 -> 2011-03-31 | E38: =Road_CIL_BOT_Dashboard!F75 -> 30.12891242 | F38: 13.95551603 | G38: 1 | H38: 0 | I38: 10 | L38: 21.09023869 | M38: 9.768861224 | O38: 12 | P38: 2041-03-31 | Q38: =Road_CIL_BOT_Dashboard!R75 -> 0 | R38: 0 | S38: 41 | T38: =SUM($R$27:R38) -> 250.6094709 | U38: 0 | V38: 0
C39: =Road_CIL_BOT_Dashboard!C76 -> 2012-03-31 | E39: =Road_CIL_BOT_Dashboard!F76 -> 33.14180366 | F39: 14.21395152 | G39: 1 | H39: 0 | I39: 11 | L39: 23.19926256 | M39: 9.949766062 | O39: 13 | P39: 2042-03-31 | Q39: =Road_CIL_BOT_Dashboard!R76 -> 0 | R39: 0 | S39: 42 | T39: =SUM($R$27:R39) -> 250.6094709 | U39: 0 | V39: 0
C40: =Road_CIL_BOT_Dashboard!C77 -> 2013-03-31 | E40: =Road_CIL_BOT_Dashboard!F77 -> 36.45598402 | F40: 14.47717284 | G40: 1 | H40: 0 | I40: 12 | L40: 25.51918882 | M40: 10.13402099 | O40: 14 | P40: 2043-03-31 | Q40: =Road_CIL_BOT_Dashboard!R77 -> 0 | R40: 0 | S40: 43 | T40: =SUM($R$27:R40) -> 250.6094709 | U40: 0 | V40: 0
C41: =Road_CIL_BOT_Dashboard!C78 -> 2014-03-31 | E41: =Road_CIL_BOT_Dashboard!F78 -> 40.10158243 | F41: 14.74526863 | G41: 1 | H41: 0 | I41: 13 | L41: 28.0711077 | M41: 10.32168804 | O41: 15 | P41: 2044-03-31 | Q41: =Road_CIL_BOT_Dashboard!R78 -> 0 | R41: 0 | S41: 44 | T41: =SUM($R$27:R41) -> 250.6094709 | U41: 0 | V41: 0
C42: =Road_CIL_BOT_Dashboard!C79 -> 2015-03-31 | E42: =Road_CIL_BOT_Dashboard!F79 -> 44.11174067 | F42: 15.01832916 | G42: 1 | H42: 0 | I42: 14 | L42: 30.87821847 | M42: 10.51283042 | O42: 16 | P42: 2045-03-31 | Q42: =Road_CIL_BOT_Dashboard!R79 -> 0 | R42: 0 | S42: 45 | T42: =SUM($R$27:R42) -> 250.6094709 | U42: 0 | V42: 0
C43: =Road_CIL_BOT_Dashboard!C80 -> 2016-03-31 | E43: =Road_CIL_BOT_Dashboard!F80 -> 48.52291474 | F43: 15.29644637 | G43: 1 | H43: 0 | I43: 15 | L43: 33.96604032 | M43: 10.70751246 | O43: 17 | P43: 2046-03-31 | Q43: =Road_CIL_BOT_Dashboard!R80 -> 0 | R43: 0 | S43: 46 | T43: =SUM($R$27:R43) -> 250.6094709 | U43: 0 | V43: 0
C44: =Road_CIL_BOT_Dashboard!C81 -> 2017-03-31 | E44: =Road_CIL_BOT_Dashboard!F81 -> 53.37520621 | F44: 15.5797139 | G44: 1 | H44: 0 | I44: 16 | L44: 37.36264435 | M44: 10.90579973 | O44: 18 | P44: 2047-03-31 | Q44: =Road_CIL_BOT_Dashboard!R81 -> 0 | R44: 0 | S44: 47 | T44: =SUM($R$27:R44) -> 250.6094709 | U44: 0 | V44: 0
C45: =Road_CIL_BOT_Dashboard!C82 -> 2018-03-31 | E45: =Road_CIL_BOT_Dashboard!F82 -> 58.71272683 | F45: 15.86822712 | G45: 1 | H45: 0 | I45: 17 | L45: 41.09890878 | M45: 11.10775898 | O45: 19 | P45: 2048-03-31 | Q45: =Road_CIL_BOT_Dashboard!R82 -> 0 | R45: 0 | S45: 48 | T45: =SUM($R$27:R45) -> 250.6094709 | U45: 0 | V45: 0
C46: =Road_CIL_BOT_Dashboard!C83 -> 2019-03-31 | E46: =Road_CIL_BOT_Dashboard!F83 -> 64.58399951 | F46: 16.16208317 | G46: 1 | H46: 0 | I46: 18 | L46: 45.20879966 | M46: 11.31345822 | O46: 20 | P46: 2049-03-31 | Q46: =Road_CIL_BOT_Dashboard!R83 -> 0 | R46: 0 | S46: 49 | T46: =SUM($R$27:R46) -> 250.6094709 | U46: 0 | V46: 0
C47: =Road_CIL_BOT_Dashboard!C84 -> 2020-03-31 | E47: =Road_CIL_BOT_Dashboard!F84 -> 71.04239946 | F47: 16.46138101 | G47: 1 | H47: 0 | I47: 19 | L47: 49.72967963 | M47: 11.52296671 | O47: 21 | P47: 2050-03-31 | Q47: =Road_CIL_BOT_Dashboard!R84 -> 0 | R47: 0 | S47: 50 | T47: =SUM($R$27:R47) -> 250.6094709 | U47: 0 | V47: 0
C48: =Road_CIL_BOT_Dashboard!C85 -> 2021-03-31 | E48: =Road_CIL_BOT_Dashboard!F85 -> 78.14663941 | F48: 16.7662214 | G48: 1 | H48: 0 | I48: 20 | L48: 54.70264759 | M48: 11.73635498 | O48: 22 | P48: 2051-03-31 | Q48: =Road_CIL_BOT_Dashboard!R85 -> 0 | R48: 0 | S48: 51 | T48: =SUM($R$27:R48) -> 250.6094709 | U48: 0 | V48: 0
C49: =Road_CIL_BOT_Dashboard!C86 -> 2022-03-31 | E49: =Road_CIL_BOT_Dashboard!F86 -> 85.96130335 | F49: 17.07670698 | G49: 1 | H49: 0 | I49: 21 | L49: 60.17291235 | M49: 11.95369489 | O49: 23 | P49: 2052-03-31 | Q49: =Road_CIL_BOT_Dashboard!R86 -> 0 | R49: 0 | S49: 52 | T49: =SUM($R$27:R49) -> 250.6094709 | U49: 0 | V49: 0
C50: =Road_CIL_BOT_Dashboard!C87 -> 2023-03-31 | E50: =Road_CIL_BOT_Dashboard!F87 -> 94.55743369 | F50: 17.3929423 | G50: 1 | H50: 0 | I50: 22 | L50: 66.19020358 | M50: 12.17505961 | O50: 24 | P50: 2053-03-31 | Q50: =Road_CIL_BOT_Dashboard!R87 -> 0 | R50: 0 | S50: 53 | T50: =SUM($R$27:R50) -> 250.6094709 | U50: 0 | V50: 0
C51: =Road_CIL_BOT_Dashboard!C88 -> 2024-03-31 | E51: =Road_CIL_BOT_Dashboard!F88 -> 104.01 | F51: 17.71449272 | G51: 1 | H51: 0 | I51: 23 | L51: 72.807 | M51: 12.4001449 | O51: 25 | P51: 2054-03-31 | Q51: =Road_CIL_BOT_Dashboard!R88 -> 0 | R51: 0 | S51: 54 | T51: =SUM($R$27:R51) -> 250.6094709 | U51: 0 | V51: 0
C52: =Road_CIL_BOT_Dashboard!C89 -> 2025-03-31 | E52: =Road_CIL_BOT_Dashboard!F89 -> 114.41 | F52: 18.04238118 | G52: 1 | H52: 0 | I52: 24 | L52: 80.087 | M52: 12.62966683 | O52: 26 | P52: 2055-03-31 | Q52: =Road_CIL_BOT_Dashboard!R89 -> 0 | R52: 0 | S52: 55 | T52: =SUM($R$27:R52) -> 250.6094709 | U52: 0 | V52: 0
C53: =Road_CIL_BOT_Dashboard!C90 -> 2026-03-31 | E53: =Road_CIL_BOT_Dashboard!F90 -> 125.84 | F53: 18.37489315 | G53: 1 | H53: 0 | I53: 25 | L53: 88.088 | M53: 12.86242521 | O53: 27 | P53: 2056-03-31 | Q53: =Road_CIL_BOT_Dashboard!R90 -> 0 | R53: 0 | S53: 56 | T53: =SUM($R$27:R53) -> 250.6094709 | U53: 0 | V53: 0
C54: =Road_CIL_BOT_Dashboard!C91 -> 2027-03-31 | E54: =Road_CIL_BOT_Dashboard!F91 -> 138.41 | F54: 18.71327613 | G54: 1 | H54: 0 | I54: 26 | L54: 96.887 | M54: 13.09929329 | O54: 28 | P54: 2057-03-31 | Q54: =Road_CIL_BOT_Dashboard!R91 -> 0 | R54: 0 | S54: 57 | T54: =SUM($R$27:R54) -> 250.6094709 | U54: 0 | V54: 0
C55: =Road_CIL_BOT_Dashboard!C92 -> 2028-03-31 | E55: =Road_CIL_BOT_Dashboard!F92 -> 152.24 | F55: 19.05844122 | G55: 1 | H55: 0 | I55: 27 | L55: 106.568 | M55: 13.34090886 | O55: 29 | P55: 2058-03-31 | Q55: =Road_CIL_BOT_Dashboard!R92 -> 0 | R55: 0 | S55: 58 | T55: =SUM($R$27:R55) -> 250.6094709 | U55: 0 | V55: 0
C56: =Road_CIL_BOT_Dashboard!C93 -> 2029-03-31 | E56: =Road_CIL_BOT_Dashboard!F93 -> 167.45 | F56: 19.40975253 | G56: 1 | H56: 0 | I56: 28 | L56: 117.215 | M56: 13.58682677 | O56: 30 | P56: 2059-03-31 | Q56: =Road_CIL_BOT_Dashboard!R93 -> 0 | R56: 0 | S56: 59 | T56: =SUM($R$27:R56) -> 250.6094709 | U56: 0 | V56: 0
C57: =Road_CIL_BOT_Dashboard!C94 -> 2030-03-31 | E57: =Road_CIL_BOT_Dashboard!F94 -> 26 | F57: 2.790515498 | G57: 1 | H57: 0 | I57: 29 | L57: 18.2 | M57: 1.953360849 | O57: 31 | P57: 2060-03-31 | Q57: =Road_CIL_BOT_Dashboard!R94 -> 0 | R57: 0 | S57: 60 | T57: =SUM($R$27:R57) -> 250.6094709 | U57: 0 | V57: 0
A64: Norms
D67: Reason Selected | H67: =Road_CIL_BOT_Dashboard!$S$25 -> One Time Payment
D68: Difference between the NPVs | H68: =$V$21 -> 99.36979285
C70: Applicable Norms
G72: Increase in costs | H72: Decrease in costs | I72: Clause
D73: Option 1 | E73: One Time Payment | G73: Increase in costs If because of change in law, the concessionaire suffers increase in cost or reduction in after tax return [aggregate financial effect of which exceeds higher of Rs. 1 crore or 0.5 % of realizable fees in any accounting year, concessionaire may notify the authority and Propose amendments to nullify the aftermath of change in laws by transferring the amount of NPV lacking from authority. | H73: Reduction in costs If because of change in law, the concessionaire enjoys reduction in cost or increase in after tax return [aggregate financial effect of which exceeds higher of Rs. 1 crore or 0.5 % of realizable fees in any accounting year, authority may notify the concessionaire and Propose amendments to nullify the aftermath of change in laws by transferring the amount of excess NPV to authority .
D74: Option 1 | E74: Change in CP | G74: Increase in cost If because of change in law, the concessionaire suffers escalation in cost or decrease in after tax return [aggregate financial effect of which exceeds higher of Rs. 1 crore or 0.5 % of realizable fees in any accounting year, the concession period would be increased by the proportion of certain years to nullify the effect on both the parties. | H74: Reduction in cost If because of change in law, the concessionaire enjoys reduction in cost or increase in after tax return [aggregate financial effect of which exceeds higher of Rs. 1 crore or 0.5 % of realizable fees in any accounting year, the concession period would be decreased by the proportion of certain years to nullify the effect on both the parties.
G75: =IF(H67=E73,G73,G74) -> Increase in costs If because of change in law, the concessionaire suffers increase in cost or reduction in after tax return [aggregate financial effect of which exceeds higher of Rs. 1 crore or 0.5 % of realizable fees in any accounting year, concessionaire may notify the authority and Propose amendments to nullify the aftermath of change in laws by transferring the amount of NPV lacking from authority. | H75: =IF(H67=E73,H73,H74) -> Reduction in costs If because of change in law, the concessionaire enjoys reduction in cost or increase in after tax return [aggregate financial effect of which exceeds higher of Rs. 1 crore or 0.5 % of realizable fees in any accounting year, authority may notify the concessionaire and Propose amendments to nullify the aftermath of change in laws by transferring the amount of excess NPV to authority .
C76: Applicable Norm | G76: =IF(H68>0,G75,H75) -> Increase in costs If because of change in law, the concessionaire suffers increase in cost or reduction in after tax return [aggregate financial effect of which exceeds higher of Rs. 1 crore or 0.5 % of realizable fees in any accounting year, concessionaire may notify the authority and Propose amendments to nullify the aftermath of change in laws by transferring the amount of NPV lacking from authority.
A79: Graph Data
D81: Project Days | E81: Days | F81: URN | G81: Sorted URN | H81: Project Days | I81: Days | J81: Dummy
D82: =Road_CIL_BOT_Dashboard!M36 -> Appointed Date | E82: =Road_CIL_BOT_Dashboard!S36 -> 2000-01-01 | F82: =E82&D82 -> 36526Appointed Date | G82: =_xlfn._xlws.SORT(F82:F85,1,1) -> 36526Appointed Date | H82: =INDEX($D$82:$D$85,MATCH(G82,$F$82:$F$85,0)) -> Appointed Date | I82: =INDEX($E$82:$E$85,MATCH(G82,$F$82:$F$85,0)) -> 2000-01-01 | J82: 1
D83: =Road_CIL_BOT_Dashboard!M37 -> Date of Construction Completion | E83: =Road_CIL_BOT_Dashboard!S37 -> 2002-06-30 | F83: =E83&D83 -> 37437Date of Construction Completion | G83: 37437Date of Construction Completion | H83: =INDEX($D$82:$D$85,MATCH(G83,$F$82:$F$85,0)) -> Date of Construction Completion | I83: =INDEX($E$82:$E$85,MATCH(G83,$F$82:$F$85,0)) -> 2002-06-30 | J83: 1
D84: =Road_CIL_BOT_Dashboard!M38 -> Commercial Operations Date (COD) | E84: =Road_CIL_BOT_Dashboard!S38 -> 2002-07-01 | F84: 37438Commercial Operations Date (COD) | G84: 37438Commercial Operations Date (COD) | H84: =INDEX($D$82:$D$85,MATCH(G84,$F$82:$F$85,0)) -> Commercial Operations Date (COD) | I84: 2002-07-01 | J84: 1
D85: =Road_CIL_BOT_Dashboard!M39 -> Termination Date | E85: =Road_CIL_BOT_Dashboard!S39 -> 2029-12-31 | F85: 47483Termination Date | G85: 47483Termination Date | H85: =INDEX($D$82:$D$85,MATCH(G85,$F$82:$F$85,0)) -> Termination Date | I85: 2029-12-31 | J85: 1
D87: Particular | E87: Years
D88: ="Actual "&Road_CIL_BOT_Dashboard!B25 -> Actual Concession Period Considered (yrs) | E88: =Road_CIL_BOT_Dashboard!H25 -> 30
D89: =Road_CIL_BOT_Dashboard!M29 -> Revised Concession Period | E89: =Road_CIL_BOT_Dashboard!S29-E88 -> 0
A91: // End

Sheet CL over Concession Period (hidden)
A3: Key Inputs | O3: Key Outputs
A5: Concession Period (years) | B5: 30
A6: Appointed Date | B6: 2019-09-30
A7: COD | B7: 2022-03-31
A8: Termination Date
A9: TPC (INR Crore) | B9: 1000
A10: Total Debt (INR Crore) | B10: 700
A11: Total Equity (INR Crore) | B11: 300
A12: Discount rate | B12: 0.1
A13: Years for repayment of debt | B13: 10
A14: EMI | B14: =PMT(B12,B13,B10) -> -113.9217764
A16: Repayment Schedule
B17: 0 | C17: 1 | D17: 2 | E17: 3 | F17: 4 | G17: 5 | H17: 6 | I17: 7 | J17: 8 | K17: 9 | L17: 10
C18: 2023-03-31 | D18: 2024-03-31 | E18: 2025-03-31 | F18: 2026-03-31 | G18: 2027-03-31 | H18: 2028-03-31 | I18: 2029-03-31 | J18: 2030-03-31 | K18: 2031-03-31 | L18: 2032-03-31
A19: Interest | C19: 70 | D19: 65.608 | E19: 60.7768 | F19: 55.46248 | G19: 49.616728 | H19: 43.1864008 | I19: 36.11304088 | J19: 28.33234497 | K19: 19.77357946 | L19: 10.35893741
A20: Principal Repayment | C20: 43.92 | D20: 48.312 | E20: 53.1432 | F20: 58.45752 | G20: 64.303272 | H20: 70.7335992 | I20: 77.80695912 | J20: 85.58765503 | K20: 94.14642054 | L20: 103.5610626
A21: EMI | C21: 113.92 | D21: 113.92 | E21: 113.92 | F21: 113.92 | G21: 113.92 | H21: 113.92 | I21: 113.92 | J21: 113.92 | K21: 113.92 | L21: 113.92
A25: Debt Due
A26: Adjusted Equity

Sheet Road_TP_BOT_Dashboard (hidden)
A1: Dashboard
A2: Key Inputs | L2: Key Outputs
B6: Risk events for calculation of Contingent Liability
B18: Your Selection | H18: 1 | I18: TRUE | J18: TRUE
B21: Project Particulars
M22: Result
B23: Construction Period (months) | H23: 60
B24: Concession Period Considered (yrs) | H24: 30 | M24: Base Adjusted Equity at COD | S24: =Road_TP_BOT_Workings!E45 -> 106.2443026
B25: Last Capex Payment Month | H25: 30 | M25: % Reduction per Month | S25: =Road_TP_BOT_Workings!E54 -> 0.002777777778
B26: Appointed Date | H26: 2015-04-01 | M26: No. of months from 4th Anniversary of COD | S26: =Road_TP_BOT_Workings!E61 -> 0
B27: Termination Date | H27: 2020-02-20 | M27: Adjusted Equity | S27: =Road_TP_BOT_Workings!E106 -> 105.515041
M28: % of Debt Due | S28: =Road_TP_BOT_Workings!D130 -> 0.9
B29: No Termination Payment | M29: % of Adjusted Equity | S29: =Road_TP_BOT_Workings!D131 -> 0
B30: =IF(AND($H$18=2,$I$18=FALSE),"Actual Cost",IF(AND($H$18=3,$I$18=FALSE),"Interest Payment on Debt","")) ->  | H30: 25 | M30: Insurance Cover (INR Crs) | S30: =Road_TP_BOT_Workings!E139 -> 100
B31: =IF(AND($H$18=2,$I$18=FALSE),"Insurance Cover",IF(AND($H$18=3,$I$18=FALSE),"O&M Expenses","")) ->  | H31: 5 | M31: Insurance Claims | S31: =Road_TP_BOT_Workings!E144 -> 40
B32: =IF(AND($H$18=2,$I$18=FALSE),"",IF(AND($H$18=3,$I$18=FALSE),"Any increase in cost of construction due to inflation","")) ->  | M32: =IF(AND(OR($H$18=2,$H$18=3),$I$18=FALSE),"Non Termination Payment","Termination Payment") -> Termination Payment | S32: =IF(AND($H$18=2,$I$18=FALSE, $J$18=FALSE),0.5*(H30-H31),IF(AND($H$18=3,$I$18=FALSE,$J$18=FALSE),SUM(H30:H33),IF(AND($H$18=1,$I$18=FALSE, $J$18=FALSE),0, IF($J$18=TRUE, Road_TP_BOT_Workings!G166, Road_TP_BOT_Workings!E166)))) -> 100
B33: =IF(AND($H$18=2,$I$18=FALSE),"",IF(AND($H$18=3,$I$18=FALSE),"All other cost directly attributable to FM","")) -> 
B35: Means of Finance | M35: WPI Details
B36: Grant, if any | H36: 0
B37: Equity Infused | H37: 100 | M37: ="WPI at the Time of " &M44 -> WPI at the Time of Appointed Date | S37: =Road_TP_BOT_Workings!E220 -> 109.7
B38: Debt Due | H38: 200 | M38: ="WPI at the Time of " &M47 -> WPI at the Time of Termination Date | S38: =Road_TP_BOT_Workings!E221 -> 121.8
B39: Insurance Cover | H39: 100 | M39: ="WPI at the Time of " &M46 -> WPI at the Time of Commercial Operations Date (COD) | S39: =Road_TP_BOT_Workings!E222 -> 123.4
B40: Insurance Claims (not admitted and paid) | H40: 50
B42: General Inputs | M42: Key Dates
B43: Year count for 4th Anniversary | H43: 4
M44: Appointed Date | S44: =H26 -> 2015-04-01
B45: =HYPERLINK("#'" & RIGHT(CELL("FILENAME", Road_TP_BOT_Workings!$D$178), LEN(CELL("FILENAME", Road_TP_BOT_Workings!$D$178)) - SEARCH("]", CELL("FILENAME", Road_TP_BOT_Workings!$D$178))) & "'!" & MID(CELL("address", Road_TP_BOT_Workings!$D$178), SEARCH("!", CELL("address", Road_TP_BOT_Workings!$D$178)) + 1, LEN(CELL("address", Road_TP_BOT_Workings!$D$178)) - SEARCH("!", CELL("address", Road_TP_BOT_Workings!$D$178))), "Click here to update WPI figures if project timeline is not between 2011-2021") -> Click here to update WPI figures if project timeline is not between 2011-2021 | M45: Date of Construction Completion | S45: =EDATE(H26,H23)-1 -> 2020-03-31
B46: =HYPERLINK("#'" & RIGHT(CELL("FILENAME", Road_TP_BOT_Workings!$C$115), LEN(CELL("FILENAME", Road_TP_BOT_Workings!$C$115)) - SEARCH("]", CELL("FILENAME", Road_TP_BOT_Workings!$C$115))) & "'!" & MID(CELL("address", Road_TP_BOT_Workings!$C$115), SEARCH("!", CELL("address", Road_TP_BOT_Workings!$C$115)) + 1, LEN(CELL("address", Road_TP_BOT_Workings!$C$115)) - SEARCH("!", CELL("address", Road_TP_BOT_Workings!$C$115))), "Click here to update Norms.") -> Click here to update Norms. | M46: Commercial Operations Date (COD) | S46: =S45+1 -> 2020-04-01
B47: =HYPERLINK("#'" & RIGHT(CELL("FILENAME", Road_TP_BOT_Workings!$A$7), LEN(CELL("FILENAME", Road_TP_BOT_Workings!$A$7)) - SEARCH("]", CELL("FILENAME", Road_TP_BOT_Workings!$A$7))) & "'!" & MID(CELL("address", Road_TP_BOT_Workings!$A$7), SEARCH("!", CELL("address", Road_TP_BOT_Workings!$A$7)) + 1, LEN(CELL("address", Road_TP_BOT_Workings!$A$7)) - SEARCH("!", CELL("address", Road_TP_BOT_Workings!$A$7))), "Click here to update Inputs") -> Click here to update Inputs | M47: Termination Date | S47: =H27 -> 2020-02-20
M48: First Financial Year Ending | S48: =DATE(IF(MONTH(S44)>Settings!$C$28,YEAR(S44)+1,YEAR(S44)),Settings!$C$28,Settings!$C$29) -> 2016-03-31
M49: No. of months in first Financial Year | S49: =ROUND((S48-S44)/Settings!C30,0) -> 12
B50: Project Timeline | M50: Construction Ending Financial Year | S50: =DATE(IF(MONTH(S45)>Settings!C28,YEAR(S45)+1,YEAR(S45)),Settings!C28,Settings!C29) -> 2020-03-31
M51: Construction Ending Financial Year No. | S51: =YEAR(S50)-YEAR(S48)+1 -> 5
M52: No. of operational months in Cons Ending FY | S52: =ROUND((S50-S45)/Settings!C30,0) -> 0
M53: Last Financial Year Ending | S53: =DATE(IF(MONTH(S47)>Settings!C28,YEAR(S47)+1,YEAR(S47)),Settings!C28,Settings!C29) -> 2020-03-31
M54: Last Financial Year Ending No. | S54: =YEAR(S53)-YEAR(S48)+1 -> 5
M55: No. of months in last Financial Year | S55: =Settings!C27-ROUND((S53-S47)/Settings!C30,0) -> 11
M56: 4th Anniversary from COD | S56: =EDATE(S46,H43*Settings!$C$27)-1 -> 2024-03-31
M57: Termination Period | S57: =Road_TP_BOT_Workings!G31 -> On or before COD
A60: Norms
B62: Norms on Adjusted Equity Calculation | L62: Norms on Termination Payment
C63: =Road_TP_BOT_Workings!G28 -> On or before COD: The Adjusted Equity shall be a sum equal to the Equity funded and expended on the Project, revised to the extent of one half of the variation in WPI occurring between the first day of the month of Appointed Date and the Reference Date | M63: =IF(AND(OR(H18=2,H18=3),I18=FALSE),Road_TP_BOT_Workings!I125,Road_TP_BOT_Workings!H125) -> If Termination is on account of a Non-Political Event, the Authority shall make a Termination Payment to the Concessionaire in an amount equal to 90% of the Debt Due less Insurance Cover.
A68: Instructions
L71: Legend
B72: General | E72: Project details need to be entered in the yellow marked cells.
N74: Input Cell
B75: Project Particulars | E75: ="Cell "&SUBSTITUTE(CELL("address",H23),"$","")&" - Construction Period" -> Cell H23 - Construction Period | N75: Results
E76: ="Cell "&SUBSTITUTE(CELL("address",H24),"$","")&" - Concession Period" -> Cell H24 - Concession Period | M76: Units | N76: Amount are in Rs. Cr
E77: ="Cell "&SUBSTITUTE(CELL("address",H25),"$","")&" - the month in which the last capex was/ has to be released." -> Cell H25 - the month in which the last capex was/ has to be released.
B79: Financial Details: | E79: ="Cell "&SUBSTITUTE(CELL("address",H37),"$","")&" - the Total Equity infused in the Project as on date" -> Cell H37 - the Total Equity infused in the Project as on date
E80: ="Cell "&SUBSTITUTE(CELL("address",H38),"$","")&" - the Debt Due on Termination Date as per Concession Agreement" -> Cell H38 - the Debt Due on Termination Date as per Concession Agreement
E81: ="Cell "&SUBSTITUTE(CELL("address",H39),"$","")&" - Insurance cover as per the Concession Agreement" -> Cell H39 - Insurance cover as per the Concession Agreement
E82: ="Cell "&SUBSTITUTE(CELL("address",H40),"$","")&" - Insurance claim in part of the Insurance cover are not admitted and paid." -> Cell H40 - Insurance claim in part of the Insurance cover are not admitted and paid.
B85: Wholesale Price Index (WPI) Details: | E85: ="Cell "&SUBSTITUTE(CELL("address",S37),"$","")&" - WPI of 1st day of the month of Appointed Date" -> Cell S37 - WPI of 1st day of the month of Appointed Date
E86: ="Cell "&SUBSTITUTE(CELL("address",S38),"$","")&" - latest monthly WPI of Termination Date" -> Cell S38 - latest monthly WPI of Termination Date
E87: ="Cell "&SUBSTITUTE(CELL("address",S39),"$","")&" - latest monthly WPI of COD" -> Cell S39 - latest monthly WPI of COD
B89: Key Dates | E89: ="Cell "&SUBSTITUTE(CELL("address",H26),"$","")&" - Appointed Date of the Project" -> Cell H26 - Appointed Date of the Project
E90: ="Cell "&SUBSTITUTE(CELL("address",H27),"$","")&" - Termination Date" -> Cell H27 - Termination Date
B92: Option | E92: ="Cell "&SUBSTITUTE(CELL("address",B18),"$","")&" - various reasons for Termination, the adequate reason to be selected." -> Cell B18 - various reasons for Termination, the adequate reason to be selected.
B94: Results | E94: ="Cell "&SUBSTITUTE(CELL("address",S32),"$","")&" - indicates the estimated Termination Payment on Termination Date." -> Cell S32 - indicates the estimated Termination Payment on Termination Date.
A101: //End

Sheet Road_TP_BOT_Workings (hidden)
A1: Workings | F1: Project particulars to be filled in by PSA | G1: Project Particulars
F2: Inputs | G2: Inputs from other sheets
F3: Outputs | G3: Major Calculation
F4: Feeded inputs as per MCA | G4: Feeded inputs as per MCA
F5: To be filled in by PSA for Customised CA | G5: Inputs to be changed in case of customised CA
A7: INPUTS
C9: Dep Calc Dummy 1 for % Reduction per Month | E9: 100 | F9: dummy - Proposal, Article 48, Notes
C10: Dep Calc Dummy 2 for % Reduction per Month | E10: 100 | F10: dummy - Proposal, Article 48, Notes
C11: Insurance Claim Limit | E11: 0.8 | F11: % - Proposal, Article 34, Notes
A14: GENERATION OF NORMS ON ADJUSTED EQUITY (AS SHOWN ON DASHBOARD)
C16: Termination Period
D18: Termination Date | F18: =Road_TP_BOT_Dashboard!S47 -> 2020-02-20 | G18: Date
D19: Months in a year | F19: =rngMthsYr -> 12 | G19: Months
D20: Post 4th Anniversary phase tenure (dummy) | F20: 99 | G20: Years
C22: Project Phases | D22: Start | E22: End | F22: Termination flag | G22: Norms | H22: Clause
C24: On or before COD | E24: =Road_TP_BOT_Dashboard!S46 -> 2020-04-01 | F24: =IF(AND($F$18>=D24,$F$18<=E24),1,0) -> 1 | G24: On or before COD: The Adjusted Equity shall be a sum equal to the Equity funded and expended on the Project, revised to the extent of one half of the variation in WPI occurring between the first day of the month of Appointed Date and the Reference Date | H24: Proposal, Article 48
C25: Between COD and 4th Anniversary | D25: =E24+1 -> 2020-04-02 | E25: =Road_TP_BOT_Dashboard!S56 -> 2024-03-31 | F25: =IF(AND($F$18>=D25,$F$18<=E25),1,0) -> 0 | G25: From COD and until the 4th anniversary: Amount equal to the Adjusted Equity as on COD shall be deemed to be the base (the Base Adjusted Equity) and the Adjusted Equity hereunder shall be a sum equal to the Base Adjusted Equity, revised at the commencement of each month following COD to the extent of variation in WPI occurring between COD and the Reference Date | H25: Proposal, Article 48
C26: Post 4th Anniversary | D26: =E25+1 -> 2024-04-01 | E26: =EOMONTH(D26,F20*F19) -> 2123-04-30 | F26: 0 | G26: After the 4th anniversary of COD: The Adjusted Equity hereunder shall be a sum equal to the Base Adjusted Equity, reduced by a factor (arrived at upon dividing 100 by the number of months comprising the Concession Period), thereof at the commencement of each month following the 4th anniversary of COD and the amount so arrived at shall be revised to the extent of variation in WPI occurring between COD and the Reference Date | H26: Proposal, Article 48
C28: =INDEX($C$24:$C$26,F28) -> On or before COD | F28: =MATCH(1,$F$24:$F$26,0) -> 1 | G28: =INDEX($G$24:$G$26,F28) -> On or before COD: The Adjusted Equity shall be a sum equal to the Equity funded and expended on the Project, revised to the extent of one half of the variation in WPI occurring between the first day of the month of Appointed Date and the Reference Date
C30: Termination Period active in project phase | G30: =F28 -> 1 | H30: #
C31: Termination Period | G31: =C28 -> On or before COD | H31: Text
A33: Base Adjusted Equity at COD
C35: WPI at the Time of Appointed Date | E35: =E220 -> 109.7 | F35: #
C36: WPI at the Time of Commercial Operations Date (COD) | E36: =E222 -> 123.4 | F36: #
C37: WPI growth rate - Appointed date & COD | E37: =IF(E35=0,0,(E36-E35)/E35) -> 0.1248860529 | F37: % p.a.
C39: WPI growth rate - Appointed date & COD | E39: =E37 -> 0.1248860529 | F39: % p.a.
C40: Semis in a year | E40: =Settings!C31 -> 2 | F40: semis
C41: WPI growth rate - Appointed date & COD - semi | E41: =E39/E40 -> 0.06244302644 | F41: % p.semi
C43: WPI growth rate - Appointed date & COD - semi | E43: =E41 -> 0.06244302644 | F43: % p.semi
C44: Equity Infused | E44: =Road_TP_BOT_Dashboard!H37 -> 100 | F44: INR Crs
C45: Base Adjusted Equity at COD | E45: =E44*(1+E43) -> 106.2443026 | F45: INR Crs
A48: % Reduction per Month
C50: Dep Calc Dummy 1 | E50: =E9 -> 100 | F50: dummy - Proposal, Article 48, Notes
C51: Dep Calc Dummy 2 | E51: =E10 -> 100 | F51: dummy - Proposal, Article 48, Notes
C52: Months in a year | E52: =rngMthsYr -> 12 | F52: months
C53: Concession Period (years) | E53: =Road_TP_BOT_Dashboard!H24 -> 30 | F53: years
C54: % Reduction per Month | E54: =E50/(E53*E52)/E51 -> 0.002777777778 | F54: %
C56: No. of months from 4th Anniversary of COD
C58: Days in a month | E58: =rngMthDays -> 30 | F58: days
C59: Termination Date | E59: =Road_TP_BOT_Dashboard!S47 -> 2020-02-20 | F59: date
C60: 4th Anniversary from COD | E60: =Road_TP_BOT_Dashboard!S56 -> 2024-03-31 | F60: date
C61: No. of months from 4th Anniversary of COD | E61: =MAX(ROUND((E59 - E60) / E58, 0), 0) -> 0 | F61: months
A63: ADJUSTED EQUITY
C65: Adjusted Equity - On or before COD
C66: WPI at the Time of Appointed Date | E66: =E35 -> 109.7 | F66: #
C67: WPI at the Time of Termination Date | E67: =E221 -> 121.8 | F67: #
C68: WPI growth rate - Appointed & Termination date | E68: =(E67-E66)/E66 -> 0.1103008204 | F68: % p.a.
C70: WPI growth rate - Appointed & Termination date | E70: =E68 -> 0.1103008204 | F70: % p.a.
C71: Semis in a year | E71: =E40 -> 2 | F71: semis
C72: WPI growth rate - Appointed & Termination date - semi | E72: =E70/E71 -> 0.05515041021 | F72: % p.semi
C74: WPI growth rate - Appointed & Termination date - semi | E74: =E72 -> 0.05515041021 | F74: % p.semi
C75: Equity Infused | E75: =Road_TP_BOT_Dashboard!H37 -> 100 | F75: INR Crs
C76: Adjusted Equity - On or before COD | E76: =E75*(1+E74) -> 105.515041 | F76: INR Crs
C79: Adjusted Equity - Between COD and 4th Anniversary
C81: WPI at the Time of Termination Date | E81: =E67 -> 121.8 | F81: #
C82: WPI at the Time of Commercial Operations Date (COD) | E82: =E36 -> 123.4 | F82: #
C83: WPI growth rate - COD & 4th Anniversary | E83: =(E81-E82)/E82 -> -0.01296596434 | F83: % p.a.
C85: WPI growth rate - COD & 4th Anniversary | E85: =E83 -> -0.01296596434 | F85: % p.a.
C86: Base Adjusted Equity at COD | E86: =E45 -> 106.2443026 | F86: INR Crs
C87: Adjusted Equity - Between COD and 4th Anniversary | E87: =E86*(1+E85) -> 104.8667428 | F87: INR Crs
C89: Adjusted Equity - Post 4th Anniversary
F90: %
C91: % Reduction per Month | E91: =E54 -> 0.002777777778 | F91: months
C92: No. of months from 4th Anniversary of COD | E92: =E61 -> 0 | F92: %
C93: Total reduction | E93: =E91*E92 -> 0
C95: Base Adjusted Equity at COD | E95: =E45 -> 106.2443026 | F95: INR Crs
C96: Total reduction | E96: =E93 -> 0 | F96: %
C97: WPI growth rate - COD & 4th Anniversary | E97: =E83 -> -0.01296596434 | F97: % p.a.
C98: Adjusted Equity - Post 4th Anniversary | E98: =E95*(1-E96)*(1+E97) -> 104.8667428 | F98: INR Crs
C100: Applicable Adjusted Equity
C102: Termination Period active in project phase | E102: =G30 -> 1 | F102: #
C103: Adjusted Equity - On or before COD | E103: =E76 -> 105.515041 | F103: INR Crs
C104: Adjusted Equity - Between COD and 4th Anniversary | E104: =E87 -> 104.8667428 | F104: INR Crs
C105: Adjusted Equity - Post 4th Anniversary | E105: =E98 -> 104.8667428 | F105: INR Crs
C106: Adjusted Equity | E106: =INDEX(E103:E105,E102) -> 105.515041 | F106: INR Crs
A109: GENERATION OF NORMS ON TERMINATION PAYMENT (AS SHOWN ON DASHBOARD)
C112: MCA Norms & Values | D112: Auto-filled | G112: Selected Option number | H112: =Road_TP_BOT_Dashboard!H18 -> 1 | I112: #
C113: To be filled in for Customised CA | D113: K116-122; L116-122; M116-122; N116-122; O116-122; P116-122 | G113: Termination Period active in project phase | H113: =G30 -> 1 | I113: #
C115: Risk event | D115: % of Debt Due as per MCA | E115: % of Adjusted Equity as per MCA | F115: Insurance Cover switch | G115: Insurance Claim switch | H115: Norms | I115: Norms - Non Termination | J115: Clauses as per MCA | K115: Debt due as per Customized CA | L115: Adjusted Equity as per Customized CA | M115: Insurance cover | N115: Insurance claim | O115: Any other Clause (please provide the value here)* | P115: Clauses as per the DCA/Signed CA
C116: Non-political FM Event | D116: 0.9 | E116: 0 | F116: 1 | G116: 1 | H116: If Termination is on account of a Non-Political Event, the Authority shall make a Termination Payment to the Concessionaire in an amount equal to 90% of the Debt Due less Insurance Cover. | I116: NA | J116: Proposal, Article 34 & 37 | K116: 1 | L116: 0
C117: Indirect Political FM Event | D117: 1 | E117: 1.1 | F117: 1 | G117: 1 | H117: If Termination is on account of an Indirect Political Event, the Authority shall make a Termination Payment to the Concessionaire in an amount equal to: (a)Debt Due less Insurance Cover; provided that if any insurance claims forming part of the Insurance Cover are not admitted and paid, then 80% of such unpaid claims shall be included in the computation of Debt Due; and (b) 110% of the Adjusted Equity. | I117: Upon occurrence of an Indirect Political Event, all Force Majeure Costs attributable to such Indirect Political Event, and not exceeding the Insurance Cover for such Indirect Political Event, shall be borne by the Concessionaire, and to the extent Force Majeure Costs exceed such Insurance Cover, one half of such excess amount shall be reimbursed by the Authority to the Concessionaire | J117: Proposal, Article 34 & 37 | K117: 0.8 | L117: 1.5
C118: Political FM Event | D118: 1 | E118: 1.5 | F118: 1 | G118: 1 | H118: If Termination is on account of a Political Event, the Authority shall make Termination Payment equal to:(a)Debt Due; and (b)150% of the Adjusted Equity. | J118: Proposal, Article 34 & 37 | K118: 0.9 | L118: 1
C119: Authority Default | D119: 1 | E119: 1.5 | F119: 1 | G119: 1 | H119: If Termination is on account of a Authority Default, the Authority shall make Termination Payment equal to:(a)Debt Due; and (b)150% of the Adjusted Equity. | I119: NA | J119: Proposal, Article 34 & 37 | K119: 0.9 | L119: 1
C120: Concessionaire Default | D120: 0.9 | E120: 0 | F120: 1 | G120: 1 | H120: If Termination is on account of a Concessionaire Default, the Authority shall pay to the Concessionaire, an amount equal to 90% of the Debe Due less Insurance Cover; provided that if any insurance claims forming part of the Insurance Cover are not admitted and paid, then 80% of such unpaid claims shall be included in the computation of Debt Due | I120: NA | J120: Proposal, Article 34 & 37 | K120: 0.9 | L120: 1 | O120: 100
C121: AD Pending | D121: 0 | E121: 0 | F121: 0 | G121: 0 | H121: 0% - For the avoidance of doubt, the Concessionaire hereby acknowledges that no Termination Payment shall be due or payable on account of a Concessionaire Default occurring prior to COD | I121: NA | J121: Proposal, Article 34 & 37 | K121: 0.9 | L121: 1
C122: Underconstruction | D122: 0 | E122: 0 | F122: 0 | G122: 0 | H122: 0% - For the avoidance of doubt, the Concessionaire hereby acknowledges that no Termination Payment shall be due or payable on account of a Concessionaire Default occurring prior to COD | I122: NA | J122: Proposal, Article 34 & 37 | K122: 0.9 | L122: 1
C123: *Please provide details of the additional Clause, if any
B125: Model Concession Agreement | C125: =INDEX(C$116:C$122,$H$112) -> Non-political FM Event | D125: =INDEX(D$116:D$122,$H$112) -> 0.9 | E125: =INDEX(E$116:E$122,$H$112) -> 0 | F125: =INDEX(F$116:F$123,$H$112) -> 1 | G125: =INDEX(G$116:G$123,$H$112) -> 1 | H125: =INDEX(H$116:H$123,$H$112) -> If Termination is on account of a Non-Political Event, the Authority shall make a Termination Payment to the Concessionaire in an amount equal to 90% of the Debt Due less Insurance Cover. | I125: =INDEX(I$116:I$123,$H$112) -> NA
B126: Customised CA | C126: =INDEX(C$116:C$122,$H$112) -> Non-political FM Event | D126: =INDEX(K$116:K$122,$H$112) -> 1 | E126: =INDEX(L$116:L$122,$H$112) -> 0 | F126: =INDEX(M$116:M$122,$H$112) -> 0 | G126: =INDEX(N$116:N$122,$H$112) -> 0 | H126: =INDEX(O$116:O$122,$H$112) -> 0 | I126: =INDEX(P$116:P$122,$H$112) -> 0
D128: Based on MCA | F128: Customised CA
C129: Selected option | D129: =TRANSPOSE(C125:G125) -> Non-political FM Event | E129: text | F129: =TRANSPOSE(C126:H126) -> Non-political FM Event
C130: % of Debt Due | D130: 0.9 | E130: % | F130: 1 | G130: % to be added
C131: % of Adjusted Equity | D131: 0 | E131: % | F131: 0 | G131: % to be added
C132: Insurance Cover switch | D132: 1 | E132: 1=On; 0=Off | F132: 0
C133: Insurance Claim switch | D133: 1 | E133: 1=On; 0=Off | F133: 0
C134: Any other Clause | F134: 0
A135: Insurance
E136: Based on MCA | G136: Customised CA
C137: Insurance Cover | E137: =Road_TP_BOT_Dashboard!H39 -> 100 | F137: INR Crs | G137: =Road_TP_BOT_Dashboard!H39 -> 100 | H137: INR Crs
C138: Insurance Cover switch | E138: =D132 -> 1 | F138: 1=On; 0=Off | G138: =F132 -> 0
C139: Insurance Cover (INR Crs) | E139: =E137*E138 -> 100 | F139: INR Crs | G139: =G137*G138 -> 0
C141: Insurance Claim Limit | E141: =E11 -> 0.8 | F141: % - Proposal, Article 34, Notes | G141: =E11 -> 0.8 | H141: % as per Customised CA
C142: Insurance Claims (not admitted and paid) | E142: =Road_TP_BOT_Dashboard!H40 -> 50 | F142: INR Crs | G142: =Road_TP_BOT_Dashboard!H40 -> 50 | H142: INR Crs
C143: Insurance Claim switch | E143: =D133 -> 1 | F143: 1=On; 0=Off | G143: =F133 -> 0
C144: Insurance Claims | E144: =E142*E143*E141 -> 40 | F144: INR Crs | G144: =G141*G142*G143 -> 0 | H144: INR Crs
A146: Termination Payment
C148: Insurance Cover | E148: =Road_TP_BOT_Dashboard!H39 -> 100 | F148: INR Crs | G148: =Road_TP_BOT_Dashboard!H39 -> 100 | H148: INR Crs
C149: Insurance Claims | E149: =E144 -> 40 | F149: INR Crs | G149: =G144 -> 0 | H149: INR Crs
C150: Unclaimed Insurance Cover | E150: =E148-E149 -> 60 | F150: INR Crs | G150: =G148-G149 -> 100 | H150: INR Crs
C152: Debt Due | E152: =Road_TP_BOT_Dashboard!H38 -> 200 | F152: INR Crs | G152: =Road_TP_BOT_Dashboard!H38 -> 200 | H152: INR Crs
C153: Unclaimed Insurance Cover | E153: =E150 -> 60 | F153: INR Crs | G153: =G150 -> 100 | H153: INR Crs
C154: Net Debt Due | E154: =E152 -> 200 | F154: INR Crs | G154: =G152 -> 200 | H154: INR Crs
C156: % of Debt Due | E156: =D130 -> 0.9 | F156: % | G156: =F130 -> 1 | H156: %
C157: Net Debt Due | E157: =E154 -> 200 | F157: INR Crs | G157: =G154 -> 200 | H157: INR Crs
C158: Termination Payment - Debt | E158: =((E157*E156)-E153) -> 120 | F158: INR Crs | G158: =((G157*G156)-G153) -> 100 | H158: INR Crs
C160: % of Adjusted Equity | E160: =D131 -> 0 | F160: % | G160: =F131 -> 0 | H160: %
C161: Adjusted Equity | E161: =E106 -> 105.515041 | F161: INR Crs | G161: =E106 -> 105.515041 | H161: INR Crs
C162: Termination Payment - Adjusted Equity | E162: =E161*E160 -> 0 | F162: INR Crs | G162: =G160*G161 -> 0 | H162: INR Crs
C164: Termination Payment - Debt | E164: =E158 -> 120 | F164: INR Crs | G164: =G158 -> 100 | H164: INR Crs
C165: Termination Payment - Adjusted Equity | E165: =E162 -> 0 | F165: INR Crs | G165: =G162 -> 0 | H165: INR Crs
C166: Termination Payment | E166: =IF(H112=6,0, IF(H112=7, 0, SUM(E164:E165))) -> 120 | F166: INR Crs | G166: =G164+G165+F134 -> 100 | H166: INR Crs
A169: WHOLESALE PRICE INDEX (WPI)
C171: WPI Inputs
C173: Source: GOI, Ministry of Commerce & Industry
C174: File Name: Annual Average of Monthly Index (Financial Year 2012-13 Onwards)
C175: Link: https://eaindustry.nic.in/download_data_1112.asp
C177: Do not delete the cells below
C178: Year | D178: WHOLESALE PRICE INDEX
C179: 2011 | D179: 100
C180: 2012 | D180: 106.9
C181: 2013 | D181: 112.5
C182: 2014 | D182: 113.9
C183: 2015 | D183: 109.7
C184: 2016 | D184: 111.6
C185: 2017 | D185: 114.9
C186: 2018 | D186: 119.8
C187: 2019 | D187: 121.8
C188: 2020 | D188: 123.4
C189: 2021 | D189: 139.4
C190: 2022 | D190: 0
C191: 2023 | D191: 0
C192: 2024 | D192: 0
C193: 2025 | D193: 0
C194: 2026 | D194: 0
C195: 2027 | D195: 0
C196: 2028 | D196: 0
C197: 2029 | D197: 0
C198: 2030 | D198: 0
C199: =C198+1 -> 2031 | D199: 0
C200: =C199+1 -> 2032 | D200: 0
C201: 2033 | D201: 0
C202: 2034 | D202: 0
C203: 2035 | D203: 0
C204: 2036 | D204: 0
C205: 2037 | D205: 0
C206: 2038 | D206: 0
C207: 2039 | D207: 0
C208: 2040 | D208: 0
C210: Appointed Date | E210: =Road_TP_BOT_Dashboard!S44 -> 2015-04-01 | F210: date
C211: Termination Date | E211: =Road_TP_BOT_Dashboard!S47 -> 2020-02-20 | F211: date
C212: Commercial Operations Date (COD) | E212: =Road_TP_BOT_Dashboard!S46 -> 2020-04-01 | F212: date
C214: Financial year end month number | E214: =rngYrEnd -> 3 | F214: month #
C216: Appointed Date year | E216: =IF(MONTH(E210)>$E$214,YEAR(E210),YEAR(E210)-1) -> 2015 | F216: year
C217: Termination Date year | E217: =IF(MONTH(E211)>$E$214,YEAR(E211),YEAR(E211)-1) -> 2019 | F217: year
C218: Commercial Operations Date (COD) year | E218: 2020 | F218: year
C220: WPI at the Time of Appointed Date | E220: =_xlfn.XLOOKUP(E216,$C$179:$C$208,$D$179:$D$208,"NA") -> 109.7 | F220: #
C221: WPI at the Time of Termination Date | E221: =_xlfn.XLOOKUP(E217,$C$179:$C$208,$D$179:$D$208,"NA") -> 121.8 | F221: #
C222: WPI at the Time of Commercial Operations Date (COD) | E222: 123.4 | F222: #
A225: Graph Data
D227: Timeline Graph Data
D228: Project Days | E228: Days | F228: URN | G228: Sorted URN | H228: Project Days | I228: Days | J228: Dummy
D229: =Road_TP_BOT_Dashboard!M44 -> Appointed Date | E229: =Road_TP_BOT_Dashboard!S44 -> 2015-04-01 | F229: =E229&D229 -> 42095Appointed Date | G229: =_xlfn._xlws.SORT(F229:F233,1,1) -> 42095Appointed Date | H229: =INDEX($D$229:$D$233,MATCH(G229,$F$229:$F$233,0)) -> Appointed Date | I229: =INDEX($E$229:$E$233,MATCH(G229,$F$229:$F$233,0)) -> 2015-04-01 | J229: 1
D230: =Road_TP_BOT_Dashboard!M45 -> Date of Construction Completion | E230: =Road_TP_BOT_Dashboard!S45 -> 2020-03-31 | F230: =E230&D230 -> 43921Date of Construction Completion | G230: 43881Termination Date | H230: =INDEX($D$229:$D$233,MATCH(G230,$F$229:$F$233,0)) -> Termination Date | I230: =INDEX($E$229:$E$233,MATCH(G230,$F$229:$F$233,0)) -> 2020-02-20 | J230: 1
D231: =Road_TP_BOT_Dashboard!M46 -> Commercial Operations Date (COD) | E231: =Road_TP_BOT_Dashboard!S46 -> 2020-04-01 | F231: 43922Commercial Operations Date (COD) | G231: 43921Date of Construction Completion | H231: Date of Construction Completion | I231: 2020-03-31 | J231: 1
D232: =Road_TP_BOT_Dashboard!M47 -> Termination Date | E232: =Road_TP_BOT_Dashboard!S47 -> 2020-02-20 | F232: 43881Termination Date | G232: 43922Commercial Operations Date (COD) | H232: Commercial Operations Date (COD) | I232: 2020-04-01 | J232: 1
D233: =Road_TP_BOT_Dashboard!M56 -> 4th Anniversary from COD | E233: =Road_TP_BOT_Dashboard!S56 -> 2024-03-31 | F233: =E233&D233 -> 453824th Anniversary from COD | G233: 453824th Anniversary from COD | H233: 4th Anniversary from COD | I233: 2024-03-31 | J233: 1
D236: Pie Chart Data
D237: Particulars | E237: Amount
D238: =Road_TP_BOT_Dashboard!B38 -> Debt Due | E238: =Road_TP_BOT_Dashboard!H38 -> 200
D239: =Road_TP_BOT_Dashboard!B37 -> Equity Infused | E239: =Road_TP_BOT_Dashboard!H37 -> 100
D240: Grant | E240: 0
D241: =Road_TP_BOT_Dashboard!M32 -> Termination Payment | E241: =Road_TP_BOT_Dashboard!S32 -> 100
A245: // End

Sheet Road_VT_BOT_Dashboard (hidden)
A1: Dashboard
A2: Key Inputs | L2: Key Outputs
C6: Change in CP / Revenue Share
C11: You selected | E11: 1
B16: Project Particulars
B18: Construction Period (months) | H18: 30
B19: Concession Period (yrs) | H19: 30
B20: Last Capex Payment Month | H20: 30 | M20: Result
B21: Appointed Date | H21: 2015-04-01 | M21: Compensation for competing roads | S21: =IF(E11=3,(H22-H23)*((ROUND((TODAY()-$H$24)/rngMthDays,0)))*0.5%,0) -> 0
B22: Average Daily Realisable Fees | M22: =IF( S22= H19, "Concession Period (yrs)", "Revised Concession Period (yrs)" ) -> Revised Concession Period (yrs) | S22: =Road_VT_BOT_Workings!E50 -> 33.3
B23: Projected Fees | M23: Revenue Share Date | S23: =Road_VT_BOT_Workings!E67 -> NA
B24: Date when competing road achived COD | M24: Revenue Share | S24: =Road_VT_BOT_Workings!E56 -> NA
B25: =HYPERLINK("#'" & RIGHT(CELL("FILENAME", Road_VT_BOT_Workings!$A$90), LEN(CELL("FILENAME", Road_VT_BOT_Workings!$A$90)) - SEARCH("]", CELL("FILENAME", Road_VT_BOT_Workings!$A$90))) & "'!" & MID(CELL("address", Road_VT_BOT_Workings!$A$90), SEARCH("!", CELL("address", Road_VT_BOT_Workings!$A$90)) + 1, LEN(CELL("address", Road_VT_BOT_Workings!$A$90)) - SEARCH("!", CELL("address", Road_VT_BOT_Workings!$A$90))), "Click here to update Norms.") -> Click here to update Norms. | M25: Selected Option | S25: =IF(E11=1,"Revenue",IF(E11=2,"CP","Compensation for Competing Roads")) -> Revenue
B26: =HYPERLINK("#'" & RIGHT(CELL("FILENAME", Road_VT_BOT_Workings!$A$8), LEN(CELL("FILENAME", Road_VT_BOT_Workings!$A$8)) - SEARCH("]", CELL("FILENAME", Road_VT_BOT_Workings!$A$8))) & "'!" & MID(CELL("address", Road_VT_BOT_Workings!$A$8), SEARCH("!", CELL("address", Road_VT_BOT_Workings!$A$8)) + 1, LEN(CELL("address", Road_VT_BOT_Workings!$A$8)) - SEARCH("!", CELL("address", Road_VT_BOT_Workings!$A$8))), "Click here to update Inputs") -> Click here to update Inputs
M27: Increase / Decrease in CP
B28: Traffic Details
M29: % Difference | S29: =IF(H31=0,0,(H32-H31)/H31) -> -0.1176470588
B30: Target Date | H30: 2022-10-01 | M30: % Increase / Decrease in CP | S30: =Road_VT_BOT_Workings!E28 -> 0.11
B31: Target PCUs | H31: 17000 | M31: % Incr / Decr (subjected to ceilings) | S31: =Road_VT_BOT_Workings!E33 -> 0.11
B32: Actual Traffic on Target Date | H32: 15000 | M32: Increase / Decrease in CP (yrs) | S32: =S31*H19 -> 3.3
M34: Key Dates
B36: Project Timeline | M36: Appointed Date | S36: =H21 -> 2015-04-01
M37: Date of Construction Completion | S37: =EDATE(S36,H18)-1 -> 2017-09-30
M38: Commercial Operations Date (COD) | S38: =S37+1 -> 2017-10-01
M39: Termination Date | S39: =EDATE(S36,S22*rngMthsYr)-1 -> 2048-06-30
M40: First Financial Year Ending | S40: =DATE(IF(MONTH(S36)>rngYrEnd,YEAR(S36)+1,YEAR(S36)),rngYrEnd,rngYrEndDay) -> 2016-03-31
M41: No. of months in first Financial Year | S41: =ROUND((S40-S36)/rngMthDays,0) -> 12
M42: Construction Ending Financial Year | S42: =DATE(IF(MONTH(S37)>rngYrEnd,YEAR(S37)+1,YEAR(S37)),rngYrEnd,rngYrEndDay) -> 2018-03-31
M43: Construction Ending Financial Year No. | S43: =YEAR(S42)-YEAR(S40)+1 -> 3
M44: No. of operational months in Cons Ending FY | S44: =ROUND((S42-S37)/rngMthDays,0) -> 6
M45: Last Financial Year Ending | S45: =DATE(IF(MONTH(S39)>rngYrEnd,YEAR(S39)+1,YEAR(S39)),rngYrEnd,rngYrEndDay) -> 2049-03-31
M46: Last Financial Year Ending No. | S46: =YEAR(S45)-YEAR(S40)+1 -> 34
M47: No. of months in last Financial Year | S47: =rngMthsYr-ROUND((S45-S39)/rngMthDays,0) -> 3
A49: Norms
B51: Norms on Variation in Traffic | L51: Norms on Premium
C52: =Road_VT_BOT_Workings!I120 -> For every 1.00% shortage of actual average traffic from target PCUs, the CP is increased by a multiple of 1.00% with an upper ceiling of 20.00% | M52: =Road_VT_BOT_Workings!D116 -> Concessionaire has chosen to pay 0.00% revenue on the Realisable Fee.
A57: Instructions
L60: Legend
B61: General | E61: Project details need to be entered in the yellow marked cells.
N63: Input Cell
B64: Project Particulars | E64: ="Cell "&SUBSTITUTE(CELL("address",H18),"$","")&" - Construction Period" -> Cell H18 - Construction Period | N64: Results
E65: ="Cell "&SUBSTITUTE(CELL("address",H19),"$","")&" - Concession Period" -> Cell H19 - Concession Period | M65: Units | N65: Amount are in Rs. Cr
E66: ="Cell "&SUBSTITUTE(CELL("address",H20),"$","")&" - the month in which the last capex was/ has to be released." -> Cell H20 - the month in which the last capex was/ has to be released.
B68: Traffic Details | E68: ="Cell "&SUBSTITUTE(CELL("address",H30),"$","")&" - the target date as mentioned in the Concession Agreement" -> Cell H30 - the target date as mentioned in the Concession Agreement
E69: ="Cell "&SUBSTITUTE(CELL("address",H31),"$","")&" - the target PCUs as mentioned in the Concession Agreement" -> Cell H31 - the target PCUs as mentioned in the Concession Agreement
E70: ="Cell "&SUBSTITUTE(CELL("address",H32),"$","")&" - actual traffic at the target date as per Traffic Survey" -> Cell H32 - actual traffic at the target date as per Traffic Survey
E71: ="Cell "&SUBSTITUTE(CELL("address",S22),"$","")&" - revised concession period in years." -> Cell S22 - revised concession period in years.
B73: Increase/Decrease in CP Details | E73: ="Cell "&SUBSTITUTE(CELL("address",S29),"$","")&" - % Difference" -> Cell S29 - % Difference
E74: ="Cell "&SUBSTITUTE(CELL("address",S30),"$","")&" - % Increase/ Decrease in CP" -> Cell S30 - % Increase/ Decrease in CP
E75: ="Cell "&SUBSTITUTE(CELL("address",S31),"$","")&" - % Increase/ Decrease subject to limits" -> Cell S31 - % Increase/ Decrease subject to limits
E76: ="Cell "&SUBSTITUTE(CELL("address",S32),"$","")&" - % Increase/ Decrease in CP years" -> Cell S32 - % Increase/ Decrease in CP years
B78: Key Dates | E78: ="Cell "&SUBSTITUTE(CELL("address",H21),"$","")&" - Appointed Date of the Project" -> Cell H21 - Appointed Date of the Project
E79: ="Cell "&SUBSTITUTE(CELL("address",S39),"$","")&" - Termination Date" -> Cell S39 - Termination Date
B81: Option | E81: ="Cell "&SUBSTITUTE(CELL("address",C6),"$","")&" - Options for Adjustment 1. Change in Concession Period - In case of adjustment in Concession Period please select 'CP' Option. 2. Revenue Share - In case of Revenue Share please select 'Revenue' Option " -> Cell C6 - Options for Adjustment 1. Change in Concession Period - In case of adjustment in Concession Period please select 'CP' Option. 2. Revenue Share - In case of Revenue Share please select 'Revenue' Option
B86: Results | E86: ="Cell "&SUBSTITUTE(CELL("address",S22),"$","")&" - indicates the revised concession period." -> Cell S22 - indicates the revised concession period.
A93: //End

Sheet Road_VT_BOT_Workings (hidden)
A1: Workings
F2: Inputs | G2: Inputs from other sheets
F3: Calculation | G3: Major Calculation
F4: Inputs | G4: Manual Inputs
F5: Inputs | G5: Hardcoded Values
A8: INPUTS
C10: Shortage in traffic multiplier | E10: 0.01 | F10: % - Input related to Norms, do not change
C11: Excess in traffic multiplier | E11: 0.01 | F11: % - Input related to Norms, do not change
C12: Lower tolerance % for variation in traffic | E12: 0 | F12: % - Input related to Norms, do not change
C13: % increase in CP for every 1 % shortfall of actual traffic | E13: 0.01 | F13: % - Input related to Norms, do not change
C14: Upper tolerance % for variation in traffic | E14: 0.05 | F14: % - Input related to Norms, do not change
C15: % decrease in CP for every 1 % excess of actual traffic | E15: 0.01 | F15: % - Input related to Norms, do not change
C16: Floor for CP in case of excess | E16: -0.1 | F16: % - Input related to Norms, do not change
C17: Ceiling for CP in case of shortage | E17: 0.2 | F17: % - Input related to Norms, do not change
C18: Revenue share % | E18: 0.25 | F18: % - Input related to Norms, do not change
C20: Option 1 | E20: CP | F20: text
C21: Option 2 | E21: Revenue | F21: text
A23: CHANGES IN CP
C25: % Difference | E25: =Road_VT_BOT_Dashboard!S29 -> -0.1176470588 | F25: %
C26: Decrease in CP % | E26: =E82 -> 0 | F26: %
C27: Increase in CP % | E27: =E74 -> 0.11 | F27: %
C28: % Increase / Decrease in CP | E28: =IF(E25 > 0, E26, E27) -> 0.11 | F28: %
C30: % Difference | E30: =E25 -> -0.1176470588 | F30: %
C31: Decrease subjected to floor | E31: =E83 -> 0 | F31: %
C32: Increase subjected to ceiling | E32: =E87 -> 0.11 | F32: %
C33: % Incr / Decr (subjected to ceilings) | E33: =IF(E30 > 0, E31, E32) -> 0.11 | F33: %
A35: RESULT
C37: Selected Option | E37: =Road_VT_BOT_Dashboard!S25 -> Revenue | F37: text
C39: Increase / Decrease in CP (yrs) | E39: =Road_VT_BOT_Dashboard!S32 -> 3.3 | F39: years
C40: Option 1 | E40: =E20 -> CP | F40: text
C41: Selected Option | E41: =E37 -> Revenue | F41: text
C42: Change in CP - CP case; decrease in CP | E42: =IF(AND(E41 = E40, E39 < 0), E39, 0) -> 0 | F42: years
C44: Increase / Decrease in CP (yrs) | E44: =E39 -> 3.3 | F44: years
C45: Change in CP - increase in CP | E45: =IF(E44 > 0, E44, 0) -> 3.3 | F45: years
C47: Concession Period (years) | E47: =Road_VT_BOT_Dashboard!H19 -> 30 | F47: years
C48: Change in CP - CP case; decrease in CP | E48: =E42 -> 0 | F48: years
C49: Change in CP - increase in CP | E49: =E45 -> 3.3 | F49: years
C50: Revised Concession Period (yrs) | E50: =SUM(E47:E49) -> 33.3 | F50: years
C52: Revenue share % | E52: =E18 -> 0.25 | F52: %
C53: Increase / Decrease in CP (yrs) | E53: =E39 -> 3.3 | F53: years
C54: Option 2 | E54: =E21 -> Revenue | F54: text
C55: Selected Option | E55: =E37 -> Revenue | F55: text
C56: Revenue Share | E56: =IF(AND(E53 < 0, E55 = E54), E52, "NA") -> NA | F56: %
C58: Months in a year | E58: =rngMthsYr -> 12 | F58: months
C59: Concession Period (years) | E59: =Road_VT_BOT_Dashboard!H19 -> 30 | F59: years
C60: Increase / Decrease in CP (yrs) | E60: =E39 -> 3.3 | F60: years
C61: Revised Concession Period | E61: =IF(E60 < 0, SUM(E59:E60) * E58, 0) -> 0 | F61: months
C63: Revenue share % | E63: =E18 -> 0.25 | F63: %
C64: Revised Concession Period | E64: =E61 -> 0 | F64: months
C65: Appointed Date | E65: =Road_VT_BOT_Dashboard!S36 -> 2015-04-01 | F65: date
C66: Revenue Share | E66: =E56 -> NA | F66: %
C67: Revenue Share Date | E67: =IF(E66 = E63, EDATE(E65, E64), "NA") -> NA | F67: date
A69: INPUTS FOR INCREASE / DESCREASE IN CP
C71: % Difference | E71: =Road_VT_BOT_Dashboard!S29 -> -0.1176470588 | F71: %
C72: Lower tolerance % for variation in traffic | E72: =E12 -> 0 | F72: %
C73: % increase in CP for every 1 % shortfall of actual traffic | E73: =E13 -> 0.01 | F73: %
C74: Increase in CP % | E74: =(E$71 < E$72) * ROUNDDOWN(( -E$71 * 100), 0) * E$73 -> 0.11 | F74: %
C76: % Difference | E76: =E71 -> -0.1176470588 | F76: %
C77: Upper tolerance % for variation in traffic | E77: =E14 -> 0.05 | F77: %
C78: % decrease in CP for every 1 % excess of actual traffic | E78: =E15 -> 0.01 | F78: %
C79: Decrease in CP % | E79: =(E76 > E$77) * ROUNDDOWN(( - E76 * 100 ), 0) * E$78 -> 0 | F79: %
C81: Floor for CP in case of excess | E81: =E16 -> -0.1 | F81: %
C82: Decrease in CP % | E82: =E79 -> 0 | F82: %
C83: Decrease subjected to floor | E83: =(E$82 < 0) * MAX(E$82, E$81) -> 0 | F83: %
C85: Ceiling for CP in case of shortage | E85: =E17 -> 0.2 | F85: %
C86: Increase in CP % | E86: =E74 -> 0.11 | F86: %
C87: Increase subjected to ceiling | E87: =(E$86 > 0%) * MIN(E$86, E$85) -> 0.11 | F87: %
A90: Norms
C92: Premium | H92: Traffic
D94: Revenue share % | F94: =E18 -> 0.25 | G94: % | I94: Ceiling for CP in case of shortage | K94: =E17 -> 0.2 | L94: %
D95: Revenue share % : No reduction in Consession Period | F95: 0 | G95: % | I95: Shortage in traffic multiplier | K95: =E10 -> 0.01 | L95: %
D96: Revenue share %: Final Case | F96: =IF(E71>0, F94,F95) -> 0 | G96: % | I96: % increase in CP for every 1 % shortfall of actual traffic | K96: =E13 -> 0.01 | L96: %
D99: ="Concessionaire has chosen to pay "&TEXT(F96, "0.00%") &" revenue on the Realisable Fee." -> Concessionaire has chosen to pay 0.00% revenue on the Realisable Fee. | G99: Text | I99: ="For every "& TEXT($K$95, "0.00%") &" shortage of actual average traffic from target PCUs, the CP is increased by a multiple of "&TEXT( $K$96, "0.00%") &" with an upper ceiling of "& TEXT($K$94, "0.00%") -> For every 1.00% shortage of actual average traffic from target PCUs, the CP is increased by a multiple of 1.00% with an upper ceiling of 20.00% | L99: Text
D103: Decrease/Increase subjected to floor/ceiling | F103: =IF(E71<0,E87,E83) -> 0.11 | G103: % | I103: Excess in traffic multiplier | K103: =E11 -> 0.01 | L103: %
I104: % decrease in CP for every 1 % excess of actual traffic | K104: 0.01 | L104: %
D105: ="Concessionaire has chosen to revise the concession period. Hence, the Concession Period is revised by "&TEXT(F103, "0.00%") -> Concessionaire has chosen to revise the concession period. Hence, the Concession Period is revised by 11.00% | G105: Text | I105: Floor for CP in case of excess | K105: =E16 -> -0.1 | L105: %
I107: ="For every "&TEXT($K$103, "0.00%")&" excess of actual average traffic from target PCUs, the CP is reduced by a multiple of "&TEXT($K$104, "0.00%") &" with an upper ceiling of "&TEXT($K$105, "0.00%") -> For every 1.00% excess of actual average traffic from target PCUs, the CP is reduced by a multiple of 1.00% with an upper ceiling of -10.00% | L107: Text
D108: If 'Compensation for Competing Roads' is selected
D110: Subject to the provisions of Clause 35.6, in the event that an Additional Tollway or a Competing Road, as the case may be, is opened to traffic in breach of this Agreement, the Authority shall pay to the Concessionaire, for each day of breach, compensation in a sum equal to the difference between the average daily Realisable Fee and the projected daily Fee (the "Projected Fee") until the breach is cured. The Projected Fee hereunder shall be an amount equal to the Average Daily Fee, increased at the close of every month by 0.5% (zero point five per cent) thereof and revised in accordance with Clawe 27.2. For the avoidance of doubt, the Average Daily Fee for the purposes of this Clause shall be the amount so determined in respect of the Accounting Year or period, as the case may be, occurring prior to such opening or operation of an Additional Tollway or a Competing Road, as the case may be. | I110: Lower tolerance % for variation in traffic | K110: =E12 -> 0 | L110: %
I111: Upper tolerance % for variation in traffic | K111: 0.05 | L111: %
I113: ="Since the change in traffic is between " & TEXT($K$110, "0.00%") & " and " & TEXT($K$111, "0.00%") & " there is no change in the Concession Period" -> Since the change in traffic is between 0.00% and 5.00% there is no change in the Concession Period | L113: Text
D114: Selected Option | F114: =Road_VT_BOT_Dashboard!S25 -> Revenue | G114: Text
D116: =IF(F114="Revenue",D99,IF(F114="Compensation for Competing Roads",D110,D105)) -> Concessionaire has chosen to pay 0.00% revenue on the Realisable Fee. | G116: Text | I116: % Difference | K116: =E71 -> -0.1176470588 | L116: %
I117: Lower tolerance % for variation in traffic | K117: =K110 -> 0 | L117: %
I118: Upper tolerance % for variation in traffic | K118: =K111 -> 0.05 | L118: %
I120: =IF(AND($K$116 >= $K$117, $K$116 <= $K$118), I113, IF($K$116 < $K$117, I99, I107)) -> For every 1.00% shortage of actual average traffic from target PCUs, the CP is increased by a multiple of 1.00% with an upper ceiling of 20.00% | L120: Text
A124: Graph Data
D126: Project Days | E126: Days | F126: URN | G126: Sorted URN | H126: Project Days | I126: Days | J126: Dummy
D127: =Road_VT_BOT_Dashboard!M36 -> Appointed Date | E127: =Road_VT_BOT_Dashboard!S36 -> 2015-04-01 | F127: =E127&D127 -> 42095Appointed Date | G127: =_xlfn._xlws.SORT(F127:F130,1,1) -> 42095Appointed Date | H127: =INDEX($D$127:$D$130,MATCH(G127,$F$127:$F$130,0)) -> Appointed Date | I127: =INDEX($E$127:$E$130,MATCH(G127,$F$127:$F$130,0)) -> 2015-04-01 | J127: 1
D128: =Road_VT_BOT_Dashboard!M37 -> Date of Construction Completion | E128: =Road_VT_BOT_Dashboard!S37 -> 2017-09-30 | F128: =E128&D128 -> 43008Date of Construction Completion | G128: 43008Date of Construction Completion | H128: =INDEX($D$127:$D$130,MATCH(G128,$F$127:$F$130,0)) -> Date of Construction Completion | I128: =INDEX($E$127:$E$130,MATCH(G128,$F$127:$F$130,0)) -> 2017-09-30 | J128: 1
D129: =Road_VT_BOT_Dashboard!M38 -> Commercial Operations Date (COD) | E129: =Road_VT_BOT_Dashboard!S38 -> 2017-10-01 | F129: 43009Commercial Operations Date (COD) | G129: 43009Commercial Operations Date (COD) | H129: =INDEX($D$127:$D$130,MATCH(G129,$F$127:$F$130,0)) -> Commercial Operations Date (COD) | I129: =INDEX($E$127:$E$130,MATCH(G129,$F$127:$F$130,0)) -> 2017-10-01 | J129: 1
D130: =Road_VT_BOT_Dashboard!M39 -> Termination Date | E130: =Road_VT_BOT_Dashboard!S39 -> 2048-06-30 | F130: 54239Termination Date | G130: 54239Termination Date | H130: =INDEX($D$127:$D$130,MATCH(G130,$F$127:$F$130,0)) -> Termination Date | I130: =INDEX($E$127:$E$130,MATCH(G130,$F$127:$F$130,0)) -> 2048-06-30 | J130: 1
D132: Project Days | E132: Years
D133: =Road_VT_BOT_Dashboard!B19 -> Concession Period (yrs) | E133: =Road_VT_BOT_Dashboard!H19 -> 30
D134: =Road_VT_BOT_Dashboard!M22 -> Revised Concession Period (yrs) | E134: =Road_VT_BOT_Dashboard!S22-Road_VT_BOT_Workings!E133 -> 3.3
A136: // End

Sheet Road_CIL_HAM_Dashboard (hidden)
A1: Dashboard
A2: Key Inputs | L2: Key Outputs
C6: Change in CP/ One Time Payment
C11: Reference of your selection | G11: 2
B15: Project Particulars
B17: Construction Period (months) | H17: 36
B18: Appointed Date | H18: 2015-06-01 | M18: Result
B19: Change in Law (months) from Appointed Date | H19: 69
B20: Reduction in Revenue | H20: 0.1 | M20: Change in law year | S20: =EDATE(S31, H19) -> 2021-03-01
B21: Total Cashflow - No change period | H21: =HYPERLINK("#'" & RIGHT(CELL("FILENAME",F60:F90), LEN(CELL("FILENAME",F60:F90)) - SEARCH("]", CELL("FILENAME",F60:F90))) & "'!" &CELL("address",F60:F90), "Click here to update figures") -> Click here to update figures | M21: You have selected | S21: =IF($G$11=1,"Change in CP", "One Time Payment") -> One Time Payment
B22: Concession Period Considered (yrs) | H22: 17 | M22: Change in Revenue | S22: =H24*H28 -> 0.06
B23: Total Project Cost | H23: 100 | M23: Is Change in CP/ Compensation valid ? | S23: =IF(S56>=0,IF(S56>MAX(H29,S22),"YES","NO"),IF(-SS56>MAX(H29,S22),"YES","NO")) -> YES
B24: Initial Revenue (in INR Crs) | H24: 12 | M24: Change in Concession Period | S24: =Road_CIL_HAM_Workings!G11 -> 0
B25: Discount Factor | H25: 0.11 | M25: Revised Concession Period | S25: =Road_CIL_HAM_Workings!G14 -> 17
B26: Capex infusion post concession period | M26: Change in NPV post concession period | S26: =S56-S57-H26 -> 10.15081533
B27: Total Cashflow - Last Period | H27: =HYPERLINK("#'" & RIGHT(CELL("FILENAME",R60:R90), LEN(CELL("FILENAME",R60:R90)) - SEARCH("]", CELL("FILENAME",R60:R90))) & "'!" &CELL("address",R60:R90), "Click here to update figures") -> Click here to update figures | M27: =IF(S21="One Time Payment","Payment to be made by either party","") -> Payment to be made by either party | S27: =Road_CIL_HAM_Workings!G17 -> 10.38642311
B28: Limit for % change in realisable fees | H28: 0.005
B29: Limit for change in realisable fees | H29: 1 | M29: Key Dates
B30: Applicable Norm | H30: Click here to update 'Norms'
M31: Appointed Date | S31: =H18 -> 2015-06-01
M32: Date of Construction Completion | S32: =EDATE(H18,H17)-1 -> 2018-05-31
B33: Project Timeline | M33: Commercial Operations Date (COD) | S33: =S32+1 -> 2018-06-01
M34: Termination Date | S34: =EDATE(H18,H22*rngMthsYr)-1 -> 2032-05-31
M35: First Financial Year Ending | S35: =DATE(IF(MONTH(S31) > rngYrEnd, YEAR(S31) + 1, YEAR(S31)), rngYrEnd, rngYrEndDay) -> 2016-03-31
M36: No. of months in first Financial Year | S36: =ROUND((S35 - S31) / rngMthDays, 0) -> 10
M37: Construction Ending Financial Year | S37: =DATE(IF(MONTH(S32) > rngYrEnd, YEAR(S32) + 1, YEAR(S32)), rngYrEnd, rngYrEndDay) -> 2019-03-31
M38: Construction Ending Financial Year No. | S38: =YEAR(S37) - YEAR(S35) + 1 -> 4
M39: No. of operational months in Cons Ending FY | S39: =ROUND((S37-S32)/rngMthDays,0) -> 10
M40: Last Financial Year Ending | S40: =DATE(IF(MONTH(S34) > rngYrEnd, YEAR(S34) + 1, YEAR(S34)), rngYrEnd, rngYrEndDay) -> 2033-03-31
M41: Last Financial Year Ending No. | S41: =YEAR(S40)-YEAR(S35)+1 -> 18
M42: No. of months in last Financial Year | S42: =rngMthsYr - ROUND((S40 - S34) / rngMthDays, 0) -> 2
A46: Norms on Change in Law
B48: =Road_CIL_HAM_Workings!G76 -> Increase in costs If because of change in law, the concessionaire suffers increase in cost or reduction in after tax return or other financial burden [aggregate financial effect of which exceeds higher of Rs. 1 crore or 2 % of the total annuity payments in any accounting year], concessionaire may notify the authority and propose amendments to nullify the aftermath of change in laws by transferring the amount of NPV lacking from authority.
A53: Cash Flows
B55: No Change in Law Scenario | H55: Change in Law Scenario | N55: Post Last FY Period
B56: NPV at Change in Law Year | H56: =NPV(H25,F60:F90) -> 142.3492175 | I56: NPV at Change in Law Year | L56: =NPV(H25,I60:I90) -> 121.8119791 | N56: Difference between the NPVs | S56: =H56-L56 -> 20.53723844
B57: Till Termination period - NPV at Change in Law Year | H57: =NPV(H25,F60:INDEX(F60:F90,H22)) -> 40.84106418 | I57: NPV at Change in Law Year (Termination Period) | L57: =NPV(H25,I60:INDEX(I60:I90,H22)) -> 30.45464106 | N57: Difference between the NPVs | S57: =H57-L57 -> 10.38642311
B59: Change in Law Year | C59: Year Ending | F59: Net Cash Flow | H59: Discounted Cash Flow | I59: Net Cash Flow | L59: Discounted Cash Flow | N59: Year No. | O59: Year Ending | R59: Net Cash Flow | S59: Discounted Cash Flow | T59: Cumulative Discounted Cash Flow
B60: =Road_CIL_HAM_Workings!J27 ->  | C60: =S35 -> 2016-03-31 | F60: -33.33333333 | H60: =Road_CIL_HAM_Workings!F27 -> 0 | I60: =Road_CIL_HAM_Workings!L27 -> -33.33333333 | L60: =Road_CIL_HAM_Workings!M27 -> 0 | N60: =Road_CIL_HAM_Workings!O27 -> 1 | O60: =Road_CIL_HAM_Workings!P27 -> 2033-03-31 | R60: 100 | S60: =Road_CIL_HAM_Workings!R27 -> 23.19948248 | T60: =Road_CIL_HAM_Workings!T27 -> 23.19948248
B61: =Road_CIL_HAM_Workings!J28 ->  | C61: =EDATE(C60,12) -> 2017-03-31 | F61: -33.33333333 | H61: =Road_CIL_HAM_Workings!F28 -> 0 | I61: =Road_CIL_HAM_Workings!L28 -> -33.33333333 | L61: =Road_CIL_HAM_Workings!M28 -> 0 | N61: =Road_CIL_HAM_Workings!O28 -> 2 | O61: =Road_CIL_HAM_Workings!P28 -> 2034-03-31 | R61: 260.9 | S61: =Road_CIL_HAM_Workings!R28 -> 54.52923404 | T61: =Road_CIL_HAM_Workings!T28 -> 77.72871652
B62: =Road_CIL_HAM_Workings!J29 ->  | C62: =EDATE(C61,12) -> 2018-03-31 | F62: -33.33333333 | H62: =Road_CIL_HAM_Workings!F29 -> 0 | I62: =Road_CIL_HAM_Workings!L29 -> -33.33333333 | L62: =Road_CIL_HAM_Workings!M29 -> 0 | N62: =Road_CIL_HAM_Workings!O29 -> 3 | O62: =Road_CIL_HAM_Workings!P29 -> 2035-03-31 | R62: 339.2 | S62: =Road_CIL_HAM_Workings!R29 -> 63.86871566 | T62: =Road_CIL_HAM_Workings!T29 -> 141.5974322
B63: =Road_CIL_HAM_Workings!J30 ->  | C63: 2019-03-31 | F63: 14.05536 | H63: =Road_CIL_HAM_Workings!F30 -> 0 | I63: =Road_CIL_HAM_Workings!L30 -> 14.05536 | L63: =Road_CIL_HAM_Workings!M30 -> 0 | N63: =Road_CIL_HAM_Workings!O30 -> 4 | O63: =Road_CIL_HAM_Workings!P30 -> 2036-03-31 | R63: 441 | S63: =Road_CIL_HAM_Workings!R30 -> 74.80798383 | T63: =Road_CIL_HAM_Workings!T30 -> 216.405416
B64: =Road_CIL_HAM_Workings!J31 ->  | C64: 2020-03-31 | F64: 15.460896 | H64: =Road_CIL_HAM_Workings!F31 -> 0 | I64: =Road_CIL_HAM_Workings!L31 -> 15.460896 | L64: =Road_CIL_HAM_Workings!M31 -> 0 | N64: =Road_CIL_HAM_Workings!O31 -> 5 | O64: =Road_CIL_HAM_Workings!P31 -> 2037-03-31 | R64: 573.3 | S64: =Road_CIL_HAM_Workings!R31 -> 87.61295403 | T64: =Road_CIL_HAM_Workings!T31 -> 304.01837
B65: =Road_CIL_HAM_Workings!J32 -> CIL | C65: 2021-03-31 | F65: 17.0069856 | H65: =Road_CIL_HAM_Workings!F32 -> 15.32160865 | I65: =Road_CIL_HAM_Workings!L32 -> 15.30628704 | L65: =Road_CIL_HAM_Workings!M32 -> 13.78944778 | N65: =Road_CIL_HAM_Workings!O32 -> 6 | O65: =Road_CIL_HAM_Workings!P32 -> 2038-03-31 | R65: 745.4 | S65: =Road_CIL_HAM_Workings!R32 -> 102.6249105 | T65: =Road_CIL_HAM_Workings!T32 -> 406.6432806
B66: =Road_CIL_HAM_Workings!J33 ->  | C66: 2022-03-31 | F66: 18.70768416 | H66: =Road_CIL_HAM_Workings!F33 -> 15.18357614 | I66: =Road_CIL_HAM_Workings!L33 -> 16.83691574 | L66: =Road_CIL_HAM_Workings!M33 -> 13.66521852 | N66: =Road_CIL_HAM_Workings!O33 -> 7 | O66: =Road_CIL_HAM_Workings!P33 -> 2039-03-31 | R66: 969 | S66: =Road_CIL_HAM_Workings!R33 -> 120.188856 | T66: =Road_CIL_HAM_Workings!T33 -> 526.8321365
B67: =Road_CIL_HAM_Workings!J34 ->  | C67: 2023-03-31 | F67: 20.57845258 | H67: =Road_CIL_HAM_Workings!F34 -> 15.04678716 | I67: =Road_CIL_HAM_Workings!L34 -> 18.52060732 | L67: =Road_CIL_HAM_Workings!M34 -> 13.54210845 | N67: =Road_CIL_HAM_Workings!O34 -> 8 | O67: =Road_CIL_HAM_Workings!P34 -> 2040-03-31 | R67: 0 | S67: =Road_CIL_HAM_Workings!R34 -> 0 | T67: =Road_CIL_HAM_Workings!T34 -> 526.8321365
B68: =Road_CIL_HAM_Workings!J35 ->  | C68: 2024-03-31 | F68: 22.63629783 | H68: =Road_CIL_HAM_Workings!F35 -> 14.91123052 | I68: =Road_CIL_HAM_Workings!L35 -> 20.37266805 | L68: =Road_CIL_HAM_Workings!M35 -> 13.42010747 | N68: =Road_CIL_HAM_Workings!O35 -> 9 | O68: =Road_CIL_HAM_Workings!P35 -> 2041-03-31 | R68: 0 | S68: =Road_CIL_HAM_Workings!R35 -> 0 | T68: =Road_CIL_HAM_Workings!T35 -> 526.8321365
B69: =Road_CIL_HAM_Workings!J36 ->  | C69: 2025-03-31 | F69: 24.89992762 | H69: =Road_CIL_HAM_Workings!F36 -> 14.77689511 | I69: =Road_CIL_HAM_Workings!L36 -> 22.40993486 | L69: =Road_CIL_HAM_Workings!M36 -> 13.2992056 | N69: =Road_CIL_HAM_Workings!O36 -> 10 | O69: =Road_CIL_HAM_Workings!P36 -> 2042-03-31 | R69: 0 | S69: =Road_CIL_HAM_Workings!R36 -> 0 | T69: =Road_CIL_HAM_Workings!T36 -> 526.8321365
B70: =Road_CIL_HAM_Workings!J37 ->  | C70: 2026-03-31 | F70: 27.38992038 | H70: =Road_CIL_HAM_Workings!F37 -> 14.64376993 | I70: =Road_CIL_HAM_Workings!L37 -> 24.65092834 | L70: =Road_CIL_HAM_Workings!M37 -> 13.17939294 | N70: =Road_CIL_HAM_Workings!O37 -> 11 | O70: =Road_CIL_HAM_Workings!P37 -> 2043-03-31 | R70: 0 | S70: =Road_CIL_HAM_Workings!R37 -> 0 | T70: =Road_CIL_HAM_Workings!T37 -> 526.8321365
B71: =Road_CIL_HAM_Workings!J38 ->  | C71: 2027-03-31 | F71: 30.12891242 | H71: =Road_CIL_HAM_Workings!F38 -> 14.51184408 | I71: =Road_CIL_HAM_Workings!L38 -> 27.11602117 | L71: =Road_CIL_HAM_Workings!M38 -> 13.06065967 | N71: =Road_CIL_HAM_Workings!O38 -> 12 | O71: =Road_CIL_HAM_Workings!P38 -> 2044-03-31 | R71: 0 | S71: =Road_CIL_HAM_Workings!R38 -> 0 | T71: =Road_CIL_HAM_Workings!T38 -> 526.8321365
B72: =Road_CIL_HAM_Workings!J39 ->  | C72: 2028-03-31 | F72: 33.14180366 | H72: =Road_CIL_HAM_Workings!F39 -> 14.38110674 | I72: =Road_CIL_HAM_Workings!L39 -> 29.82762329 | L72: =Road_CIL_HAM_Workings!M39 -> 12.94299607 | N72: =Road_CIL_HAM_Workings!O39 -> 13 | O72: =Road_CIL_HAM_Workings!P39 -> 2045-03-31 | R72: 0 | S72: =Road_CIL_HAM_Workings!R39 -> 0 | T72: =Road_CIL_HAM_Workings!T39 -> 526.8321365
B73: =Road_CIL_HAM_Workings!J40 ->  | C73: 2029-03-31 | F73: 36.45598402 | H73: =Road_CIL_HAM_Workings!F40 -> 14.25154722 | I73: =Road_CIL_HAM_Workings!L40 -> 32.81038562 | L73: =Road_CIL_HAM_Workings!M40 -> 12.8263925 | N73: =Road_CIL_HAM_Workings!O40 -> 14 | O73: =Road_CIL_HAM_Workings!P40 -> 2046-03-31 | R73: 0 | S73: =Road_CIL_HAM_Workings!R40 -> 0 | T73: =Road_CIL_HAM_Workings!T40 -> 526.8321365
B74: =Road_CIL_HAM_Workings!J41 ->  | C74: 2030-03-31 | F74: 40.10158243 | H74: =Road_CIL_HAM_Workings!F41 -> 14.1231549 | I74: =Road_CIL_HAM_Workings!L41 -> 36.09142418 | L74: =Road_CIL_HAM_Workings!M41 -> 12.71083941 | N74: =Road_CIL_HAM_Workings!O41 -> 15 | O74: =Road_CIL_HAM_Workings!P41 -> 2047-03-31 | R74: 0 | S74: =Road_CIL_HAM_Workings!R41 -> 0 | T74: =Road_CIL_HAM_Workings!T41 -> 526.8321365
B75: =Road_CIL_HAM_Workings!J42 ->  | C75: 2031-03-31 | F75: 44.11174067 | H75: =Road_CIL_HAM_Workings!F42 -> 13.99591928 | I75: =Road_CIL_HAM_Workings!L42 -> 39.7005666 | L75: =Road_CIL_HAM_Workings!M42 -> 12.59632735 | N75: =Road_CIL_HAM_Workings!O42 -> 16 | O75: =Road_CIL_HAM_Workings!P42 -> 2048-03-31 | R75: 0 | S75: =Road_CIL_HAM_Workings!R42 -> 0 | T75: =Road_CIL_HAM_Workings!T42 -> 526.8321365
B76: =Road_CIL_HAM_Workings!J43 ->  | C76: 2032-03-31 | F76: 48.52291474 | H76: =Road_CIL_HAM_Workings!F43 -> 13.86982991 | I76: =Road_CIL_HAM_Workings!L43 -> 43.67062326 | L76: =Road_CIL_HAM_Workings!M43 -> 12.48284692 | N76: =Road_CIL_HAM_Workings!O43 -> 17 | O76: =Road_CIL_HAM_Workings!P43 -> 2049-03-31 | R76: 0 | S76: =Road_CIL_HAM_Workings!R43 -> 0 | T76: =Road_CIL_HAM_Workings!T43 -> 526.8321365
B77: =Road_CIL_HAM_Workings!J44 ->  | C77: 2033-03-31 | F77: 53.37520621 | H77: =Road_CIL_HAM_Workings!F44 -> 13.74487649 | I77: =Road_CIL_HAM_Workings!L44 -> 48.03768559 | L77: =Road_CIL_HAM_Workings!M44 -> 12.37038884 | N77: =Road_CIL_HAM_Workings!O44 -> 18 | O77: =Road_CIL_HAM_Workings!P44 -> 2050-03-31 | R77: 0 | S77: =Road_CIL_HAM_Workings!R44 -> 0 | T77: =Road_CIL_HAM_Workings!T44 -> 526.8321365
B78: =Road_CIL_HAM_Workings!J45 ->  | C78: 2034-03-31 | F78: 58.71272683 | H78: =Road_CIL_HAM_Workings!F45 -> 13.62104877 | I78: =Road_CIL_HAM_Workings!L45 -> 52.84145415 | L78: =Road_CIL_HAM_Workings!M45 -> 12.2589439 | N78: =Road_CIL_HAM_Workings!O45 -> 19 | O78: =Road_CIL_HAM_Workings!P45 -> 2051-03-31 | R78: 0 | S78: =Road_CIL_HAM_Workings!R45 -> 0 | T78: =Road_CIL_HAM_Workings!T45 -> 526.8321365
B79: =Road_CIL_HAM_Workings!J46 ->  | C79: 2035-03-31 | F79: 64.58399951 | H79: =Road_CIL_HAM_Workings!F46 -> 13.49833662 | I79: =Road_CIL_HAM_Workings!L46 -> 58.12559956 | L79: =Road_CIL_HAM_Workings!M46 -> 12.14850296 | N79: =Road_CIL_HAM_Workings!O46 -> 20 | O79: =Road_CIL_HAM_Workings!P46 -> 2052-03-31 | R79: 0 | S79: =Road_CIL_HAM_Workings!R46 -> 0 | T79: =Road_CIL_HAM_Workings!T46 -> 526.8321365
B80: =Road_CIL_HAM_Workings!J47 ->  | C80: 2036-03-31 | F80: 71.04239946 | H80: =Road_CIL_HAM_Workings!F47 -> 13.37672999 | I80: =Road_CIL_HAM_Workings!L47 -> 63.93815952 | L80: =Road_CIL_HAM_Workings!M47 -> 12.03905699 | N80: =Road_CIL_HAM_Workings!O47 -> 21 | O80: =Road_CIL_HAM_Workings!P47 -> 2053-03-31 | R80: 0 | S80: =Road_CIL_HAM_Workings!R47 -> 0 | T80: =Road_CIL_HAM_Workings!T47 -> 526.8321365
B81: =Road_CIL_HAM_Workings!J48 ->  | C81: 2037-03-31 | F81: 78.14663941 | H81: =Road_CIL_HAM_Workings!F48 -> 13.25621891 | I81: =Road_CIL_HAM_Workings!L48 -> 70.33197547 | L81: =Road_CIL_HAM_Workings!M48 -> 11.93059701 | N81: =Road_CIL_HAM_Workings!O48 -> 22 | O81: =Road_CIL_HAM_Workings!P48 -> 2054-03-31 | R81: 0 | S81: =Road_CIL_HAM_Workings!R48 -> 0 | T81: =Road_CIL_HAM_Workings!T48 -> 526.8321365
B82: =Road_CIL_HAM_Workings!J49 ->  | C82: 2038-03-31 | F82: 85.96130335 | H82: =Road_CIL_HAM_Workings!F49 -> 13.13679351 | I82: =Road_CIL_HAM_Workings!L49 -> 77.36517302 | L82: =Road_CIL_HAM_Workings!M49 -> 11.82311416 | N82: =Road_CIL_HAM_Workings!O49 -> 23 | O82: =Road_CIL_HAM_Workings!P49 -> 2055-03-31 | R82: 0 | S82: =Road_CIL_HAM_Workings!R49 -> 0 | T82: =Road_CIL_HAM_Workings!T49 -> 526.8321365
B83: =Road_CIL_HAM_Workings!J50 ->  | C83: 2039-03-31 | F83: 94.55743369 | H83: =Road_CIL_HAM_Workings!F50 -> 13.01844402 | I83: =Road_CIL_HAM_Workings!L50 -> 85.10169032 | L83: =Road_CIL_HAM_Workings!M50 -> 11.71659962 | N83: =Road_CIL_HAM_Workings!O50 -> 24 | O83: =Road_CIL_HAM_Workings!P50 -> 2056-03-31 | R83: 0 | S83: =Road_CIL_HAM_Workings!R50 -> 0 | T83: =Road_CIL_HAM_Workings!T50 -> 526.8321365
B84: =Road_CIL_HAM_Workings!J51 ->  | C84: 2040-03-31 | F84: 104.01 | H84: =Road_CIL_HAM_Workings!F51 -> 12.90076668 | I84: =Road_CIL_HAM_Workings!L51 -> 93.609 | L84: =Road_CIL_HAM_Workings!M51 -> 11.61069001 | N84: =Road_CIL_HAM_Workings!O51 -> 25 | O84: =Road_CIL_HAM_Workings!P51 -> 2057-03-31 | R84: 0 | S84: =Road_CIL_HAM_Workings!R51 -> 0 | T84: =Road_CIL_HAM_Workings!T51 -> 526.8321365
B85: =Road_CIL_HAM_Workings!J52 ->  | C85: 2041-03-31 | F85: 114.41 | H85: =Road_CIL_HAM_Workings!F52 -> 12.78443181 | I85: =Road_CIL_HAM_Workings!L52 -> 102.969 | L85: =Road_CIL_HAM_Workings!M52 -> 11.50598863 | N85: =Road_CIL_HAM_Workings!O52 -> 26 | O85: =Road_CIL_HAM_Workings!P52 -> 2058-03-31 | R85: 0 | S85: =Road_CIL_HAM_Workings!R52 -> 0 | T85: =Road_CIL_HAM_Workings!T52 -> 526.8321365
B86: =Road_CIL_HAM_Workings!J53 ->  | C86: 2042-03-31 | F86: 125.84 | H86: =Road_CIL_HAM_Workings!F53 -> 12.66814939 | I86: =Road_CIL_HAM_Workings!L53 -> 113.256 | L86: =Road_CIL_HAM_Workings!M53 -> 11.40133445 | N86: =Road_CIL_HAM_Workings!O53 -> 27 | O86: =Road_CIL_HAM_Workings!P53 -> 2059-03-31 | R86: 0 | S86: =Road_CIL_HAM_Workings!R53 -> 0 | T86: =Road_CIL_HAM_Workings!T53 -> 526.8321365
B87: =Road_CIL_HAM_Workings!J54 ->  | C87: 2043-03-31 | F87: 138.41 | H87: =Road_CIL_HAM_Workings!F54 -> 12.55275223 | I87: =Road_CIL_HAM_Workings!L54 -> 124.569 | L87: =Road_CIL_HAM_Workings!M54 -> 11.297477 | N87: =Road_CIL_HAM_Workings!O54 -> 28 | O87: =Road_CIL_HAM_Workings!P54 -> 2060-03-31 | R87: 0 | S87: =Road_CIL_HAM_Workings!R54 -> 0 | T87: =Road_CIL_HAM_Workings!T54 -> 526.8321365
B88: =Road_CIL_HAM_Workings!J55 ->  | C88: 2044-03-31 | F88: 152.24 | H88: =Road_CIL_HAM_Workings!F55 -> 12.43876561 | I88: =Road_CIL_HAM_Workings!L55 -> 137.016 | L88: =Road_CIL_HAM_Workings!M55 -> 11.19488905 | N88: =Road_CIL_HAM_Workings!O55 -> 29 | O88: =Road_CIL_HAM_Workings!P55 -> 2061-03-31 | R88: 0 | S88: =Road_CIL_HAM_Workings!R55 -> 0 | T88: =Road_CIL_HAM_Workings!T55 -> 526.8321365
B89: =Road_CIL_HAM_Workings!J56 ->  | C89: 2045-03-31 | F89: 167.45 | H89: =Road_CIL_HAM_Workings!F56 -> 12.32567415 | I89: =Road_CIL_HAM_Workings!L56 -> 150.705 | L89: =Road_CIL_HAM_Workings!M56 -> 11.09310673 | N89: =Road_CIL_HAM_Workings!O56 -> 30 | O89: =Road_CIL_HAM_Workings!P56 -> 2062-03-31 | R89: 0 | S89: =Road_CIL_HAM_Workings!R56 -> 0 | T89: =Road_CIL_HAM_Workings!T56 -> 526.8321365
B90: =Road_CIL_HAM_Workings!J57 ->  | C90: 2046-03-31 | F90: 26 | H90: =Road_CIL_HAM_Workings!F57 -> 1.724153387 | I90: =Road_CIL_HAM_Workings!L57 -> 23.4 | L90: =Road_CIL_HAM_Workings!M57 -> 1.551738048 | N90: =Road_CIL_HAM_Workings!O57 -> 31 | O90: =Road_CIL_HAM_Workings!P57 -> 2063-03-31 | R90: 0 | S90: =Road_CIL_HAM_Workings!R57 -> 0 | T90: =Road_CIL_HAM_Workings!T57 -> 526.8321365
A114: Instructions
K117: Legend
B118: General | E118: Project details need to be entered in the yellow marked cells.
M120: Input Cell
B121: Project Particulars | E121: ="Cell "&SUBSTITUTE(CELL("address",H17),"$","")&" - Construction Period" -> Cell H17 - Construction Period | M121: Change in law Year
E122: ="Cell "&SUBSTITUTE(CELL("address",H22),"$","")&" - Concession Period" -> Cell H22 - Concession Period | L122: Units | M122: Amount are in Rs. Cr
B124: Change in Law | E124: ="Cell "&SUBSTITUTE(CELL("address",S20),"$","")&" - the year in which change of law is observed." -> Cell S20 - the year in which change of law is observed.
E125: ="Cell "&SUBSTITUTE(CELL("address",B20),"$","")&" - type of change observed." -> Cell B20 - type of change observed.
E126: ="Cell "&SUBSTITUTE(CELL("address",H20),"$","")&" - reduction in revenue due to change in law." -> Cell H20 - reduction in revenue due to change in law.
E127: ="Cell "&SUBSTITUTE(CELL("address",F59),"$","")&" - Cash Flow in every additional year" -> Cell F59 - Cash Flow in every additional year
B129: Key Information about the Project | E129: ="Cell "&SUBSTITUTE(CELL("address",H22),"$","")&" - Concession Period Considered (yrs)" -> Cell H22 - Concession Period Considered (yrs)
E130: ="Cell "&SUBSTITUTE(CELL("address",H23),"$","")&" - Total Project Cost " -> Cell H23 - Total Project Cost
E131: ="Cell "&SUBSTITUTE(CELL("address",H24),"$","")&" - Initial Revenue (in INR Crs) " -> Cell H24 - Initial Revenue (in INR Crs)
E132: ="Cell "&SUBSTITUTE(CELL("address",H25),"$","")&" - Discount Factor " -> Cell H25 - Discount Factor
E133: ="Cell "&SUBSTITUTE(CELL("address",H28),"$","")&" - Limit for % change in realisable fees" -> Cell H28 - Limit for % change in realisable fees
E134: ="Cell "&SUBSTITUTE(CELL("address",H29),"$","")&" - Limit for change in realisable fees" -> Cell H29 - Limit for change in realisable fees
B136: Key Dates | E136: ="Cell "&SUBSTITUTE(CELL("address",H18),"$","")&" - Appointed Date" -> Cell H18 - Appointed Date
B138: Option | E138: ="Cell "&SUBSTITUTE(CELL("address",C9),"$","")&" - various reasons for method of completion" -> Cell C9 - various reasons for method of completion
B140: Results | E140: ="Cell "&SUBSTITUTE(CELL("address",S24),"$","")&" - indicates the inc/ dec in concession period." -> Cell S24 - indicates the inc/ dec in concession period.
A143: // End

Sheet Road_CIL_HAM_Workings (hidden)
A1: Workings
F2: Inputs | G2: Inputs from other sheets
F3: Calculation | G3: Major Calculation
F4: Inputs | G4: Manual Inputs
F5: Inputs | G5: Hardcoded Values
A7: Results
C9: Reason Selected | G9: =Road_CIL_HAM_Dashboard!S21 -> One Time Payment
C10: Change in Concession Period | G10: =V22 -> 0.4477006382
C11: Change in Concession Period | G11: =IF(G9="Change in CP",G10,0) -> 0
C13: Concession Period Considered (yrs) | G13: =Road_CIL_HAM_Dashboard!H22 -> 17
C14: Revised Concession Period | G14: =G13+G11 -> 17
C16: Difference Between the NPVs | G16: =V21 -> 10.38642311
C17: Payment to be made by either party | G17: =IF(G9="One Time Payment",G16,"") -> 10.38642311
A19: NPV Calculations
C21: Change in the law date | F21: =Road_CIL_HAM_Dashboard!S20 -> 2021-03-01 | H21: Change in law year | J21: =IF(MONTH(F21)<= 3, YEAR(F21) -1, YEAR(F21)) -> 2020 | O21: Last Financial Year | R21: =Road_CIL_HAM_Dashboard!S40 -> 2033-03-31 | T21: Difference between the NPVs | V21: =Road_CIL_HAM_Dashboard!S57 -> 10.38642311
C22: Discount Factor | F22: =Road_CIL_HAM_Dashboard!H25 -> 0.11 | H22: Reduction in Revenue | J22: =Road_CIL_HAM_Dashboard!H20 -> 0.1 | O22: Month in a Year | R22: =rngMthsYr -> 12 | T22: Change in Concession Period | V22: =SUM(V27:V57) -> 0.4477006382
C23: Appointed Date | F23: =Road_CIL_HAM_Dashboard!S31 -> 2015-06-01 | H23: Appointed Date Year | J23: =YEAR(F23) -> 2015
C25: Year Ending | E25: Net Cash Flow | F25: Discounted Cash Flow | G25: Post change in law period flag | H25: Pre change in law period flag | I25: Duration (Yrs) | J25: Change in Law (CIL) | L25: Net Cash Flow | M25: Discounted Cash Flow | O25: Year No. | P25: Year Ending | Q25: Net Cash Flow | R25: Discounted Cash Flow | S25: Duration (Yrs) | T25: Cumulative Discounted Cash Flow | U25: Recovery Period | V25: Recovery Year
C27: =Road_CIL_HAM_Dashboard!C60 -> 2016-03-31 | E27: =Road_CIL_HAM_Dashboard!F60 -> -33.33333333 | F27: =(E27/((1+$F$22)^$I27))*$G27 -> 0 | G27: =IF(C27>$F$21,1,0) -> 0 | H27: =IF(C27<$F$21,1,0) -> 1 | I27: =IF(H27=1,YEAR(C27)-$J$23,YEAR(C27)-$J$21) -> 1 | J27: =IF(AND($F$21>C26,$F$21<C27),"CIL","") ->  | L27: =IF(G27=1,E27*(1-$J$22),E27) -> -33.33333333 | M27: =(L27/((1+$F$22)^$I27))*$G27 -> 0 | O27: =SUM(O26)+1 -> 1 | P27: =IF(O27=1,$R$21,EDATE(P26,$R$22)) -> 2033-03-31 | Q27: =Road_CIL_HAM_Dashboard!R60 -> 100 | R27: =(Q27/((1+$F$22)^S27)) -> 23.19948248 | S27: =YEAR(P27)+1-$J$21 -> 14 | T27: =SUM($R$27:R27) -> 23.19948248 | U27: =IF(AND(T27>$V$21,T26<$V$21),1,0) -> 1 | V27: =IF(U27=1,O26+(($V$21-T26)/R27),0) -> 0.4477006382
C28: =Road_CIL_HAM_Dashboard!C61 -> 2017-03-31 | E28: =Road_CIL_HAM_Dashboard!F61 -> -33.33333333 | F28: =(E28/((1+$F$22)^$I28))*$G28 -> 0 | G28: =IF(C28>$F$21,1,0) -> 0 | H28: =IF(C28<$F$21,1,0) -> 1 | I28: =IF(H28=1,YEAR(C28)-$J$23,YEAR(C28)-$J$21) -> 2 | J28: =IF(AND($F$21>C27,$F$21<C28),"CIL","") ->  | L28: =IF(G28=1,E28*(1-$J$22),E28) -> -33.33333333 | M28: =(L28/((1+$F$22)^$I28))*$G28 -> 0 | O28: =SUM(O27)+1 -> 2 | P28: =IF(O28=1,$R$21,EDATE(P27,$R$22)) -> 2034-03-31 | Q28: =Road_CIL_HAM_Dashboard!R61 -> 260.9 | R28: =(Q28/((1+$F$22)^S28)) -> 54.52923404 | S28: =YEAR(P28)+1-$J$21 -> 15 | T28: =SUM($R$27:R28) -> 77.72871652 | U28: =IF(AND(T28>$V$21,T27<$V$21),1,0) -> 0 | V28: =IF(U28=1,O27+(($V$21-T27)/R28),0) -> 0
C29: =Road_CIL_HAM_Dashboard!C62 -> 2018-03-31 | E29: =Road_CIL_HAM_Dashboard!F62 -> -33.33333333 | F29: 0 | G29: 0 | H29: 1 | I29: 3 | L29: -33.33333333 | M29: 0 | O29: 3 | P29: 2035-03-31 | Q29: =Road_CIL_HAM_Dashboard!R62 -> 339.2 | R29: 63.86871566 | S29: 16 | T29: =SUM($R$27:R29) -> 141.5974322 | U29: 0 | V29: 0
C30: =Road_CIL_HAM_Dashboard!C63 -> 2019-03-31 | E30: =Road_CIL_HAM_Dashboard!F63 -> 14.05536 | F30: 0 | G30: 0 | H30: 1 | I30: 4 | L30: 14.05536 | M30: 0 | O30: 4 | P30: 2036-03-31 | Q30: =Road_CIL_HAM_Dashboard!R63 -> 441 | R30: 74.80798383 | S30: 17 | T30: =SUM($R$27:R30) -> 216.405416 | U30: 0 | V30: 0
C31: =Road_CIL_HAM_Dashboard!C64 -> 2020-03-31 | E31: =Road_CIL_HAM_Dashboard!F64 -> 15.460896 | F31: 0 | G31: 0 | H31: 1 | I31: 5 | L31: 15.460896 | M31: 0 | O31: 5 | P31: 2037-03-31 | Q31: =Road_CIL_HAM_Dashboard!R64 -> 573.3 | R31: 87.61295403 | S31: 18 | T31: =SUM($R$27:R31) -> 304.01837 | U31: 0 | V31: 0
C32: =Road_CIL_HAM_Dashboard!C65 -> 2021-03-31 | E32: =Road_CIL_HAM_Dashboard!F65 -> 17.0069856 | F32: 15.32160865 | G32: 1 | H32: 0 | I32: 1 | J32: CIL | L32: 15.30628704 | M32: 13.78944778 | O32: 6 | P32: 2038-03-31 | Q32: =Road_CIL_HAM_Dashboard!R65 -> 745.4 | R32: 102.6249105 | S32: 19 | T32: =SUM($R$27:R32) -> 406.6432806 | U32: 0 | V32: 0
C33: =Road_CIL_HAM_Dashboard!C66 -> 2022-03-31 | E33: =Road_CIL_HAM_Dashboard!F66 -> 18.70768416 | F33: 15.18357614 | G33: 1 | H33: 0 | I33: 2 | L33: 16.83691574 | M33: 13.66521852 | O33: 7 | P33: 2039-03-31 | Q33: =Road_CIL_HAM_Dashboard!R66 -> 969 | R33: 120.188856 | S33: 20 | T33: =SUM($R$27:R33) -> 526.8321365 | U33: 0 | V33: 0
C34: =Road_CIL_HAM_Dashboard!C67 -> 2023-03-31 | E34: =Road_CIL_HAM_Dashboard!F67 -> 20.57845258 | F34: 15.04678716 | G34: 1 | H34: 0 | I34: 3 | L34: 18.52060732 | M34: 13.54210845 | O34: 8 | P34: 2040-03-31 | Q34: =Road_CIL_HAM_Dashboard!R67 -> 0 | R34: 0 | S34: 21 | T34: =SUM($R$27:R34) -> 526.8321365 | U34: 0 | V34: 0
C35: =Road_CIL_HAM_Dashboard!C68 -> 2024-03-31 | E35: =Road_CIL_HAM_Dashboard!F68 -> 22.63629783 | F35: 14.91123052 | G35: 1 | H35: 0 | I35: 4 | L35: 20.37266805 | M35: 13.42010747 | O35: 9 | P35: 2041-03-31 | Q35: =Road_CIL_HAM_Dashboard!R68 -> 0 | R35: 0 | S35: 22 | T35: =SUM($R$27:R35) -> 526.8321365 | U35: 0 | V35: 0
C36: =Road_CIL_HAM_Dashboard!C69 -> 2025-03-31 | E36: =Road_CIL_HAM_Dashboard!F69 -> 24.89992762 | F36: 14.77689511 | G36: 1 | H36: 0 | I36: 5 | L36: 22.40993486 | M36: 13.2992056 | O36: 10 | P36: 2042-03-31 | Q36: =Road_CIL_HAM_Dashboard!R69 -> 0 | R36: 0 | S36: 23 | T36: =SUM($R$27:R36) -> 526.8321365 | U36: 0 | V36: 0
C37: =Road_CIL_HAM_Dashboard!C70 -> 2026-03-31 | E37: =Road_CIL_HAM_Dashboard!F70 -> 27.38992038 | F37: 14.64376993 | G37: 1 | H37: 0 | I37: 6 | L37: 24.65092834 | M37: 13.17939294 | O37: 11 | P37: 2043-03-31 | Q37: =Road_CIL_HAM_Dashboard!R70 -> 0 | R37: 0 | S37: 24 | T37: =SUM($R$27:R37) -> 526.8321365 | U37: 0 | V37: 0
C38: =Road_CIL_HAM_Dashboard!C71 -> 2027-03-31 | E38: =Road_CIL_HAM_Dashboard!F71 -> 30.12891242 | F38: 14.51184408 | G38: 1 | H38: 0 | I38: 7 | L38: 27.11602117 | M38: 13.06065967 | O38: 12 | P38: 2044-03-31 | Q38: =Road_CIL_HAM_Dashboard!R71 -> 0 | R38: 0 | S38: 25 | T38: =SUM($R$27:R38) -> 526.8321365 | U38: 0 | V38: 0
C39: =Road_CIL_HAM_Dashboard!C72 -> 2028-03-31 | E39: =Road_CIL_HAM_Dashboard!F72 -> 33.14180366 | F39: 14.38110674 | G39: 1 | H39: 0 | I39: 8 | L39: 29.82762329 | M39: 12.94299607 | O39: 13 | P39: 2045-03-31 | Q39: =Road_CIL_HAM_Dashboard!R72 -> 0 | R39: 0 | S39: 26 | T39: =SUM($R$27:R39) -> 526.8321365 | U39: 0 | V39: 0
C40: =Road_CIL_HAM_Dashboard!C73 -> 2029-03-31 | E40: =Road_CIL_HAM_Dashboard!F73 -> 36.45598402 | F40: 14.25154722 | G40: 1 | H40: 0 | I40: 9 | L40: 32.81038562 | M40: 12.8263925 | O40: 14 | P40: 2046-03-31 | Q40: =Road_CIL_HAM_Dashboard!R73 -> 0 | R40: 0 | S40: 27 | T40: =SUM($R$27:R40) -> 526.8321365 | U40: 0 | V40: 0
C41: =Road_CIL_HAM_Dashboard!C74 -> 2030-03-31 | E41: =Road_CIL_HAM_Dashboard!F74 -> 40.10158243 | F41: 14.1231549 | G41: 1 | H41: 0 | I41: 10 | L41: 36.09142418 | M41: 12.71083941 | O41: 15 | P41: 2047-03-31 | Q41: =Road_CIL_HAM_Dashboard!R74 -> 0 | R41: 0 | S41: 28 | T41: =SUM($R$27:R41) -> 526.8321365 | U41: 0 | V41: 0
C42: =Road_CIL_HAM_Dashboard!C75 -> 2031-03-31 | E42: =Road_CIL_HAM_Dashboard!F75 -> 44.11174067 | F42: 13.99591928 | G42: 1 | H42: 0 | I42: 11 | L42: 39.7005666 | M42: 12.59632735 | O42: 16 | P42: 2048-03-31 | Q42: =Road_CIL_HAM_Dashboard!R75 -> 0 | R42: 0 | S42: 29 | T42: =SUM($R$27:R42) -> 526.8321365 | U42: 0 | V42: 0
C43: =Road_CIL_HAM_Dashboard!C76 -> 2032-03-31 | E43: =Road_CIL_HAM_Dashboard!F76 -> 48.52291474 | F43: 13.86982991 | G43: 1 | H43: 0 | I43: 12 | L43: 43.67062326 | M43: 12.48284692 | O43: 17 | P43: 2049-03-31 | Q43: =Road_CIL_HAM_Dashboard!R76 -> 0 | R43: 0 | S43: 30 | T43: =SUM($R$27:R43) -> 526.8321365 | U43: 0 | V43: 0
C44: =Road_CIL_HAM_Dashboard!C77 -> 2033-03-31 | E44: =Road_CIL_HAM_Dashboard!F77 -> 53.37520621 | F44: 13.74487649 | G44: 1 | H44: 0 | I44: 13 | L44: 48.03768559 | M44: 12.37038884 | O44: 18 | P44: 2050-03-31 | Q44: =Road_CIL_HAM_Dashboard!R77 -> 0 | R44: 0 | S44: 31 | T44: =SUM($R$27:R44) -> 526.8321365 | U44: 0 | V44: 0
C45: =Road_CIL_HAM_Dashboard!C78 -> 2034-03-31 | E45: =Road_CIL_HAM_Dashboard!F78 -> 58.71272683 | F45: 13.62104877 | G45: 1 | H45: 0 | I45: 14 | L45: 52.84145415 | M45: 12.2589439 | O45: 19 | P45: 2051-03-31 | Q45: =Road_CIL_HAM_Dashboard!R78 -> 0 | R45: 0 | S45: 32 | T45: =SUM($R$27:R45) -> 526.8321365 | U45: 0 | V45: 0
C46: =Road_CIL_HAM_Dashboard!C79 -> 2035-03-31 | E46: =Road_CIL_HAM_Dashboard!F79 -> 64.58399951 | F46: 13.49833662 | G46: 1 | H46: 0 | I46: 15 | L46: 58.12559956 | M46: 12.14850296 | O46: 20 | P46: 2052-03-31 | Q46: =Road_CIL_HAM_Dashboard!R79 -> 0 | R46: 0 | S46: 33 | T46: =SUM($R$27:R46) -> 526.8321365 | U46: 0 | V46: 0
C47: =Road_CIL_HAM_Dashboard!C80 -> 2036-03-31 | E47: =Road_CIL_HAM_Dashboard!F80 -> 71.04239946 | F47: 13.37672999 | G47: 1 | H47: 0 | I47: 16 | L47: 63.93815952 | M47: 12.03905699 | O47: 21 | P47: 2053-03-31 | Q47: =Road_CIL_HAM_Dashboard!R80 -> 0 | R47: 0 | S47: 34 | T47: =SUM($R$27:R47) -> 526.8321365 | U47: 0 | V47: 0
C48: =Road_CIL_HAM_Dashboard!C81 -> 2037-03-31 | E48: =Road_CIL_HAM_Dashboard!F81 -> 78.14663941 | F48: 13.25621891 | G48: 1 | H48: 0 | I48: 17 | L48: 70.33197547 | M48: 11.93059701 | O48: 22 | P48: 2054-03-31 | Q48: =Road_CIL_HAM_Dashboard!R81 -> 0 | R48: 0 | S48: 35 | T48: =SUM($R$27:R48) -> 526.8321365 | U48: 0 | V48: 0
C49: =Road_CIL_HAM_Dashboard!C82 -> 2038-03-31 | E49: =Road_CIL_HAM_Dashboard!F82 -> 85.96130335 | F49: 13.13679351 | G49: 1 | H49: 0 | I49: 18 | L49: 77.36517302 | M49: 11.82311416 | O49: 23 | P49: 2055-03-31 | Q49: =Road_CIL_HAM_Dashboard!R82 -> 0 | R49: 0 | S49: 36 | T49: =SUM($R$27:R49) -> 526.8321365 | U49: 0 | V49: 0
C50: =Road_CIL_HAM_Dashboard!C83 -> 2039-03-31 | E50: =Road_CIL_HAM_Dashboard!F83 -> 94.55743369 | F50: 13.01844402 | G50: 1 | H50: 0 | I50: 19 | L50: 85.10169032 | M50: 11.71659962 | O50: 24 | P50: 2056-03-31 | Q50: =Road_CIL_HAM_Dashboard!R83 -> 0 | R50: 0 | S50: 37 | T50: =SUM($R$27:R50) -> 526.8321365 | U50: 0 | V50: 0
C51: =Road_CIL_HAM_Dashboard!C84 -> 2040-03-31 | E51: =Road_CIL_HAM_Dashboard!F84 -> 104.01 | F51: 12.90076668 | G51: 1 | H51: 0 | I51: 20 | L51: 93.609 | M51: 11.61069001 | O51: 25 | P51: 2057-03-31 | Q51: =Road_CIL_HAM_Dashboard!R84 -> 0 | R51: 0 | S51: 38 | T51: =SUM($R$27:R51) -> 526.8321365 | U51: 0 | V51: 0
C52: =Road_CIL_HAM_Dashboard!C85 -> 2041-03-31 | E52: =Road_CIL_HAM_Dashboard!F85 -> 114.41 | F52: 12.78443181 | G52: 1 | H52: 0 | I52: 21 | L52: 102.969 | M52: 11.50598863 | O52: 26 | P52: 2058-03-31 | Q52: =Road_CIL_HAM_Dashboard!R85 -> 0 | R52: 0 | S52: 39 | T52: =SUM($R$27:R52) -> 526.8321365 | U52: 0 | V52: 0
C53: =Road_CIL_HAM_Dashboard!C86 -> 2042-03-31 | E53: =Road_CIL_HAM_Dashboard!F86 -> 125.84 | F53: 12.66814939 | G53: 1 | H53: 0 | I53: 22 | L53: 113.256 | M53: 11.40133445 | O53: 27 | P53: 2059-03-31 | Q53: =Road_CIL_HAM_Dashboard!R86 -> 0 | R53: 0 | S53: 40 | T53: =SUM($R$27:R53) -> 526.8321365 | U53: 0 | V53: 0
C54: =Road_CIL_HAM_Dashboard!C87 -> 2043-03-31 | E54: =Road_CIL_HAM_Dashboard!F87 -> 138.41 | F54: 12.55275223 | G54: 1 | H54: 0 | I54: 23 | L54: 124.569 | M54: 11.297477 | O54: 28 | P54: 2060-03-31 | Q54: =Road_CIL_HAM_Dashboard!R87 -> 0 | R54: 0 | S54: 41 | T54: =SUM($R$27:R54) -> 526.8321365 | U54: 0 | V54: 0
C55: =Road_CIL_HAM_Dashboard!C88 -> 2044-03-31 | E55: =Road_CIL_HAM_Dashboard!F88 -> 152.24 | F55: 12.43876561 | G55: 1 | H55: 0 | I55: 24 | L55: 137.016 | M55: 11.19488905 | O55: 29 | P55: 2061-03-31 | Q55: =Road_CIL_HAM_Dashboard!R88 -> 0 | R55: 0 | S55: 42 | T55: =SUM($R$27:R55) -> 526.8321365 | U55: 0 | V55: 0
C56: =Road_CIL_HAM_Dashboard!C89 -> 2045-03-31 | E56: =Road_CIL_HAM_Dashboard!F89 -> 167.45 | F56: 12.32567415 | G56: 1 | H56: 0 | I56: 25 | L56: 150.705 | M56: 11.09310673 | O56: 30 | P56: 2062-03-31 | Q56: =Road_CIL_HAM_Dashboard!R89 -> 0 | R56: 0 | S56: 43 | T56: =SUM($R$27:R56) -> 526.8321365 | U56: 0 | V56: 0
C57: =Road_CIL_HAM_Dashboard!C90 -> 2046-03-31 | E57: =Road_CIL_HAM_Dashboard!F90 -> 26 | F57: 1.724153387 | G57: 1 | H57: 0 | I57: 26 | L57: 23.4 | M57: 1.551738048 | O57: 31 | P57: 2063-03-31 | Q57: =Road_CIL_HAM_Dashboard!R90 -> 0 | R57: 0 | S57: 44 | T57: =SUM($R$27:R57) -> 526.8321365 | U57: 0 | V57: 0
A64: Norms
D67: Reason Selected | H67: =Road_CIL_HAM_Dashboard!$S$21 -> One Time Payment
D68: Difference between the NPVs | H68: =$V$21 -> 10.38642311
C70: Applicable Norms
G72: Increase in costs | H72: Decrease in costs | I72: Clause
D73: Option 1 | E73: One Time Payment | G73: Increase in costs If because of change in law, the concessionaire suffers increase in cost or reduction in after tax return or other financial burden [aggregate financial effect of which exceeds higher of Rs. 1 crore or 2 % of the total annuity payments in any accounting year], concessionaire may notify the authority and propose amendments to nullify the aftermath of change in laws by transferring the amount of NPV lacking from authority. | H73: Reduction in costs If because of change in law, the concessionaire enjoys reduction in cost or increase in after tax return or other financial burden [aggregate financial effect of which exceeds higher of Rs. 1 crore or 2 % of the total annuity payments in any accounting year], authority may notify the concessionaire and propose amendments to nullify the aftermath of change in laws by transferring the amount of excess NPV to authority .
D74: Option 1 | E74: Change in CP | G74: Increase in cost If because of change in law, the concessionaire suffers escalation in cost or decrease in after tax return or other financial burden [aggregate financial effect of which exceeds higher of Rs. 1 crore or 2 % of the total annuity payments in any accounting year], the concession period would be increased by the proportion of certain years to nullify the effect on both the parties. | H74: Reduction in cost If because of change in law, the concessionaire enjoys reduction in cost or increase in after tax return [aggregate financial effect of which exceeds higher of Rs. 1 crore or 2 % of the total annuity payments in any accounting year], the concession period would be decreased by the proportion of certain years to nullify the effect on both the parties.
G75: =IF(H67=E73,G73,G74) -> Increase in costs If because of change in law, the concessionaire suffers increase in cost or reduction in after tax return or other financial burden [aggregate financial effect of which exceeds higher of Rs. 1 crore or 2 % of the total annuity payments in any accounting year], concessionaire may notify the authority and propose amendments to nullify the aftermath of change in laws by transferring the amount of NPV lacking from authority. | H75: =IF(H67=E73,H73,H74) -> Reduction in costs If because of change in law, the concessionaire enjoys reduction in cost or increase in after tax return or other financial burden [aggregate financial effect of which exceeds higher of Rs. 1 crore or 2 % of the total annuity payments in any accounting year], authority may notify the concessionaire and propose amendments to nullify the aftermath of change in laws by transferring the amount of excess NPV to authority .
C76: Applicable Norm | G76: =IF(H68>0,G75,H75) -> Increase in costs If because of change in law, the concessionaire suffers increase in cost or reduction in after tax return or other financial burden [aggregate financial effect of which exceeds higher of Rs. 1 crore or 2 % of the total annuity payments in any accounting year], concessionaire may notify the authority and propose amendments to nullify the aftermath of change in laws by transferring the amount of NPV lacking from authority.
A79: Graph Data
D81: Project Days | E81: Days | F81: URN | G81: Sorted URN | H81: Project Days | I81: Days | J81: Dummy
D82: =Road_CIL_HAM_Dashboard!M31 -> Appointed Date | E82: =Road_CIL_HAM_Dashboard!S31 -> 2015-06-01 | F82: =E82&D82 -> 42156Appointed Date | G82: =_xlfn._xlws.SORT(F82:F85,1,1) -> 42156Appointed Date | H82: =INDEX($D$82:$D$85,MATCH(G82,$F$82:$F$85,0)) -> Appointed Date | I82: =INDEX($E$82:$E$85,MATCH(G82,$F$82:$F$85,0)) -> 2015-06-01 | J82: 1
D83: =Road_CIL_HAM_Dashboard!M32 -> Date of Construction Completion | E83: =Road_CIL_HAM_Dashboard!S32 -> 2018-05-31 | F83: =E83&D83 -> 43251Date of Construction Completion | G83: 43251Date of Construction Completion | H83: =INDEX($D$82:$D$85,MATCH(G83,$F$82:$F$85,0)) -> Date of Construction Completion | I83: =INDEX($E$82:$E$85,MATCH(G83,$F$82:$F$85,0)) -> 2018-05-31 | J83: 1
D84: =Road_CIL_HAM_Dashboard!M33 -> Commercial Operations Date (COD) | E84: =Road_CIL_HAM_Dashboard!S33 -> 2018-06-01 | F84: 43252Commercial Operations Date (COD) | G84: 43252Commercial Operations Date (COD) | H84: =INDEX($D$82:$D$85,MATCH(G84,$F$82:$F$85,0)) -> Commercial Operations Date (COD) | I84: 2018-06-01 | J84: 1
D85: =Road_CIL_HAM_Dashboard!M34 -> Termination Date | E85: =Road_CIL_HAM_Dashboard!S34 -> 2032-05-31 | F85: 48365Termination Date | G85: 48365Termination Date | H85: =INDEX($D$82:$D$85,MATCH(G85,$F$82:$F$85,0)) -> Termination Date | I85: 2032-05-31 | J85: 1
D87: Particular | E87: Years
D88: ="Actual "&Road_CIL_HAM_Dashboard!B22 -> Actual Concession Period Considered (yrs) | E88: =Road_CIL_HAM_Dashboard!H22 -> 17
D89: =Road_CIL_HAM_Dashboard!M25 -> Revised Concession Period | E89: =Road_CIL_HAM_Dashboard!S25-E88 -> 0
A91: // End

Sheet Road_CIL_TOT_Dashboard (hidden)
A1: Dashboard
A2: Key Inputs | L2: Key Outputs
C5: Change in CP/ One Time Payment
C10: Reference of your selection | G10: 2
B14: Project Particulars
B16: Construction Period (months) | H16: 36
B17: Appointed Date | H17: 2015-06-01
B18: Change in Law (months) from Appointed Date | H18: 68
B19: Reduction in Revenue | H19: 0.1 | M19: Result
B20: Total Cashflow - No change period | H20: =HYPERLINK("#'" & RIGHT(CELL("FILENAME",F61:F91), LEN(CELL("FILENAME",F61:F91)) - SEARCH("]", CELL("FILENAME",F61:F91))) & "'!" &CELL("address",F61:F91), "Click here to update figures") -> Click here to update figures
B21: Concession Period Considered (yrs) | H21: 30 | M21: Change in law year | S21: =EDATE(S31, H18) -> 2021-02-01
B22: Total Project Cost | H22: 100 | M22: You have selected | S22: =IF($G$10=1,"Change in CP", "One Time Payment") -> One Time Payment
B23: Initial Revenue (in INR Crs) | H23: 12 | M23: Change in Revenue | S23: =H23*H27 -> 0
B24: Discount Factor | H24: 0.11 | M24: Is Change in CP/ Compensation valid ? | S24: =IF(S56>=0,IF(S56>MAX(H41,S23),"YES","NO"),IF(-SS56>MAX(H41,S23),"YES","NO")) -> YES
B25: Total Cashflow - Last Period | H25: =HYPERLINK("#'" & RIGHT(CELL("FILENAME",R61:R91), LEN(CELL("FILENAME",R61:R91)) - SEARCH("]", CELL("FILENAME",R61:R91))) & "'!" &CELL("address",R61:R91), "Click here to update figures") -> Click here to update figures | M25: Change in Concession Period | S25: =Road_CIL_TOT_Workings!G11 -> 0
B26: Capex infusion post concession period | M26: Change in NPV post concession period | S26: =S56-S57-H26 -> 0.1023201117
B27: Click here to update norms | M27: Revised Concession Period | S27: =Road_CIL_TOT_Workings!G14 -> 30
M29: Key Dates
B31: Project Timeline | M31: Appointed Date | S31: =H17 -> 2015-06-01
M32: Date of Construction Completion | S32: =EDATE(H17,H16)-1 -> 2018-05-31
M33: Commercial Operations Date (COD) | S33: =S32+1 -> 2018-06-01
M34: Termination Date | S34: =EDATE(H17,H21*rngMthsYr)-1 -> 2045-05-31
M35: First Financial Year Ending | S35: =DATE(IF(MONTH(S31) > rngYrEnd, YEAR(S31) + 1, YEAR(S31)), rngYrEnd, rngYrEndDay) -> 2016-03-31
M36: No. of months in first Financial Year | S36: =ROUND((S35 - S31) / rngMthDays, 0) -> 10
M37: Construction Ending Financial Year | S37: =DATE(IF(MONTH(S32) > rngYrEnd, YEAR(S32) + 1, YEAR(S32)), rngYrEnd, rngYrEndDay) -> 2019-03-31
M38: Construction Ending Financial Year No. | S38: =YEAR(S37) - YEAR(S35) + 1 -> 4
M39: No. of operational months in Cons Ending FY | S39: =ROUND((S37-S32)/rngMthDays,0) -> 10
M40: Last Financial Year Ending | S40: =DATE(IF(MONTH(S34) > rngYrEnd, YEAR(S34) + 1, YEAR(S34)), rngYrEnd, rngYrEndDay) -> 2046-03-31
M41: Last Financial Year Ending No. | S41: =YEAR(S40)-YEAR(S35)+1 -> 31
M42: No. of months in last Financial Year | S42: =rngMthsYr - ROUND((S40 - S34) / rngMthDays, 0) -> 2
M43: =IF(S22="One Time Payment","Payment to be made by either party","") -> Payment to be made by either party | S43: =Road_CIL_TOT_Workings!G17 -> 20.43491833
A46: Norms on Change in Law
B48: =Road_CIL_TOT_Workings!G76 -> Increase in costs If because of change in law, the concessionaire suffers increase in cost or reduction in after tax return or other financial burden [aggregate financial effect of which exceeds higher of Rs. 1 crore or 0.5 % of realizable fees in any accounting year], concessionaire may notify the authority and propose amendments to nullify the aftermath of change in laws by transferring the amount of NPV lacking from authority.
A53: Cash Flows
B55: No Change in Law Scenario | H55: Change in Law Scenario | N55: Post Last FY Period
B56: NPV at Change in Law Year | H56: =NPV(H24,F61:F91) -> 142.3492175 | I56: NPV at Change in Law Year | L56: =NPV(H24,I61:I91) -> 121.8119791 | N56: Difference between the NPVs | S56: =H56-L56 -> 20.53723844
B57: Till Termination period - NPV at Change in Law Year | H57: =NPV($H$24,F61:INDEX(F61:F91,$H$21)) -> 141.3260164 | I57: NPV at Change in Law Year (Termination Period) | L57: =NPV($H$24,I61:INDEX(I61:I91,$H$21)) -> 120.891098 | N57: Difference between the NPVs | S57: =H57-L57 -> 20.43491833
B59: Change in Law Year | C59: Year Ending | F59: Net Cash Flow | H59: Discounted Cash Flow | I59: Net Cash Flow | L59: Discounted Cash Flow | N59: Year No. | O59: Year Ending | R59: Net Cash Flow | S59: Discounted Cash Flow | T59: Cumulative Discounted Cash Flow
B61: =Road_CIL_TOT_Workings!J27 ->  | C61: =S35 -> 2016-03-31 | F61: -33.33333333 | H61: =Road_CIL_TOT_Workings!F27 -> 0 | I61: =Road_CIL_TOT_Workings!L27 -> -33.33333333 | L61: =Road_CIL_TOT_Workings!M27 -> 0 | N61: =Road_CIL_TOT_Workings!O27 -> 1 | O61: =Road_CIL_TOT_Workings!P27 -> 2046-03-31 | R61: 100 | S61: =Road_CIL_TOT_Workings!R27 -> 5.974197459 | T61: =Road_CIL_TOT_Workings!T27 -> 5.974197459
B62: =Road_CIL_TOT_Workings!J28 ->  | C62: =EDATE(C61,12) -> 2017-03-31 | F62: -33.33333333 | H62: =Road_CIL_TOT_Workings!F28 -> 0 | I62: =Road_CIL_TOT_Workings!L28 -> -33.33333333 | L62: =Road_CIL_TOT_Workings!M28 -> 0 | N62: =Road_CIL_TOT_Workings!O28 -> 2 | O62: =Road_CIL_TOT_Workings!P28 -> 2047-03-31 | R62: 260.9 | S62: =Road_CIL_TOT_Workings!R28 -> 14.04205511 | T62: =Road_CIL_TOT_Workings!T28 -> 20.01625257
B63: =Road_CIL_TOT_Workings!J29 ->  | C63: =EDATE(C62,12) -> 2018-03-31 | F63: -33.33333333 | H63: =Road_CIL_TOT_Workings!F29 -> 0 | I63: =Road_CIL_TOT_Workings!L29 -> -33.33333333 | L63: =Road_CIL_TOT_Workings!M29 -> 0 | N63: =Road_CIL_TOT_Workings!O29 -> 3 | O63: =Road_CIL_TOT_Workings!P29 -> 2048-03-31 | R63: 339.2 | S63: =Road_CIL_TOT_Workings!R29 -> 16.44710476 | T63: =Road_CIL_TOT_Workings!T29 -> 36.46335733
B64: =Road_CIL_TOT_Workings!J30 ->  | C64: 2019-03-31 | F64: 14.05536 | H64: =Road_CIL_TOT_Workings!F30 -> 0 | I64: =Road_CIL_TOT_Workings!L30 -> 14.05536 | L64: =Road_CIL_TOT_Workings!M30 -> 0 | N64: =Road_CIL_TOT_Workings!O30 -> 4 | O64: =Road_CIL_TOT_Workings!P30 -> 2049-03-31 | R64: 441 | S64: =Road_CIL_TOT_Workings!R30 -> 19.26412226 | T64: =Road_CIL_TOT_Workings!T30 -> 55.72747959
B65: =Road_CIL_TOT_Workings!J31 ->  | C65: 2020-03-31 | F65: 15.460896 | H65: =Road_CIL_TOT_Workings!F31 -> 0 | I65: =Road_CIL_TOT_Workings!L31 -> 15.460896 | L65: =Road_CIL_TOT_Workings!M31 -> 0 | N65: =Road_CIL_TOT_Workings!O31 -> 5 | O65: =Road_CIL_TOT_Workings!P31 -> 2050-03-31 | R65: 573.3 | S65: =Road_CIL_TOT_Workings!R31 -> 22.56158463 | T65: =Road_CIL_TOT_Workings!T31 -> 78.28906422
B66: =Road_CIL_TOT_Workings!J32 -> CIL | C66: 2021-03-31 | F66: 17.0069856 | H66: =Road_CIL_TOT_Workings!F32 -> 15.32160865 | I66: =Road_CIL_TOT_Workings!L32 -> 15.30628704 | L66: =Road_CIL_TOT_Workings!M32 -> 13.78944778 | N66: =Road_CIL_TOT_Workings!O32 -> 6 | O66: =Road_CIL_TOT_Workings!P32 -> 2051-03-31 | R66: 745.4 | S66: =Road_CIL_TOT_Workings!R32 -> 26.42737743 | T66: =Road_CIL_TOT_Workings!T32 -> 104.7164417
B67: =Road_CIL_TOT_Workings!J33 ->  | C67: 2022-03-31 | F67: 18.70768416 | H67: =Road_CIL_TOT_Workings!F33 -> 15.18357614 | I67: =Road_CIL_TOT_Workings!L33 -> 16.83691574 | L67: =Road_CIL_TOT_Workings!M33 -> 13.66521852 | N67: =Road_CIL_TOT_Workings!O33 -> 7 | O67: =Road_CIL_TOT_Workings!P33 -> 2052-03-31 | R67: 969 | S67: =Road_CIL_TOT_Workings!R33 -> 30.95034377 | T67: =Road_CIL_TOT_Workings!T33 -> 135.6667854
B68: =Road_CIL_TOT_Workings!J34 ->  | C68: 2023-03-31 | F68: 20.57845258 | H68: =Road_CIL_TOT_Workings!F34 -> 15.04678716 | I68: =Road_CIL_TOT_Workings!L34 -> 18.52060732 | L68: =Road_CIL_TOT_Workings!M34 -> 13.54210845 | N68: =Road_CIL_TOT_Workings!O34 -> 8 | O68: =Road_CIL_TOT_Workings!P34 -> 2053-03-31 | R68: 0 | S68: =Road_CIL_TOT_Workings!R34 -> 0 | T68: =Road_CIL_TOT_Workings!T34 -> 135.6667854
B69: =Road_CIL_TOT_Workings!J35 ->  | C69: 2024-03-31 | F69: 22.63629783 | H69: =Road_CIL_TOT_Workings!F35 -> 14.91123052 | I69: =Road_CIL_TOT_Workings!L35 -> 20.37266805 | L69: =Road_CIL_TOT_Workings!M35 -> 13.42010747 | N69: =Road_CIL_TOT_Workings!O35 -> 9 | O69: =Road_CIL_TOT_Workings!P35 -> 2054-03-31 | R69: 0 | S69: =Road_CIL_TOT_Workings!R35 -> 0 | T69: =Road_CIL_TOT_Workings!T35 -> 135.6667854
B70: =Road_CIL_TOT_Workings!J36 ->  | C70: 2025-03-31 | F70: 24.89992762 | H70: =Road_CIL_TOT_Workings!F36 -> 14.77689511 | I70: =Road_CIL_TOT_Workings!L36 -> 22.40993486 | L70: =Road_CIL_TOT_Workings!M36 -> 13.2992056 | N70: =Road_CIL_TOT_Workings!O36 -> 10 | O70: =Road_CIL_TOT_Workings!P36 -> 2055-03-31 | R70: 0 | S70: =Road_CIL_TOT_Workings!R36 -> 0 | T70: =Road_CIL_TOT_Workings!T36 -> 135.6667854
B71: =Road_CIL_TOT_Workings!J37 ->  | C71: 2026-03-31 | F71: 27.38992038 | H71: =Road_CIL_TOT_Workings!F37 -> 14.64376993 | I71: =Road_CIL_TOT_Workings!L37 -> 24.65092834 | L71: =Road_CIL_TOT_Workings!M37 -> 13.17939294 | N71: =Road_CIL_TOT_Workings!O37 -> 11 | O71: =Road_CIL_TOT_Workings!P37 -> 2056-03-31 | R71: 0 | S71: =Road_CIL_TOT_Workings!R37 -> 0 | T71: =Road_CIL_TOT_Workings!T37 -> 135.6667854
B72: =Road_CIL_TOT_Workings!J38 ->  | C72: 2027-03-31 | F72: 30.12891242 | H72: =Road_CIL_TOT_Workings!F38 -> 14.51184408 | I72: =Road_CIL_TOT_Workings!L38 -> 27.11602117 | L72: =Road_CIL_TOT_Workings!M38 -> 13.06065967 | N72: =Road_CIL_TOT_Workings!O38 -> 12 | O72: =Road_CIL_TOT_Workings!P38 -> 2057-03-31 | R72: 0 | S72: =Road_CIL_TOT_Workings!R38 -> 0 | T72: =Road_CIL_TOT_Workings!T38 -> 135.6667854
B73: =Road_CIL_TOT_Workings!J39 ->  | C73: 2028-03-31 | F73: 33.14180366 | H73: =Road_CIL_TOT_Workings!F39 -> 14.38110674 | I73: =Road_CIL_TOT_Workings!L39 -> 29.82762329 | L73: =Road_CIL_TOT_Workings!M39 -> 12.94299607 | N73: =Road_CIL_TOT_Workings!O39 -> 13 | O73: =Road_CIL_TOT_Workings!P39 -> 2058-03-31 | R73: 0 | S73: =Road_CIL_TOT_Workings!R39 -> 0 | T73: =Road_CIL_TOT_Workings!T39 -> 135.6667854
B74: =Road_CIL_TOT_Workings!J40 ->  | C74: 2029-03-31 | F74: 36.45598402 | H74: =Road_CIL_TOT_Workings!F40 -> 14.25154722 | I74: =Road_CIL_TOT_Workings!L40 -> 32.81038562 | L74: =Road_CIL_TOT_Workings!M40 -> 12.8263925 | N74: =Road_CIL_TOT_Workings!O40 -> 14 | O74: =Road_CIL_TOT_Workings!P40 -> 2059-03-31 | R74: 0 | S74: =Road_CIL_TOT_Workings!R40 -> 0 | T74: =Road_CIL_TOT_Workings!T40 -> 135.6667854
B75: =Road_CIL_TOT_Workings!J41 ->  | C75: 2030-03-31 | F75: 40.10158243 | H75: =Road_CIL_TOT_Workings!F41 -> 14.1231549 | I75: =Road_CIL_TOT_Workings!L41 -> 36.09142418 | L75: =Road_CIL_TOT_Workings!M41 -> 12.71083941 | N75: =Road_CIL_TOT_Workings!O41 -> 15 | O75: =Road_CIL_TOT_Workings!P41 -> 2060-03-31 | R75: 0 | S75: =Road_CIL_TOT_Workings!R41 -> 0 | T75: =Road_CIL_TOT_Workings!T41 -> 135.6667854
B76: =Road_CIL_TOT_Workings!J42 ->  | C76: 2031-03-31 | F76: 44.11174067 | H76: =Road_CIL_TOT_Workings!F42 -> 13.99591928 | I76: =Road_CIL_TOT_Workings!L42 -> 39.7005666 | L76: =Road_CIL_TOT_Workings!M42 -> 12.59632735 | N76: =Road_CIL_TOT_Workings!O42 -> 16 | O76: =Road_CIL_TOT_Workings!P42 -> 2061-03-31 | R76: 0 | S76: =Road_CIL_TOT_Workings!R42 -> 0 | T76: =Road_CIL_TOT_Workings!T42 -> 135.6667854
B77: =Road_CIL_TOT_Workings!J43 ->  | C77: 2032-03-31 | F77: 48.52291474 | H77: =Road_CIL_TOT_Workings!F43 -> 13.86982991 | I77: =Road_CIL_TOT_Workings!L43 -> 43.67062326 | L77: =Road_CIL_TOT_Workings!M43 -> 12.48284692 | N77: =Road_CIL_TOT_Workings!O43 -> 17 | O77: =Road_CIL_TOT_Workings!P43 -> 2062-03-31 | R77: 0 | S77: =Road_CIL_TOT_Workings!R43 -> 0 | T77: =Road_CIL_TOT_Workings!T43 -> 135.6667854
B78: =Road_CIL_TOT_Workings!J44 ->  | C78: 2033-03-31 | F78: 53.37520621 | H78: =Road_CIL_TOT_Workings!F44 -> 13.74487649 | I78: =Road_CIL_TOT_Workings!L44 -> 48.03768559 | L78: =Road_CIL_TOT_Workings!M44 -> 12.37038884 | N78: =Road_CIL_TOT_Workings!O44 -> 18 | O78: =Road_CIL_TOT_Workings!P44 -> 2063-03-31 | R78: 0 | S78: =Road_CIL_TOT_Workings!R44 -> 0 | T78: =Road_CIL_TOT_Workings!T44 -> 135.6667854
B79: =Road_CIL_TOT_Workings!J45 ->  | C79: 2034-03-31 | F79: 58.71272683 | H79: =Road_CIL_TOT_Workings!F45 -> 13.62104877 | I79: =Road_CIL_TOT_Workings!L45 -> 52.84145415 | L79: =Road_CIL_TOT_Workings!M45 -> 12.2589439 | N79: =Road_CIL_TOT_Workings!O45 -> 19 | O79: =Road_CIL_TOT_Workings!P45 -> 2064-03-31 | R79: 0 | S79: =Road_CIL_TOT_Workings!R45 -> 0 | T79: =Road_CIL_TOT_Workings!T45 -> 135.6667854
B80: =Road_CIL_TOT_Workings!J46 ->  | C80: 2035-03-31 | F80: 64.58399951 | H80: =Road_CIL_TOT_Workings!F46 -> 13.49833662 | I80: =Road_CIL_TOT_Workings!L46 -> 58.12559956 | L80: =Road_CIL_TOT_Workings!M46 -> 12.14850296 | N80: =Road_CIL_TOT_Workings!O46 -> 20 | O80: =Road_CIL_TOT_Workings!P46 -> 2065-03-31 | R80: 0 | S80: =Road_CIL_TOT_Workings!R46 -> 0 | T80: =Road_CIL_TOT_Workings!T46 -> 135.6667854
B81: =Road_CIL_TOT_Workings!J47 ->  | C81: 2036-03-31 | F81: 71.04239946 | H81: =Road_CIL_TOT_Workings!F47 -> 13.37672999 | I81: =Road_CIL_TOT_Workings!L47 -> 63.93815952 | L81: =Road_CIL_TOT_Workings!M47 -> 12.03905699 | N81: =Road_CIL_TOT_Workings!O47 -> 21 | O81: =Road_CIL_TOT_Workings!P47 -> 2066-03-31 | R81: 0 | S81: =Road_CIL_TOT_Workings!R47 -> 0 | T81: =Road_CIL_TOT_Workings!T47 -> 135.6667854
B82: =Road_CIL_TOT_Workings!J48 ->  | C82: 2037-03-31 | F82: 78.14663941 | H82: =Road_CIL_TOT_Workings!F48 -> 13.25621891 | I82: =Road_CIL_TOT_Workings!L48 -> 70.33197547 | L82: =Road_CIL_TOT_Workings!M48 -> 11.93059701 | N82: =Road_CIL_TOT_Workings!O48 -> 22 | O82: =Road_CIL_TOT_Workings!P48 -> 2067-03-31 | R82: 0 | S82: =Road_CIL_TOT_Workings!R48 -> 0 | T82: =Road_CIL_TOT_Workings!T48 -> 135.6667854
B83: =Road_CIL_TOT_Workings!J49 ->  | C83: 2038-03-31 | F83: 85.96130335 | H83: =Road_CIL_TOT_Workings!F49 -> 13.13679351 | I83: =Road_CIL_TOT_Workings!L49 -> 77.36517302 | L83: =Road_CIL_TOT_Workings!M49 -> 11.82311416 | N83: =Road_CIL_TOT_Workings!O49 -> 23 | O83: =Road_CIL_TOT_Workings!P49 -> 2068-03-31 | R83: 0 | S83: =Road_CIL_TOT_Workings!R49 -> 0 | T83: =Road_CIL_TOT_Workings!T49 -> 135.6667854
B84: =Road_CIL_TOT_Workings!J50 ->  | C84: 2039-03-31 | F84: 94.55743369 | H84: =Road_CIL_TOT_Workings!F50 -> 13.01844402 | I84: =Road_CIL_TOT_Workings!L50 -> 85.10169032 | L84: =Road_CIL_TOT_Workings!M50 -> 11.71659962 | N84: =Road_CIL_TOT_Workings!O50 -> 24 | O84: =Road_CIL_TOT_Workings!P50 -> 2069-03-31 | R84: 0 | S84: =Road_CIL_TOT_Workings!R50 -> 0 | T84: =Road_CIL_TOT_Workings!T50 -> 135.6667854
B85: =Road_CIL_TOT_Workings!J51 ->  | C85: 2040-03-31 | F85: 104.01 | H85: =Road_CIL_TOT_Workings!F51 -> 12.90076668 | I85: =Road_CIL_TOT_Workings!L51 -> 93.609 | L85: =Road_CIL_TOT_Workings!M51 -> 11.61069001 | N85: =Road_CIL_TOT_Workings!O51 -> 25 | O85: =Road_CIL_TOT_Workings!P51 -> 2070-03-31 | R85: 0 | S85: =Road_CIL_TOT_Workings!R51 -> 0 | T85: =Road_CIL_TOT_Workings!T51 -> 135.6667854
B86: =Road_CIL_TOT_Workings!J52 ->  | C86: 2041-03-31 | F86: 114.41 | H86: =Road_CIL_TOT_Workings!F52 -> 12.78443181 | I86: =Road_CIL_TOT_Workings!L52 -> 102.969 | L86: =Road_CIL_TOT_Workings!M52 -> 11.50598863 | N86: =Road_CIL_TOT_Workings!O52 -> 26 | O86: =Road_CIL_TOT_Workings!P52 -> 2071-03-31 | R86: 0 | S86: =Road_CIL_TOT_Workings!R52 -> 0 | T86: =Road_CIL_TOT_Workings!T52 -> 135.6667854
B87: =Road_CIL_TOT_Workings!J53 ->  | C87: 2042-03-31 | F87: 125.84 | H87: =Road_CIL_TOT_Workings!F53 -> 12.66814939 | I87: =Road_CIL_TOT_Workings!L53 -> 113.256 | L87: =Road_CIL_TOT_Workings!M53 -> 11.40133445 | N87: =Road_CIL_TOT_Workings!O53 -> 27 | O87: =Road_CIL_TOT_Workings!P53 -> 2072-03-31 | R87: 0 | S87: =Road_CIL_TOT_Workings!R53 -> 0 | T87: =Road_CIL_TOT_Workings!T53 -> 135.6667854
B88: =Road_CIL_TOT_Workings!J54 ->  | C88: 2043-03-31 | F88: 138.41 | H88: =Road_CIL_TOT_Workings!F54 -> 12.55275223 | I88: =Road_CIL_TOT_Workings!L54 -> 124.569 | L88: =Road_CIL_TOT_Workings!M54 -> 11.297477 | N88: =Road_CIL_TOT_Workings!O54 -> 28 | O88: =Road_CIL_TOT_Workings!P54 -> 2073-03-31 | R88: 0 | S88: =Road_CIL_TOT_Workings!R54 -> 0 | T88: =Road_CIL_TOT_Workings!T54 -> 135.6667854
B89: =Road_CIL_TOT_Workings!J55 ->  | C89: 2044-03-31 | F89: 152.24 | H89: =Road_CIL_TOT_Workings!F55 -> 12.43876561 | I89: =Road_CIL_TOT_Workings!L55 -> 137.016 | L89: =Road_CIL_TOT_Workings!M55 -> 11.19488905 | N89: =Road_CIL_TOT_Workings!O55 -> 29 | O89: =Road_CIL_TOT_Workings!P55 -> 2074-03-31 | R89: 0 | S89: =Road_CIL_TOT_Workings!R55 -> 0 | T89: =Road_CIL_TOT_Workings!T55 -> 135.6667854
B90: =Road_CIL_TOT_Workings!J56 ->  | C90: 2045-03-31 | F90: 167.45 | H90: =Road_CIL_TOT_Workings!F56 -> 12.32567415 | I90: =Road_CIL_TOT_Workings!L56 -> 150.705 | L90: =Road_CIL_TOT_Workings!M56 -> 11.09310673 | N90: =Road_CIL_TOT_Workings!O56 -> 30 | O90: =Road_CIL_TOT_Workings!P56 -> 2075-03-31 | R90: 0 | S90: =Road_CIL_TOT_Workings!R56 -> 0 | T90: =Road_CIL_TOT_Workings!T56 -> 135.6667854
B91: =Road_CIL_TOT_Workings!J57 ->  | C91: 2046-03-31 | F91: 26 | H91: =Road_CIL_TOT_Workings!F57 -> 1.724153387 | I91: =Road_CIL_TOT_Workings!L57 -> 23.4 | L91: =Road_CIL_TOT_Workings!M57 -> 1.551738048 | N91: =Road_CIL_TOT_Workings!O57 -> 31 | O91: =Road_CIL_TOT_Workings!P57 -> 2076-03-31 | R91: 0 | S91: =Road_CIL_TOT_Workings!R57 -> 0 | T91: =Road_CIL_TOT_Workings!T57 -> 135.6667854
A115: Instructions
L118: Legend
B119: General | E119: Project details need to be entered in the yellow marked cells.
N121: Input Cell
B122: Project Particulars | E122: ="Cell "&SUBSTITUTE(CELL("address",H16),"$","")&" - Construction Period" -> Cell H16 - Construction Period | N122: Change in law Year
E123: ="Cell "&SUBSTITUTE(CELL("address",H21),"$","")&" - Concession Period" -> Cell H21 - Concession Period | M123: Units | N123: Amount are in Rs. Cr
B125: Change in Law | E125: ="Cell "&SUBSTITUTE(CELL("address",S21),"$","")&" - the year in which change of law is observed." -> Cell S21 - the year in which change of law is observed.
E126: ="Cell "&SUBSTITUTE(CELL("address",B19),"$","")&" - type of change observed." -> Cell B19 - type of change observed.
E127: ="Cell "&SUBSTITUTE(CELL("address",H19),"$","")&" - reduction in revenue due to change in law." -> Cell H19 - reduction in revenue due to change in law.
E128: ="Cell "&SUBSTITUTE(CELL("address",F59),"$","")&" - Cash Flow in every additional year" -> Cell F59 - Cash Flow in every additional year
B131: Key Information about the Project | E131: ="Cell "&SUBSTITUTE(CELL("address",H21),"$","")&" - Concession Period Considered (yrs)" -> Cell H21 - Concession Period Considered (yrs)
E132: ="Cell "&SUBSTITUTE(CELL("address",H22),"$","")&" - Total Project Cost " -> Cell H22 - Total Project Cost
E133: ="Cell "&SUBSTITUTE(CELL("address",H23),"$","")&" - Initial Revenue (in INR Crs) " -> Cell H23 - Initial Revenue (in INR Crs)
E134: ="Cell "&SUBSTITUTE(CELL("address",H24),"$","")&" - Discount Factor " -> Cell H24 - Discount Factor
B137: Key Dates | E137: ="Cell "&SUBSTITUTE(CELL("address",H17),"$","")&" - Appointed Date" -> Cell H17 - Appointed Date
B139: Option | E139: ="Cell "&SUBSTITUTE(CELL("address",C8),"$","")&" - various reasons for method of completion" -> Cell C8 - various reasons for method of completion
B141: Results | E141: ="Cell "&SUBSTITUTE(CELL("address",S25),"$","")&" - indicates the inc/ dec in concession period." -> Cell S25 - indicates the inc/ dec in concession period.
A144: // End

Sheet Road_CIL_TOT_Workings (hidden)
A1: Workings
F2: Inputs | G2: Inputs from other sheets
F3: Calculation | G3: Major Calculation
F4: Inputs | G4: Manual Inputs
F5: Inputs | G5: Hardcoded Values
A7: Results
C9: Reason Selected | G9: =Road_CIL_TOT_Dashboard!S22 -> One Time Payment
C10: Change in Concession Period | G10: =V22 -> 2.025455287
C11: Change in Concession Period | G11: =IF(G9="Change in CP",G10,0) -> 0
C13: Concession Period Considered (yrs) | G13: =Road_CIL_TOT_Dashboard!H21 -> 30
C14: Revised Concession Period | G14: =G13+G11 -> 30
C16: Difference Between the NPVs | G16: =V21 -> 20.43491833
C17: Payment to be made by either party | G17: =IF(G9="One Time Payment",G16,"") -> 20.43491833
A19: NPV Calculations
C21: Change in the law date | F21: =Road_CIL_TOT_Dashboard!S21 -> 2021-02-01 | H21: Change in law year | J21: =IF(MONTH(F21)<= 3, YEAR(F21) -1, YEAR(F21)) -> 2020 | O21: Last Financial Year | R21: =Road_CIL_TOT_Dashboard!S40 -> 2046-03-31 | T21: Difference between the NPVs | V21: =Road_CIL_TOT_Dashboard!S57 -> 20.43491833
C22: Discount Factor | F22: =Road_CIL_TOT_Dashboard!H24 -> 0.11 | H22: Reduction in Revenue | J22: =Road_CIL_TOT_Dashboard!H19 -> 0.1 | O22: Month in a Year | R22: =rngMthsYr -> 12 | T22: Change in Concession Period | V22: =SUM(V27:V57) -> 2.025455287
C23: Appointed Date | F23: =Road_CIL_TOT_Dashboard!S31 -> 2015-06-01 | H23: Appointed Date Year | J23: =YEAR(F23) -> 2015
C25: Year Ending | E25: Net Cash Flow | F25: Discounted Cash Flow | G25: Post change in law period flag | H25: Pre change in law period flag | I25: Duration (Yrs) | J25: Change in Law (CIL) | L25: Net Cash Flow | M25: Discounted Cash Flow | O25: Year No. | P25: Year Ending | Q25: Net Cash Flow | R25: Discounted Cash Flow | S25: Duration (Yrs) | T25: Cumulative Discounted Cash Flow | U25: Recovery Period | V25: Recovery Year
C27: =Road_CIL_TOT_Dashboard!C61 -> 2016-03-31 | E27: =Road_CIL_TOT_Dashboard!F61 -> -33.33333333 | F27: =(E27/((1+$F$22)^$I27))*$G27 -> 0 | G27: =IF(C27>$F$21,1,0) -> 0 | H27: =IF(C27<$F$21,1,0) -> 1 | I27: =IF(H27=1,YEAR(C27)-$J$23,YEAR(C27)-$J$21) -> 1 | J27: =IF(AND($F$21>C26,$F$21<C27),"CIL","") ->  | L27: =IF(G27=1,E27*(1-$J$22),E27) -> -33.33333333 | M27: =(L27/((1+$F$22)^$I27))*$G27 -> 0 | O27: =SUM(O26)+1 -> 1 | P27: =IF(O27=1,$R$21,EDATE(P26,$R$22)) -> 2046-03-31 | Q27: =Road_CIL_TOT_Dashboard!R61 -> 100 | R27: =(Q27/((1+$F$22)^S27)) -> 5.974197459 | S27: =YEAR(P27)+1-$J$21 -> 27 | T27: =SUM($R$27:R27) -> 5.974197459 | U27: =IF(AND(T27>$V$21,T26<$V$21),1,0) -> 0 | V27: =IF(U27=1,O26+(($V$21-T26)/R27),0) -> 0
C28: =Road_CIL_TOT_Dashboard!C62 -> 2017-03-31 | E28: =Road_CIL_TOT_Dashboard!F62 -> -33.33333333 | F28: =(E28/((1+$F$22)^$I28))*$G28 -> 0 | G28: =IF(C28>$F$21,1,0) -> 0 | H28: =IF(C28<$F$21,1,0) -> 1 | I28: =IF(H28=1,YEAR(C28)-$J$23,YEAR(C28)-$J$21) -> 2 | J28: =IF(AND($F$21>C27,$F$21<C28),"CIL","") ->  | L28: =IF(G28=1,E28*(1-$J$22),E28) -> -33.33333333 | M28: =(L28/((1+$F$22)^$I28))*$G28 -> 0 | O28: =SUM(O27)+1 -> 2 | P28: =IF(O28=1,$R$21,EDATE(P27,$R$22)) -> 2047-03-31 | Q28: =Road_CIL_TOT_Dashboard!R62 -> 260.9 | R28: =(Q28/((1+$F$22)^S28)) -> 14.04205511 | S28: =YEAR(P28)+1-$J$21 -> 28 | T28: =SUM($R$27:R28) -> 20.01625257 | U28: =IF(AND(T28>$V$21,T27<$V$21),1,0) -> 0 | V28: =IF(U28=1,O27+(($V$21-T27)/R28),0) -> 0
C29: =Road_CIL_TOT_Dashboard!C63 -> 2018-03-31 | E29: =Road_CIL_TOT_Dashboard!F63 -> -33.33333333 | F29: 0 | G29: 0 | H29: 1 | I29: 3 | L29: -33.33333333 | M29: 0 | O29: 3 | P29: 2048-03-31 | Q29: =Road_CIL_TOT_Dashboard!R63 -> 339.2 | R29: 16.44710476 | S29: 29 | T29: =SUM($R$27:R29) -> 36.46335733 | U29: 1 | V29: 2.025455287
C30: =Road_CIL_TOT_Dashboard!C64 -> 2019-03-31 | E30: =Road_CIL_TOT_Dashboard!F64 -> 14.05536 | F30: 0 | G30: 0 | H30: 1 | I30: 4 | L30: 14.05536 | M30: 0 | O30: 4 | P30: 2049-03-31 | Q30: =Road_CIL_TOT_Dashboard!R64 -> 441 | R30: 19.26412226 | S30: 30 | T30: =SUM($R$27:R30) -> 55.72747959 | U30: 0 | V30: 0
C31: =Road_CIL_TOT_Dashboard!C65 -> 2020-03-31 | E31: =Road_CIL_TOT_Dashboard!F65 -> 15.460896 | F31: 0 | G31: 0 | H31: 1 | I31: 5 | L31: 15.460896 | M31: 0 | O31: 5 | P31: 2050-03-31 | Q31: =Road_CIL_TOT_Dashboard!R65 -> 573.3 | R31: 22.56158463 | S31: 31 | T31: =SUM($R$27:R31) -> 78.28906422 | U31: 0 | V31: 0
C32: =Road_CIL_TOT_Dashboard!C66 -> 2021-03-31 | E32: =Road_CIL_TOT_Dashboard!F66 -> 17.0069856 | F32: 15.32160865 | G32: 1 | H32: 0 | I32: 1 | J32: CIL | L32: 15.30628704 | M32: 13.78944778 | O32: 6 | P32: 2051-03-31 | Q32: =Road_CIL_TOT_Dashboard!R66 -> 745.4 | R32: 26.42737743 | S32: 32 | T32: =SUM($R$27:R32) -> 104.7164417 | U32: 0 | V32: 0
C33: =Road_CIL_TOT_Dashboard!C67 -> 2022-03-31 | E33: =Road_CIL_TOT_Dashboard!F67 -> 18.70768416 | F33: 15.18357614 | G33: 1 | H33: 0 | I33: 2 | L33: 16.83691574 | M33: 13.66521852 | O33: 7 | P33: 2052-03-31 | Q33: =Road_CIL_TOT_Dashboard!R67 -> 969 | R33: 30.95034377 | S33: 33 | T33: =SUM($R$27:R33) -> 135.6667854 | U33: 0 | V33: 0
C34: =Road_CIL_TOT_Dashboard!C68 -> 2023-03-31 | E34: =Road_CIL_TOT_Dashboard!F68 -> 20.57845258 | F34: 15.04678716 | G34: 1 | H34: 0 | I34: 3 | L34: 18.52060732 | M34: 13.54210845 | O34: 8 | P34: 2053-03-31 | Q34: =Road_CIL_TOT_Dashboard!R68 -> 0 | R34: 0 | S34: 34 | T34: =SUM($R$27:R34) -> 135.6667854 | U34: 0 | V34: 0
C35: =Road_CIL_TOT_Dashboard!C69 -> 2024-03-31 | E35: =Road_CIL_TOT_Dashboard!F69 -> 22.63629783 | F35: 14.91123052 | G35: 1 | H35: 0 | I35: 4 | L35: 20.37266805 | M35: 13.42010747 | O35: 9 | P35: 2054-03-31 | Q35: =Road_CIL_TOT_Dashboard!R69 -> 0 | R35: 0 | S35: 35 | T35: =SUM($R$27:R35) -> 135.6667854 | U35: 0 | V35: 0
C36: =Road_CIL_TOT_Dashboard!C70 -> 2025-03-31 | E36: =Road_CIL_TOT_Dashboard!F70 -> 24.89992762 | F36: 14.77689511 | G36: 1 | H36: 0 | I36: 5 | L36: 22.40993486 | M36: 13.2992056 | O36: 10 | P36: 2055-03-31 | Q36: =Road_CIL_TOT_Dashboard!R70 -> 0 | R36: 0 | S36: 36 | T36: =SUM($R$27:R36) -> 135.6667854 | U36: 0 | V36: 0
C37: =Road_CIL_TOT_Dashboard!C71 -> 2026-03-31 | E37: =Road_CIL_TOT_Dashboard!F71 -> 27.38992038 | F37: 14.64376993 | G37: 1 | H37: 0 | I37: 6 | L37: 24.65092834 | M37: 13.17939294 | O37: 11 | P37: 2056-03-31 | Q37: =Road_CIL_TOT_Dashboard!R71 -> 0 | R37: 0 | S37: 37 | T37: =SUM($R$27:R37) -> 135.6667854 | U37: 0 | V37: 0
C38: =Road_CIL_TOT_Dashboard!C72 -> 2027-03-31 | E38: =Road_CIL_TOT_Dashboard!F72 -> 30.12891242 | F38: 14.51184408 | G38: 1 | H38: 0 | I38: 7 | L38: 27.11602117 | M38: 13.06065967 | O38: 12 | P38: 2057-03-31 | Q38: =Road_CIL_TOT_Dashboard!R72 -> 0 | R38: 0 | S38: 38 | T38: =SUM($R$27:R38) -> 135.6667854 | U38: 0 | V38: 0
C39: =Road_CIL_TOT_Dashboard!C73 -> 2028-03-31 | E39: =Road_CIL_TOT_Dashboard!F73 -> 33.14180366 | F39: 14.38110674 | G39: 1 | H39: 0 | I39: 8 | L39: 29.82762329 | M39: 12.94299607 | O39: 13 | P39: 2058-03-31 | Q39: =Road_CIL_TOT_Dashboard!R73 -> 0 | R39: 0 | S39: 39 | T39: =SUM($R$27:R39) -> 135.6667854 | U39: 0 | V39: 0
C40: =Road_CIL_TOT_Dashboard!C74 -> 2029-03-31 | E40: =Road_CIL_TOT_Dashboard!F74 -> 36.45598402 | F40: 14.25154722 | G40: 1 | H40: 0 | I40: 9 | L40: 32.81038562 | M40: 12.8263925 | O40: 14 | P40: 2059-03-31 | Q40: =Road_CIL_TOT_Dashboard!R74 -> 0 | R40: 0 | S40: 40 | T40: =SUM($R$27:R40) -> 135.6667854 | U40: 0 | V40: 0
C41: =Road_CIL_TOT_Dashboard!C75 -> 2030-03-31 | E41: =Road_CIL_TOT_Dashboard!F75 -> 40.10158243 | F41: 14.1231549 | G41: 1 | H41: 0 | I41: 10 | L41: 36.09142418 | M41: 12.71083941 | O41: 15 | P41: 2060-03-31 | Q41: =Road_CIL_TOT_Dashboard!R75 -> 0 | R41: 0 | S41: 41 | T41: =SUM($R$27:R41) -> 135.6667854 | U41: 0 | V41: 0
C42: =Road_CIL_TOT_Dashboard!C76 -> 2031-03-31 | E42: =Road_CIL_TOT_Dashboard!F76 -> 44.11174067 | F42: 13.99591928 | G42: 1 | H42: 0 | I42: 11 | L42: 39.7005666 | M42: 12.59632735 | O42: 16 | P42: 2061-03-31 | Q42: =Road_CIL_TOT_Dashboard!R76 -> 0 | R42: 0 | S42: 42 | T42: =SUM($R$27:R42) -> 135.6667854 | U42: 0 | V42: 0
C43: =Road_CIL_TOT_Dashboard!C77 -> 2032-03-31 | E43: =Road_CIL_TOT_Dashboard!F77 -> 48.52291474 | F43: 13.86982991 | G43: 1 | H43: 0 | I43: 12 | L43: 43.67062326 | M43: 12.48284692 | O43: 17 | P43: 2062-03-31 | Q43: =Road_CIL_TOT_Dashboard!R77 -> 0 | R43: 0 | S43: 43 | T43: =SUM($R$27:R43) -> 135.6667854 | U43: 0 | V43: 0
C44: =Road_CIL_TOT_Dashboard!C78 -> 2033-03-31 | E44: =Road_CIL_TOT_Dashboard!F78 -> 53.37520621 | F44: 13.74487649 | G44: 1 | H44: 0 | I44: 13 | L44: 48.03768559 | M44: 12.37038884 | O44: 18 | P44: 2063-03-31 | Q44: =Road_CIL_TOT_Dashboard!R78 -> 0 | R44: 0 | S44: 44 | T44: =SUM($R$27:R44) -> 135.6667854 | U44: 0 | V44: 0
C45: =Road_CIL_TOT_Dashboard!C79 -> 2034-03-31 | E45: =Road_CIL_TOT_Dashboard!F79 -> 58.71272683 | F45: 13.62104877 | G45: 1 | H45: 0 | I45: 14 | L45: 52.84145415 | M45: 12.2589439 | O45: 19 | P45: 2064-03-31 | Q45: =Road_CIL_TOT_Dashboard!R79 -> 0 | R45: 0 | S45: 45 | T45: =SUM($R$27:R45) -> 135.6667854 | U45: 0 | V45: 0
C46: =Road_CIL_TOT_Dashboard!C80 -> 2035-03-31 | E46: =Road_CIL_TOT_Dashboard!F80 -> 64.58399951 | F46: 13.49833662 | G46: 1 | H46: 0 | I46: 15 | L46: 58.12559956 | M46: 12.14850296 | O46: 20 | P46: 2065-03-31 | Q46: =Road_CIL_TOT_Dashboard!R80 -> 0 | R46: 0 | S46: 46 | T46: =SUM($R$27:R46) -> 135.6667854 | U46: 0 | V46: 0
C47: =Road_CIL_TOT_Dashboard!C81 -> 2036-03-31 | E47: =Road_CIL_TOT_Dashboard!F81 -> 71.04239946 | F47: 13.37672999 | G47: 1 | H47: 0 | I47: 16 | L47: 63.93815952 | M47: 12.03905699 | O47: 21 | P47: 2066-03-31 | Q47: =Road_CIL_TOT_Dashboard!R81 -> 0 | R47: 0 | S47: 47 | T47: =SUM($R$27:R47) -> 135.6667854 | U47: 0 | V47: 0
C48: =Road_CIL_TOT_Dashboard!C82 -> 2037-03-31 | E48: =Road_CIL_TOT_Dashboard!F82 -> 78.14663941 | F48: 13.25621891 | G48: 1 | H48: 0 | I48: 17 | L48: 70.33197547 | M48: 11.93059701 | O48: 22 | P48: 2067-03-31 | Q48: =Road_CIL_TOT_Dashboard!R82 -> 0 | R48: 0 | S48: 48 | T48: =SUM($R$27:R48) -> 135.6667854 | U48: 0 | V48: 0
C49: =Road_CIL_TOT_Dashboard!C83 -> 2038-03-31 | E49: =Road_CIL_TOT_Dashboard!F83 -> 85.96130335 | F49: 13.13679351 | G49: 1 | H49: 0 | I49: 18 | L49: 77.36517302 | M49: 11.82311416 | O49: 23 | P49: 2068-03-31 | Q49: =Road_CIL_TOT_Dashboard!R83 -> 0 | R49: 0 | S49: 49 | T49: =SUM($R$27:R49) -> 135.6667854 | U49: 0 | V49: 0
C50: =Road_CIL_TOT_Dashboard!C84 -> 2039-03-31 | E50: =Road_CIL_TOT_Dashboard!F84 -> 94.55743369 | F50: 13.01844402 | G50: 1 | H50: 0 | I50: 19 | L50: 85.10169032 | M50: 11.71659962 | O50: 24 | P50: 2069-03-31 | Q50: =Road_CIL_TOT_Dashboard!R84 -> 0 | R50: 0 | S50: 50 | T50: =SUM($R$27:R50) -> 135.6667854 | U50: 0 | V50: 0
C51: =Road_CIL_TOT_Dashboard!C85 -> 2040-03-31 | E51: =Road_CIL_TOT_Dashboard!F85 -> 104.01 | F51: 12.90076668 | G51: 1 | H51: 0 | I51: 20 | L51: 93.609 | M51: 11.61069001 | O51: 25 | P51: 2070-03-31 | Q51: =Road_CIL_TOT_Dashboard!R85 -> 0 | R51: 0 | S51: 51 | T51: =SUM($R$27:R51) -> 135.6667854 | U51: 0 | V51: 0
C52: =Road_CIL_TOT_Dashboard!C86 -> 2041-03-31 | E52: =Road_CIL_TOT_Dashboard!F86 -> 114.41 | F52: 12.78443181 | G52: 1 | H52: 0 | I52: 21 | L52: 102.969 | M52: 11.50598863 | O52: 26 | P52: 2071-03-31 | Q52: =Road_CIL_TOT_Dashboard!R86 -> 0 | R52: 0 | S52: 52 | T52: =SUM($R$27:R52) -> 135.6667854 | U52: 0 | V52: 0
C53: =Road_CIL_TOT_Dashboard!C87 -> 2042-03-31 | E53: =Road_CIL_TOT_Dashboard!F87 -> 125.84 | F53: 12.66814939 | G53: 1 | H53: 0 | I53: 22 | L53: 113.256 | M53: 11.40133445 | O53: 27 | P53: 2072-03-31 | Q53: =Road_CIL_TOT_Dashboard!R87 -> 0 | R53: 0 | S53: 53 | T53: =SUM($R$27:R53) -> 135.6667854 | U53: 0 | V53: 0
C54: =Road_CIL_TOT_Dashboard!C88 -> 2043-03-31 | E54: =Road_CIL_TOT_Dashboard!F88 -> 138.41 | F54: 12.55275223 | G54: 1 | H54: 0 | I54: 23 | L54: 124.569 | M54: 11.297477 | O54: 28 | P54: 2073-03-31 | Q54: =Road_CIL_TOT_Dashboard!R88 -> 0 | R54: 0 | S54: 54 | T54: =SUM($R$27:R54) -> 135.6667854 | U54: 0 | V54: 0
C55: =Road_CIL_TOT_Dashboard!C89 -> 2044-03-31 | E55: =Road_CIL_TOT_Dashboard!F89 -> 152.24 | F55: 12.43876561 | G55: 1 | H55: 0 | I55: 24 | L55: 137.016 | M55: 11.19488905 | O55: 29 | P55: 2074-03-31 | Q55: =Road_CIL_TOT_Dashboard!R89 -> 0 | R55: 0 | S55: 55 | T55: =SUM($R$27:R55) -> 135.6667854 | U55: 0 | V55: 0
C56: =Road_CIL_TOT_Dashboard!C90 -> 2045-03-31 | E56: =Road_CIL_TOT_Dashboard!F90 -> 167.45 | F56: 12.32567415 | G56: 1 | H56: 0 | I56: 25 | L56: 150.705 | M56: 11.09310673 | O56: 30 | P56: 2075-03-31 | Q56: =Road_CIL_TOT_Dashboard!R90 -> 0 | R56: 0 | S56: 56 | T56: =SUM($R$27:R56) -> 135.6667854 | U56: 0 | V56: 0
C57: =Road_CIL_TOT_Dashboard!C91 -> 2046-03-31 | E57: =Road_CIL_TOT_Dashboard!F91 -> 26 | F57: 1.724153387 | G57: 1 | H57: 0 | I57: 26 | L57: 23.4 | M57: 1.551738048 | O57: 31 | P57: 2076-03-31 | Q57: =Road_CIL_TOT_Dashboard!R91 -> 0 | R57: 0 | S57: 57 | T57: =SUM($R$27:R57) -> 135.6667854 | U57: 0 | V57: 0
A64: Norms
D67: Reason Selected | H67: =Road_CIL_TOT_Dashboard!$S$22 -> One Time Payment
D68: Difference between the NPVs | H68: =$V$21 -> 20.43491833
C70: Applicable Norms
G72: Increase in costs | H72: Decrease in costs | I72: Clause
D73: Option 1 | E73: One Time Payment | G73: Increase in costs If because of change in law, the concessionaire suffers increase in cost or reduction in after tax return or other financial burden [aggregate financial effect of which exceeds higher of Rs. 1 crore or 0.5 % of realizable fees in any accounting year], concessionaire may notify the authority and propose amendments to nullify the aftermath of change in laws by transferring the amount of NPV lacking from authority. | H73: Reduction in costs If because of change in law, the concessionaire enjoys reduction in cost or increase in after tax return or other financial burden [aggregate financial effect of which exceeds higher of Rs. 1 crore or 0.5 % of realizable fees in any accounting year], authority may notify the concessionaire and Propose amendments to nullify the aftermath of change in laws by transferring the amount of excess NPV to authority .
D74: Option 1 | E74: Change in CP | G74: Increase in cost If because of change in law, the concessionaire suffers escalation in cost or decrease in after tax return or other financial burden [aggregate financial effect of which exceeds higher of Rs. 1 crore or 0.5 % of realizable fees in any accounting year], the concession period would be increased by the proportion of certain years to nullify the effect on both the parties. | H74: Reduction in cost If because of change in law, the concessionaire enjoys reduction in cost or increase in after tax return [aggregate financial effect of which exceeds higher of Rs. 1 crore or 0.5 % of realizable fees in any accounting year], the concession period would be decreased by the proportion of certain years to nullify the effect on both the parties.
G75: =IF(H67=E73,G73,G74) -> Increase in costs If because of change in law, the concessionaire suffers increase in cost or reduction in after tax return or other financial burden [aggregate financial effect of which exceeds higher of Rs. 1 crore or 0.5 % of realizable fees in any accounting year], concessionaire may notify the authority and propose amendments to nullify the aftermath of change in laws by transferring the amount of NPV lacking from authority. | H75: =IF(H67=E73,H73,H74) -> Reduction in costs If because of change in law, the concessionaire enjoys reduction in cost or increase in after tax return or other financial burden [aggregate financial effect of which exceeds higher of Rs. 1 crore or 0.5 % of realizable fees in any accounting year], authority may notify the concessionaire and Propose amendments to nullify the aftermath of change in laws by transferring the amount of excess NPV to authority .
C76: Applicable Norm | G76: =IF(H68>0,G75,H75) -> Increase in costs If because of change in law, the concessionaire suffers increase in cost or reduction in after tax return or other financial burden [aggregate financial effect of which exceeds higher of Rs. 1 crore or 0.5 % of realizable fees in any accounting year], concessionaire may notify the authority and propose amendments to nullify the aftermath of change in laws by transferring the amount of NPV lacking from authority.
A79: Graph Data
D81: Project Days | E81: Days | F81: URN | G81: Sorted URN | H81: Project Days | I81: Days | J81: Dummy
D82: =Road_CIL_TOT_Dashboard!M31 -> Appointed Date | E82: =Road_CIL_TOT_Dashboard!S31 -> 2015-06-01 | F82: =E82&D82 -> 42156Appointed Date | G82: =_xlfn._xlws.SORT(F82:F85,1,1) -> 42156Appointed Date | H82: =INDEX($D$82:$D$85,MATCH(G82,$F$82:$F$85,0)) -> Appointed Date | I82: =INDEX($E$82:$E$85,MATCH(G82,$F$82:$F$85,0)) -> 2015-06-01 | J82: 1
D83: =Road_CIL_TOT_Dashboard!M32 -> Date of Construction Completion | E83: =Road_CIL_TOT_Dashboard!S32 -> 2018-05-31 | F83: =E83&D83 -> 43251Date of Construction Completion | G83: 43251Date of Construction Completion | H83: =INDEX($D$82:$D$85,MATCH(G83,$F$82:$F$85,0)) -> Date of Construction Completion | I83: =INDEX($E$82:$E$85,MATCH(G83,$F$82:$F$85,0)) -> 2018-05-31 | J83: 1
D84: =Road_CIL_TOT_Dashboard!M33 -> Commercial Operations Date (COD) | E84: =Road_CIL_TOT_Dashboard!S33 -> 2018-06-01 | F84: 43252Commercial Operations Date (COD) | G84: 43252Commercial Operations Date (COD) | H84: =INDEX($D$82:$D$85,MATCH(G84,$F$82:$F$85,0)) -> Commercial Operations Date (COD) | I84: 2018-06-01 | J84: 1
D85: =Road_CIL_TOT_Dashboard!M34 -> Termination Date | E85: =Road_CIL_TOT_Dashboard!S34 -> 2045-05-31 | F85: 53113Termination Date | G85: 53113Termination Date | H85: =INDEX($D$82:$D$85,MATCH(G85,$F$82:$F$85,0)) -> Termination Date | I85: 2045-05-31 | J85: 1
D87: Particular | E87: Years
D88: ="Actual "&Road_CIL_TOT_Dashboard!B21 -> Actual Concession Period Considered (yrs) | E88: =Road_CIL_TOT_Dashboard!H21 -> 30
D89: =Road_CIL_TOT_Dashboard!M27 -> Revised Concession Period | E89: =Road_CIL_TOT_Dashboard!S27-E88 -> 0
A93: // End

Sheet Road_TP_HAM_Dashboard (hidden)
A1: Dashboard
A2: Key Inputs | L2: Key Outputs
B5: Risk events for calculation of Contingent Liability
B17: Your Selection | H17: 4
B21: Project Particulars | M21: Result
B23: Construction Period (months) | H23: 30 | M23: Base Adjusted Equity | S23: =Road_TP_HAM_Workings!D256 -> 106.2443026
B24: Concession Period Considered (yrs) | H24: 30 | M24: % Reduction per Month | S24: =Road_TP_HAM_Workings!D264 -> 0.002777777778
B25: Last Capex Payment Month | H25: 30 | M25: No. of months from Reference date | S25: =Road_TP_HAM_Workings!D271 -> 1
B26: Appointment Date | H26: 2015-05-01 | M26: Adjusted Equity | S26: =Road_TP_HAM_Workings!D281 -> 105.9491796
B27: Termination Date | H27: 2020-08-31 | M27: % of Debt Due | S27: =Road_TP_HAM_Workings!D401 -> 1
B28: Transfer Date | H28: =H27+30 -> 2020-09-30 | M28: Bid Amount % | S28: =Road_TP_HAM_Workings!D402 -> 0.375
B29: Bid Date | H29: 2015-05-01 | M29: % of Adjusted Equity | S29: =Road_TP_HAM_Workings!D403 -> 1.5
B30: Date as on 10% Physical Progress | H30: 2015-07-01 | M30: Annuity Payments (unpaid wrt concession period) % | S30: =Road_TP_HAM_Workings!D404 -> 1
B31: Date as on 30% Physical Progress | H31: 2015-08-01 | M31: Unclaimed Insurance Cover | S31: =Road_TP_HAM_Workings!D318 -> 40
B32: Date as on 50% Physical Progress | H32: 2015-09-01 | M32: Termination Payment | S32: =Road_TP_HAM_Workings!D465 -> 1647.611864
B33: Date as on 75% Physical Progress | H33: 2015-10-01
B34: Date as on 90% Physical Progress | H34: 2015-11-01 | M34: WPI Details
B36: Click here to update inputs | M36: ="WPI at the Time of " &M53 -> WPI at the Time of Appointed Date | S36: =Road_TP_HAM_Workings!D543 -> 109.7
B37: =HYPERLINK("#'" & RIGHT(CELL("FILENAME", Road_TP_HAM_Workings!$D$497), LEN(CELL("FILENAME", Road_TP_HAM_Workings!$D$497)) - SEARCH("]", CELL("FILENAME", Road_TP_HAM_Workings!$D$497))) & "'!" & MID(CELL("address", Road_TP_HAM_Workings!$D$497), SEARCH("!", CELL("address", Road_TP_HAM_Workings!$D$497)) + 1, LEN(CELL("address", Road_TP_HAM_Workings!$D$497)) - SEARCH("!", CELL("address", Road_TP_HAM_Workings!$D$497))), "Click here to update WPI figures if project timeline is not between 2011-2021") -> Click here to update WPI figures if project timeline is not between 2011-2021 | M37: ="WPI at the Time of " &M56 -> WPI at the Time of Termination Date | S37: =Road_TP_HAM_Workings!D544 -> 123.4
B38: =HYPERLINK("#'" & RIGHT(CELL("FILENAME", Road_TP_HAM_Workings!$D$569), LEN(CELL("FILENAME", Road_TP_HAM_Workings!$D$569)) - SEARCH("]", CELL("FILENAME", Road_TP_HAM_Workings!$D$569))) & "'!" & MID(CELL("address", Road_TP_HAM_Workings!$D$569), SEARCH("!", CELL("address", Road_TP_HAM_Workings!$D$569)) + 1, LEN(CELL("address", Road_TP_HAM_Workings!$D$569)) - SEARCH("!", CELL("address", Road_TP_HAM_Workings!$D$569))), "Click here to update CPI figures if project timeline is not between 2011-2021") -> Click here to update CPI figures if project timeline is not between 2011-2021 | M38: ="WPI at the Time of " &M55 -> WPI at the Time of Commercial Operations Date (COD) | S38: =Road_TP_HAM_Workings!D545 -> 114.9
M39: ="WPI at the Time of " &M65 -> WPI at the Time of Reference Date | S39: =Road_TP_HAM_Workings!D546 -> 123.4
B41: Means of Finance | M41: Project Milestones
B43: Equity Infused | H43: 100 | M43: First Payment Milestone Achieved | S43: =Road_TP_HAM_Workings!E209 -> 2015-08-28
B44: Debt Due | H44: 200 | M44: Second Payment Milestone Achieved | S44: =Road_TP_HAM_Workings!E210 -> 2016-01-25
B45: Insurance Cover | H45: 40 | M45: Third Payment Milestone Achieved | S45: =Road_TP_HAM_Workings!E211 -> 2016-04-29
B46: Insurance Claims (not admitted and paid) | H46: 35 | M46: Fourth Payment Milestone Achieved | S46: =Road_TP_HAM_Workings!E212 -> 2016-10-31
B47: Bid Project Cost | H47: 150 | M47: Fifth Payment Milestone Achieved | S47: =Road_TP_HAM_Workings!E213 -> 2016-10-31
B48: Daily Average Bank Rate as on Termination Date | H48: 0.03 | M48: Termination Period | S48: =Road_TP_HAM_Workings!D223 -> Termination on or after COD
B49: Annuity Payments (unpaid wrt concession period) | H49: =Road_TP_HAM_Workings!M779 -> 867.1641391 | M49: Payment Milestone | S49: =Road_TP_HAM_Workings!D224 -> Tenth Payment Milestone Achieved
M51: Key Dates
B53: Project Timeline | M53: Appointed Date | S53: =H26 -> 2015-05-01
M54: Date of Construction Completion | S54: =EDATE(H26,H23)-1 -> 2017-10-31
M55: Commercial Operations Date (COD) | S55: =S54+1 -> 2017-11-01
M56: Termination Date | S56: =H27 -> 2020-08-31
M57: First Financial Year Ending | S57: =DATE(IF(MONTH(S53)>Settings!$C$28,YEAR(S53)+1,YEAR(S53)),Settings!$C$28,Settings!$C$29) -> 2016-03-31
M58: No. of months in first Financial Year | S58: =ROUND((S57-S53)/Settings!C30,0) -> 11
M59: Construction Ending Financial Year | S59: =DATE(IF(MONTH(S54)>Settings!C28,YEAR(S54)+1,YEAR(S54)),Settings!C28,Settings!C29) -> 2018-03-31
M60: Construction Ending Financial Year No. | S60: =YEAR(S59)-YEAR(S57)+1 -> 3
M61: No. of operational months in Cons Ending FY | S61: =ROUND((S59-S54)/Settings!C30,0) -> 5
M62: Last Financial Year Ending | S62: =DATE(IF(MONTH(S56)>Settings!C28,YEAR(S56)+1,YEAR(S56)),Settings!C28,Settings!C29) -> 2021-03-31
M63: Last Financial Year Ending No. | S63: =YEAR(S62)-YEAR(S57)+1 -> 6
M64: No. of months in last Financial Year | S64: =Settings!C27-ROUND((S62-S56)/Settings!C30,0) -> 5
M65: Reference Date | S65: =EDATE(S56,-1) -> 2020-07-31
A67: Norms
B69: Norms on Termination Payment
C70: =Road_TP_HAM_Workings!D485 -> An amount equal to sum of Annuity Payments remaining unpaid for and in respect of the Concession Period, including interest thereon up to the Transfer Date.
A73: Instructions
L76: Legend
B77: General | E77: Project details need to be entered in the yellow marked cells.
N79: Input Cell
B80: Project Particulars | E80: ="Cell "&SUBSTITUTE(CELL("address",H23),"$","")&" - Construction Period" -> Cell H23 - Construction Period | N80: Results
E81: ="Cell "&SUBSTITUTE(CELL("address",H24),"$","")&" - Concession Period" -> Cell H24 - Concession Period | M81: Units | N81: Amount are in Rs. Cr
E82: ="Cell "&SUBSTITUTE(CELL("address",H25),"$","")&" - the month in which the last capex was/ has to be released." -> Cell H25 - the month in which the last capex was/ has to be released.
B84: Financial Details: | E84: ="Cell "&SUBSTITUTE(CELL("address",H43),"$","")&" - the Total Equity infused in the Project as on date" -> Cell H43 - the Total Equity infused in the Project as on date
E85: ="Cell "&SUBSTITUTE(CELL("address",H44),"$","")&" - the Debt Due on Termination Date as per Concession Agreement" -> Cell H44 - the Debt Due on Termination Date as per Concession Agreement
E86: ="Cell "&SUBSTITUTE(CELL("address",H45),"$","")&" - Insurance cover as per the Concession Agreement" -> Cell H45 - Insurance cover as per the Concession Agreement
E87: ="Cell "&SUBSTITUTE(CELL("address",H46),"$","")&" - Insurance claim in part of the Insurance cover are not admitted and paid." -> Cell H46 - Insurance claim in part of the Insurance cover are not admitted and paid.
B90: Wholesale Price Index (WPI) Details: | E90: ="Cell "&SUBSTITUTE(CELL("address",S36),"$","")&" - WPI of 1st day of the month of Appointed Date" -> Cell S36 - WPI of 1st day of the month of Appointed Date
E91: ="Cell "&SUBSTITUTE(CELL("address",S37),"$","")&" - latest monthly WPI of Termination Date" -> Cell S37 - latest monthly WPI of Termination Date
E92: ="Cell "&SUBSTITUTE(CELL("address",S38),"$","")&" - latest monthly WPI of COD" -> Cell S38 - latest monthly WPI of COD
B94: Key Dates | E94: ="Cell "&SUBSTITUTE(CELL("address",H26),"$","")&" - Appointed Date of the Project" -> Cell H26 - Appointed Date of the Project
E95: ="Cell "&SUBSTITUTE(CELL("address",H27),"$","")&" - Termination Date" -> Cell H27 - Termination Date
B97: Option | E97: ="Cell "&SUBSTITUTE(CELL("address",B17),"$","")&" - various reasons for Termination, the adequate reason to be selected." -> Cell B17 - various reasons for Termination, the adequate reason to be selected.
B99: Results | E99: ="Cell "&SUBSTITUTE(CELL("address",S32),"$","")&" - indicates the estimated Termination Payment on Termination Date." -> Cell S32 - indicates the estimated Termination Payment on Termination Date.
A106: //End

Sheet Road_TP_HAM_Workings (hidden)
A1: Workings
F2: Inputs | G2: Inputs from other sheets
F3: Calculation | G3: Major Calculation
F4: Can be Update | G4: Manual Inputs
F5: Inputs | G5: Hardcoded Values
A8: General Assumptions
C10: Dep Calc Dummy 1 | E10: 100 | F10: dummy - BOT Proposal, Article 48, Notes
C11: Dep Calc Dummy 2 | E11: 100 | F11: dummy - BOT Proposal, Article 48, Notes
C12: Insurance Claim Limit | E12: 0.8 | F12: % - Proposal, Article 28, 31
C13: Interest Charged switch | E13: =IF(Road_TP_HAM_Dashboard!H28,1,0) -> 1 | F13: 1 = On, 0 = Off
C14: Interest Addition Limit (above the daily avg bank rate) | E14: 0.03 | F14: % - Proposal, Article 31.3.4
C15: WPI weight - Price Index Multiple | E15: 0.7 | F15: weights - Proposal, Article 42
C16: CPI (IW) weight - Price Index Multiple | E16: 0.3 | F16: weights - Proposal, Article 42
C17: Price Index Mutilple - factor | E17: 1 | F17: factor
C18: Days falling from COD for 1st Installment of Annuity Payment | E18: 180 | F18: days - Proposal, Article 23.6.3
C19: TP in case Termination occurs on or after COD for Non Political Event | E19: 0.75 | F19: percentage - Proposal, Article 28.9.1
C20: TP in case Termination occurs on or after COD for Indirect Political FM Event | E20: 0.9 | F20: percentage - Proposal, Article 28.9.2
C21: Adjusted Equity for Political FM and Authority Default | E21: 1.5 | F21: percentage - Proposal, Article 28.9.2
C22: Adjusted Equity for Indirect Political | E22: 1.1 | F22: percentage - Proposal, Article 31.3.3
C23: Adjustment to TP in prior to COD case for Authority Default, Political FM and Indirect Political FM Event | E23: 0.8 | F23: percentage - Proposal, Article 31.3.3 and Article 28.9.2
C24: Adjustment to TP in prior to COD case for Concessionaire Default | E24: 0.65 | F24: percentage - Proposal, Article 31.3.1
C25: NORMS | E25: Click here to update
C26: NORMS Inputs | E26: Click here to update
C27: ANNUITY PAYMENTS DURING OPERATION PERIOD | E27: Click here to update
A29: PROJECT MILESTONES AS IN THE PROPOSAL
C31: Milestones | D31: Days falling from appointed date
C32: Extention in Scheduled Completion Date | D32: 0 | E32: days - Proposal, Schedule G; Project Completion Schedule
C33: =D47 -> First Payment Milestone Achieved | D33: 120 | E33: days - Proposal, Schedule G; Project Completion Schedule
C34: =D48 -> Second Payment Milestone Achieved | D34: 270 | E34: days - Proposal, Schedule G; Project Completion Schedule
C35: =D49 -> Third Payment Milestone Achieved | D35: 365 | E35: days - Proposal, Schedule G; Project Completion Schedule
C36: =D50 -> Fourth Payment Milestone Achieved | D36: 550 | E36: days - Proposal, Schedule G; Project Completion Schedule
C37: =D51 -> Fifth Payment Milestone Achieved | D37: 550 | E37: days - Proposal, Schedule G; Project Completion Schedule
C38: =D52 -> Sixth Payment Milestone Achieved | D38: 550 | E38: days - Proposal, Schedule G; Project Completion Schedule
C39: Seventh Payment Milestone Achieved | D39: 550 | E39: days - Proposal, Schedule G; Project Completion Schedule
C40: Eighth Payment Milestone Achieved | D40: 550 | E40: days - Proposal, Schedule G; Project Completion Schedule
C41: Ninth Payment Milestone Achieved | D41: 550 | E41: days - Proposal, Schedule G; Project Completion Schedule
C42: Tenth Payment Milestone Achieved | D42: 550 | E42: days - Proposal, Schedule G; Project Completion Schedule
A44: LISTS USED IN CALCULATIONS
C46: Project Phases | D46: Milestones | F46: Reason
C47: Between Project Milestone 1 and Project Milestone 2 | D47: First Payment Milestone Achieved | F47: Non-political FM Event
C48: Between Project Milestone 2 and Project Milestone 3 | D48: Second Payment Milestone Achieved | F48: Indirect Political FM Event
C49: Between Project Milestone 3 and Project Milestone 4 | D49: Third Payment Milestone Achieved | F49: Political FM Event
C50: Between Project Milestone 4 and Project Milestone 5 | D50: Fourth Payment Milestone Achieved | F50: Authority Default
C51: Between Project Milestone 5 and Project Milestone 6 | D51: Fifth Payment Milestone Achieved | F51: Concessionaire Default
C52: Between Project Milestone 6 and Project Milestone 7 | D52: Sixth Payment Milestone Achieved | F52: AD Pending
C53: Between Project Milestone 7 and Project Milestone 8 | D53: Seventh Payment Milestone Achieved | F53: Under Construction
C54: Between Project Milestone 8and Project Milestone 9 | D54: Eighth Payment Milestone Achieved
C55: Between Project Milestone 9 and Project Milestone 10 | D55: Ninth Payment Milestone Achieved
C56: After Project Milestone 10 | D56: Tenth Payment Milestone Achieved
A59: NORMS FOR DEBT DUE (TERMINATION PRIOR TO COD) CALCULATION AS STATED IN PROPOSAL
C62: Reason No. | D62: 1
C64: Reason | D64: Milestones | E64: Debt Due | F64: Bid Project Cost
C65: =INDEX($F$47:$F$53,$D$62) -> Non-political FM Event | D65: =D47 -> First Payment Milestone Achieved | E65: 0.9 | F65: 0.0068 | G65: Proposal, Article 28
C66: =INDEX($F$47:$F$53,$D$62) -> Non-political FM Event | D66: =D48 -> Second Payment Milestone Achieved | E66: 0.9 | F66: 0.0135 | G66: Proposal, Article 28
C67: =INDEX($F$47:$F$53,$D$62) -> Non-political FM Event | D67: =D49 -> Third Payment Milestone Achieved | E67: 0.9 | F67: 0.054 | G67: Proposal, Article 28
C68: =INDEX($F$47:$F$53,$D$62) -> Non-political FM Event | D68: =D50 -> Fourth Payment Milestone Achieved | E68: 0.9 | F68: 0.0945 | G68: Proposal, Article 28
C69: =INDEX($F$47:$F$53,$D$62) -> Non-political FM Event | D69: =D51 -> Fifth Payment Milestone Achieved | E69: 0.9 | F69: 0.135 | G69: Proposal, Article 28
C70: =INDEX($F$47:$F$53,$D$62) -> Non-political FM Event | D70: =D52 -> Sixth Payment Milestone Achieved | E70: 0.9 | F70: 0.1755 | G70: Proposal, Article 28
C71: =INDEX($F$47:$F$53,$D$62) -> Non-political FM Event | D71: Seventh Payment Milestone Achieved | E71: 0.9 | F71: 0.216 | G71: Proposal, Article 28
C72: =INDEX($F$47:$F$53,$D$62) -> Non-political FM Event | D72: Eighth Payment Milestone Achieved | E72: 0.9 | F72: 0.2565 | G72: Proposal, Article 28
C73: =INDEX($F$47:$F$53,$D$62) -> Non-political FM Event | D73: Ninth Payment Milestone Achieved | E73: 0.9 | F73: 0.297 | G73: Proposal, Article 28
C74: =INDEX($F$47:$F$53,$D$62) -> Non-political FM Event | D74: Tenth Payment Milestone Achieved | E74: 0.9 | F74: 0.3375 | G74: Proposal, Article 28
C76: Reason No. | D76: =D62+1 -> 2
C78: Reason | D78: Milestones | E78: Debt Due | F78: Bid Project Cost
C79: =INDEX($F$47:$F$53,$D$76) -> Indirect Political FM Event | D79: =D65 -> First Payment Milestone Achieved | E79: 1 | F79: 0.0075 | G79: Proposal, Article 28
C80: =INDEX($F$47:$F$53,$D$76) -> Indirect Political FM Event | D80: =D66 -> Second Payment Milestone Achieved | E80: 1 | F80: 0.015 | G80: Proposal, Article 28
C81: =INDEX($F$47:$F$53,$D$76) -> Indirect Political FM Event | D81: =D67 -> Third Payment Milestone Achieved | E81: 1 | F81: 0.06 | G81: Proposal, Article 28
C82: =INDEX($F$47:$F$53,$D$76) -> Indirect Political FM Event | D82: =D68 -> Fourth Payment Milestone Achieved | E82: 1 | F82: 0.105 | G82: Proposal, Article 28
C83: =INDEX($F$47:$F$53,$D$76) -> Indirect Political FM Event | D83: =D69 -> Fifth Payment Milestone Achieved | E83: 1 | F83: 0.15 | G83: Proposal, Article 28
C84: =INDEX($F$47:$F$53,$D$76) -> Indirect Political FM Event | D84: =D70 -> Sixth Payment Milestone Achieved | E84: 1 | F84: 0.195 | G84: Proposal, Article 28
C85: =INDEX($F$47:$F$53,$D$76) -> Indirect Political FM Event | D85: Seventh Payment Milestone Achieved | E85: 1 | F85: 0.24 | G85: Proposal, Article 28
C86: =INDEX($F$47:$F$53,$D$76) -> Indirect Political FM Event | D86: Eighth Payment Milestone Achieved | E86: 1 | F86: 0.285 | G86: Proposal, Article 28
C87: =INDEX($F$47:$F$53,$D$76) -> Indirect Political FM Event | D87: Ninth Payment Milestone Achieved | E87: 1 | F87: 0.33 | G87: Proposal, Article 28
C88: =INDEX($F$47:$F$53,$D$76) -> Indirect Political FM Event | D88: Tenth Payment Milestone Achieved | E88: 1 | F88: 0.375 | G88: Proposal, Article 28
C90: Reason No. | D90: =D76+1 -> 3
C92: Reason | D92: Milestones | E92: Debt Due | F92: Bid Project Cost
C93: =INDEX($F$47:$F$53,$D$90) -> Political FM Event | D93: =D79 -> First Payment Milestone Achieved | E93: 1 | F93: 0.0075 | G93: Proposal, Article 28
C94: =INDEX($F$47:$F$53,$D$90) -> Political FM Event | D94: =D80 -> Second Payment Milestone Achieved | E94: 1 | F94: 0.015 | G94: Proposal, Article 28
C95: =INDEX($F$47:$F$53,$D$90) -> Political FM Event | D95: =D81 -> Third Payment Milestone Achieved | E95: 1 | F95: 0.06 | G95: Proposal, Article 28
C96: =INDEX($F$47:$F$53,$D$90) -> Political FM Event | D96: =D82 -> Fourth Payment Milestone Achieved | E96: 1 | F96: 0.105 | G96: Proposal, Article 28
C97: =INDEX($F$47:$F$53,$D$90) -> Political FM Event | D97: =D83 -> Fifth Payment Milestone Achieved | E97: 1 | F97: 0.15 | G97: Proposal, Article 28
C98: =INDEX($F$47:$F$53,$D$90) -> Political FM Event | D98: =D84 -> Sixth Payment Milestone Achieved | E98: 1 | F98: 0.195 | G98: Proposal, Article 28
C99: =INDEX($F$47:$F$53,$D$90) -> Political FM Event | D99: Seventh Payment Milestone Achieved | E99: 1 | F99: 0.24 | G99: Proposal, Article 28
C100: =INDEX($F$47:$F$53,$D$90) -> Political FM Event | D100: Eighth Payment Milestone Achieved | E100: 1 | F100: 0.285 | G100: Proposal, Article 28
C101: =INDEX($F$47:$F$53,$D$90) -> Political FM Event | D101: Ninth Payment Milestone Achieved | E101: 1 | F101: 0.33 | G101: Proposal, Article 28
C102: =INDEX($F$47:$F$53,$D$90) -> Political FM Event | D102: Tenth Payment Milestone Achieved | E102: 1 | F102: 0.375 | G102: Proposal, Article 28
C104: Reason No. | D104: =D90+1 -> 4
C106: Reason | D106: Milestones | E106: Debt Due | F106: Bid Project Cost
C107: =INDEX($F$47:$F$53,$D$104) -> Authority Default | D107: =D93 -> First Payment Milestone Achieved | E107: 1 | F107: 0.0075 | G107: Proposal, Article 31
C108: =INDEX($F$47:$F$53,$D$104) -> Authority Default | D108: =D94 -> Second Payment Milestone Achieved | E108: 1 | F108: 0.015 | G108: Proposal, Article 31
C109: =INDEX($F$47:$F$53,$D$104) -> Authority Default | D109: =D95 -> Third Payment Milestone Achieved | E109: 1 | F109: 0.06 | G109: Proposal, Article 31
C110: =INDEX($F$47:$F$53,$D$104) -> Authority Default | D110: =D96 -> Fourth Payment Milestone Achieved | E110: 1 | F110: 0.105 | G110: Proposal, Article 31
C111: =INDEX($F$47:$F$53,$D$104) -> Authority Default | D111: =D97 -> Fifth Payment Milestone Achieved | E111: 1 | F111: 0.15 | G111: Proposal, Article 31
C112: =INDEX($F$47:$F$53,$D$104) -> Authority Default | D112: =D98 -> Sixth Payment Milestone Achieved | E112: 1 | F112: 0.195 | G112: Proposal, Article 31
C113: =INDEX($F$47:$F$53,$D$104) -> Authority Default | D113: Seventh Payment Milestone Achieved | E113: 1 | F113: 0.24 | G113: Proposal, Article 31
C114: =INDEX($F$47:$F$53,$D$104) -> Authority Default | D114: Eighth Payment Milestone Achieved | E114: 1 | F114: 0.285 | G114: Proposal, Article 31
C115: =INDEX($F$47:$F$53,$D$104) -> Authority Default | D115: Ninth Payment Milestone Achieved | E115: 1 | F115: 0.33 | G115: Proposal, Article 31
C116: =INDEX($F$47:$F$53,$D$104) -> Authority Default | D116: Tenth Payment Milestone Achieved | E116: 1 | F116: 0.375 | G116: Proposal, Article 31
C118: Reason No. | D118: =D104+1 -> 5
C120: Reason | D120: Milestones | E120: Debt Due | F120: Bid Project Cost
C121: =INDEX($F$47:$F$53,$D$118) -> Concessionaire Default | D121: =D107 -> First Payment Milestone Achieved | E121: 0 | F121: 0 | G121: Proposal, Article 31
C122: =INDEX($F$47:$F$53,$D$118) -> Concessionaire Default | D122: =D108 -> Second Payment Milestone Achieved | E122: 0 | F122: 0 | G122: Proposal, Article 31
C123: =INDEX($F$47:$F$53,$D$118) -> Concessionaire Default | D123: =D109 -> Third Payment Milestone Achieved | E123: 0.5 | F123: 0.03 | G123: Proposal, Article 31
C124: =INDEX($F$47:$F$53,$D$118) -> Concessionaire Default | D124: =D110 -> Fourth Payment Milestone Achieved | E124: 0.55 | F124: 0.0578 | G124: Proposal, Article 31
C125: =INDEX($F$47:$F$53,$D$118) -> Concessionaire Default | D125: =D111 -> Fifth Payment Milestone Achieved | E125: 0.6 | F125: 0.09 | G125: Proposal, Article 31
C126: =INDEX($F$47:$F$53,$D$118) -> Concessionaire Default | D126: =D112 -> Sixth Payment Milestone Achieved | E126: 0.65 | F126: 0.1268 | G126: Proposal, Article 31
C127: =INDEX($F$47:$F$53,$D$118) -> Concessionaire Default | D127: Seventh Payment Milestone Achieved | E127: 0.7 | F127: 0.168 | G127: Proposal, Article 31
C128: =INDEX($F$47:$F$53,$D$118) -> Concessionaire Default | D128: Eighth Payment Milestone Achieved | E128: 0.75 | F128: 0.2138 | G128: Proposal, Article 31
C129: =INDEX($F$47:$F$53,$D$118) -> Concessionaire Default | D129: Ninth Payment Milestone Achieved | E129: 0.8 | F129: 0.264 | G129: Proposal, Article 31
C130: =INDEX($F$47:$F$53,$D$118) -> Concessionaire Default | D130: Tenth Payment Milestone Achieved | E130: 0.85 | F130: 0.3188 | G130: Proposal, Article 31
C132: Reason No. | D132: =D118+1 -> 6
C134: Reason | D134: Milestones | E134: Debt Due | F134: Bid Project Cost
C135: =INDEX($F$47:$F$53,$D$132) -> AD Pending | D135: =D121 -> First Payment Milestone Achieved | E135: 0.9 | F135: 0.0068 | G135: Proposal, Article 31
C136: =INDEX($F$47:$F$53,$D$132) -> AD Pending | D136: =D122 -> Second Payment Milestone Achieved | E136: 0.9 | F136: 0.0135 | G136: Proposal, Article 31
C137: =INDEX($F$47:$F$53,$D$132) -> AD Pending | D137: =D123 -> Third Payment Milestone Achieved | E137: 0.9 | F137: 0.054 | G137: Proposal, Article 31
C138: =INDEX($F$47:$F$53,$D$132) -> AD Pending | D138: =D124 -> Fourth Payment Milestone Achieved | E138: 0.9 | F138: 0.0945 | G138: Proposal, Article 31
C139: =INDEX($F$47:$F$53,$D$132) -> AD Pending | D139: =D125 -> Fifth Payment Milestone Achieved | E139: 0.9 | F139: 0.135 | G139: Proposal, Article 31
C140: =INDEX($F$47:$F$53,$D$132) -> AD Pending | D140: =D126 -> Sixth Payment Milestone Achieved | E140: 0.9 | F140: 0.1755 | G140: Proposal, Article 31
C141: =INDEX($F$47:$F$53,$D$132) -> AD Pending | D141: Seventh Payment Milestone Achieved | E141: 0.9 | F141: 0.216 | G141: Proposal, Article 31
C142: =INDEX($F$47:$F$53,$D$132) -> AD Pending | D142: Eighth Payment Milestone Achieved | E142: 0.9 | F142: 0.2565 | G142: Proposal, Article 31
C143: =INDEX($F$47:$F$53,$D$132) -> AD Pending | D143: Ninth Payment Milestone Achieved | E143: 0.9 | F143: 0.297 | G143: Proposal, Article 31
C144: =INDEX($F$47:$F$53,$D$132) -> AD Pending | D144: Tenth Payment Milestone Achieved | E144: 0.9 | F144: 0.3375 | G144: Proposal, Article 31
C146: Reason No. | D146: =D132+1 -> 7
C148: Reason | D148: Milestones | E148: Debt Due | F148: Bid Project Cost
C149: =INDEX($F$47:$F$53,$D$146) -> Under Construction | D149: =D135 -> First Payment Milestone Achieved | E149: 0.9 | F149: 0.0068 | G149: Proposal, Article 31
C150: =INDEX($F$47:$F$53,$D$146) -> Under Construction | D150: =D136 -> Second Payment Milestone Achieved | E150: 0.9 | F150: 0.0135 | G150: Proposal, Article 31
C151: =INDEX($F$47:$F$53,$D$146) -> Under Construction | D151: =D137 -> Third Payment Milestone Achieved | E151: 0.9 | F151: 0.054 | G151: Proposal, Article 31
C152: =INDEX($F$47:$F$53,$D$146) -> Under Construction | D152: =D138 -> Fourth Payment Milestone Achieved | E152: 0.9 | F152: 0.0945 | G152: Proposal, Article 31
C153: =INDEX($F$47:$F$53,$D$146) -> Under Construction | D153: =D139 -> Fifth Payment Milestone Achieved | E153: 0.9 | F153: 0.135 | G153: Proposal, Article 31
C154: =INDEX($F$47:$F$53,$D$146) -> Under Construction | D154: =D140 -> Sixth Payment Milestone Achieved | E154: 0.9 | F154: 0.1755 | G154: Proposal, Article 31
C155: =INDEX($F$47:$F$53,$D$146) -> Under Construction | D155: Seventh Payment Milestone Achieved | E155: 0.9 | F155: 0.216 | G155: Proposal, Article 31
C156: =INDEX($F$47:$F$53,$D$146) -> Under Construction | D156: Eighth Payment Milestone Achieved | E156: 0.9 | F156: 0.2565 | G156: Proposal, Article 31
C157: =INDEX($F$47:$F$53,$D$146) -> Under Construction | D157: Ninth Payment Milestone Achieved | E157: 0.9 | F157: 0.297 | G157: Proposal, Article 31
C158: =INDEX($F$47:$F$53,$D$146) -> Under Construction | D158: Tenth Payment Milestone Achieved | E158: 0.9 | F158: 0.3375 | G158: Proposal, Article 31
A160: NORMS FOR INSURANCE CALCULATION AS STATED IN PROPOSAL
C162: Reason | D162: Insurance Cover switch (Prior to COD) | E162: Insurance Claim switch (Prior to COD) | F162: Insurance Cover switch (On or after COD) | G162: Insurance Claim switch (On or after COD) | H162: 1 = Applicable; 0 = Not Applicable
C163: =$F47 -> Non-political FM Event | D163: 1 | E163: 0 | F163: 1 | G163: 0 | H163: Proposal, Article 28
C164: =$F48 -> Indirect Political FM Event | D164: 1 | E164: 1 | F164: 0 | G164: 0 | H164: Proposal, Article 28
C165: Political FM Event | D165: 1 | E165: 1 | F165: 0 | G165: 0 | H165: Proposal, Article 28
C166: Authority Default | D166: 1 | E166: 1 | F166: 0 | G166: 0 | H166: Proposal, Article 31
C167: Concessionaire Default | D167: 0 | E167: 0 | F167: 0 | G167: 0 | H167: Proposal, Article 31
C168: AD Pending | D168: 0 | E168: 0 | F168: 0 | G168: 0 | H168: Proposal, Article 31
C169: Under Construction | D169: 0 | E169: 0 | F169: 0 | G169: 0 | H169: Proposal, Article 31
A171: NORMS FOR ADJUSTED EQUITY CALCULATION AS STATED IN PROPOSAL
C173: Reason | D173: Adjusted Equity
C174: =$F47 -> Non-political FM Event | D174: 0 | E174: % - Proposal, Article 28
C175: =$F48 -> Indirect Political FM Event | D175: 1.1 | E175: % - Proposal, Article 28
C176: Political FM Event | D176: 1.5 | E176: % - Proposal, Article 28
C177: Authority Default | D177: 1.5 | E177: % - Proposal, Article 31
C178: Concessionaire Default | D178: 0 | E178: % - Proposal, Article 31
C179: AD Pending | D179: 0 | E179: % - Proposal, Article 31
C180: Under Construction | D180: 0 | E180: % - Proposal, Article 31
A182: NORMS FOR DEBT DUE (TERMINATION AFTER TO COD) CALCULATION AS STATED IN PROPOSAL
C184: Reason | D184: Annuity Payments unpaid wrt remaining Concession Period
C185: =$F47 -> Non-political FM Event | D185: 0.75 | E185: % - Proposal, Article 28
C186: =$F48 -> Indirect Political FM Event | D186: 0.9 | E186: % - Proposal, Article 28
C187: Political FM Event | D187: 1 | E187: % - Proposal, Article 28
C188: Authority Default | D188: 1 | E188: % - Proposal, Article 31
C189: Concessionaire Default | D189: 0.65 | E189: % - Proposal, Article 31
C190: AD Pending | D190: 0 | E190: % - Proposal, Article 31
C191: Under Construction | D191: 0 | E191: % - Proposal, Article 31
A193: NORMS FOR ANNUITY PAYMENT IN OPERATION PERIOD
C195: Reason | D195: Annuity Payments Schedule
C196: % of Bid Project Cost paid - 10% Physical Progress | D196: 0.1 | E196: % - Proposal, Article 23.6
C197: % of Bid Project Cost paid - 30% Physical Progress | D197: 0.2 | E197: % - Proposal, Article 23.6
C198: % of Bid Project Cost paid - 50% Physical Progress | D198: 0.2 | E198: % - Proposal, Article 23.6
C199: % of Bid Project Cost paid - 75% Physical Progress | D199: 0.25 | E199: % - Proposal, Article 23.6
C200: % of Bid Project Cost paid - 90% Physical Progress | D200: 0.15 | E200: % - Proposal, Article 23.6
C201: % of Bid Project Cost paid - COD | D201: 0.1 | E201: % - Proposal, Article 23.6
A203: PROJECT MILESTONE DATE CALCULATION
C205: Appointed Date | D205: =Road_TP_HAM_Dashboard!S53 -> 2015-05-01 | E205: date
C206: Date of Construction Completion | D206: =Road_TP_HAM_Dashboard!S54 -> 2017-10-31 | E206: date
C208: Project Phases | D208: Days falling from Appointed date | E208: Dates
C209: =D47 -> First Payment Milestone Achieved | D209: =INDEX($D$33:$D$42,MATCH(C209,$C$33:$C$42,0)) -> 120 | E209: =$D$205+D209-1 -> 2015-08-28
C210: =D48 -> Second Payment Milestone Achieved | D210: =INDEX($D$33:$D$42,MATCH(C210,$C$33:$C$42,0)) -> 270 | E210: =$D$205+D210-1 -> 2016-01-25
C211: =D49 -> Third Payment Milestone Achieved | D211: 365 | E211: 2016-04-29
C212: =D50 -> Fourth Payment Milestone Achieved | D212: 550 | E212: 2016-10-31
C213: =D51 -> Fifth Payment Milestone Achieved | D213: 550 | E213: 2016-10-31
C214: =D52 -> Sixth Payment Milestone Achieved | D214: 550 | E214: 2016-10-31
C215: Seventh Payment Milestone Achieved | D215: 550 | E215: 2016-10-31
C216: Eighth Payment Milestone Achieved | D216: 550 | E216: 2016-10-31
C217: Ninth Payment Milestone Achieved | D217: 550 | E217: 2016-10-31
C218: Tenth Payment Milestone Achieved | D218: 550 | E218: =$D$206 -> 2017-10-31
C220: Commercial Operations Date (COD) | D220: =Road_TP_HAM_Dashboard!S55 -> 2017-11-01
C221: Termination Date | D221: =Road_TP_HAM_Dashboard!S56 -> 2020-08-31
C223: Termination Period | D223: =IF(D221<D220, "Termination before COD", "Termination on or after COD") -> Termination on or after COD
C224: Payment Milestone | D224: =G242 -> Tenth Payment Milestone Achieved
A226: APPLICABLE PROJECT MILESTONE DATE
C228: Termination Date | D228: =Road_TP_HAM_Dashboard!S56 -> 2020-08-31
C230: Project Phases | D230: start | E230: end | F230: Termination flag | G230: Milestones
C231: =C47 -> Between Project Milestone 1 and Project Milestone 2 | D231: =E209 -> 2015-08-28 | E231: =E210 -> 2016-01-25 | F231: =IF(AND($D$228 >= D231, $D$228 < E231), 1, 0) -> 0 | G231: =INDEX($D$47:$D$56,MATCH(C231,$C$47:$C$56,0)) -> First Payment Milestone Achieved
C232: =C48 -> Between Project Milestone 2 and Project Milestone 3 | D232: =E231+1 -> 2016-01-26 | E232: =E211 -> 2016-04-29 | F232: =IF(AND($D$228 >= D232, $D$228 < E232), 1, 0) -> 0 | G232: =INDEX($D$47:$D$56,MATCH(C232,$C$47:$C$56,0)) -> Second Payment Milestone Achieved
C233: =C49 -> Between Project Milestone 3 and Project Milestone 4 | D233: =E232+1 -> 2016-04-30 | E233: =E212 -> 2016-10-31 | F233: 0 | G233: Third Payment Milestone Achieved
C234: =C50 -> Between Project Milestone 4 and Project Milestone 5 | D234: 2016-11-01 | E234: =E213 -> 2016-10-31 | F234: 0 | G234: Fourth Payment Milestone Achieved
C235: =C51 -> Between Project Milestone 5 and Project Milestone 6 | D235: 2016-11-01 | E235: =E214 -> 2016-10-31 | F235: 0 | G235: Fifth Payment Milestone Achieved
C236: =C52 -> Between Project Milestone 6 and Project Milestone 7 | D236: 2016-11-01 | E236: 2016-10-31 | F236: 0 | G236: Sixth Payment Milestone Achieved
C237: Between Project Milestone 7 and Project Milestone 8 | D237: 2016-11-01 | E237: 2016-10-31 | F237: 0 | G237: Seventh Payment Milestone Achieved
C238: Between Project Milestone 8and Project Milestone 9 | D238: 2016-11-01 | E238: 2016-10-31 | F238: 0 | G238: Eighth Payment Milestone Achieved
C239: Between Project Milestone 9 and Project Milestone 10 | D239: 2016-11-01 | E239: 2017-10-31 | F239: 0 | G239: Ninth Payment Milestone Achieved
C240: After Project Milestone 10 | D240: 2017-11-01 | F240: =IF($D$228 >= D240, 1, 0) -> 1 | G240: Tenth Payment Milestone Achieved
... 462 more rows

Sheet Road_TP_TOT_Dashboard (hidden)
A2: Key Inputs | L2: Key Outputs
B5: Risk events for calculation of Contingent Liability
B15: Your Selection | H15: 4
B18: Project Particulars
B20: Construction Period (months) | H20: 30
B21: Concession Period Considered (yrs) | H21: 30
B22: Last Capex Payment Month | H22: 30 | M22: Result
B23: Appointment Date | H23: 2015-04-01
B24: Termination Date | H24: 2016-02-20 | M24: % of Unexpired cash flows | S24: =Road_TP_TOT_Workings!D34 -> 1.05
M25: Insurance Cover switch | S25: =Road_TP_TOT_Workings!D35 -> 0
B26: =HYPERLINK("#'" & RIGHT(CELL("FILENAME", Road_TP_TOT_Workings!$D$63), LEN(CELL("FILENAME", Road_TP_TOT_Workings!$D$63)) - SEARCH("]", CELL("FILENAME", Road_TP_TOT_Workings!$D$63))) & "'!" & MID(CELL("address", Road_TP_TOT_Workings!$D$63), SEARCH("!", CELL("address", Road_TP_TOT_Workings!$D$63)) + 1, LEN(CELL("address", Road_TP_TOT_Workings!$D$63)) - SEARCH("!", CELL("address", Road_TP_TOT_Workings!$D$63))), "Click here to update WPI figures if project timeline is not between 2011-2021") -> Click here to update WPI figures if project timeline is not between 2011-2021 | M26: Insurance Cover (INR Crs) | S26: =Road_TP_TOT_Workings!E41 -> 0
M27: Termination Payment | S27: =Road_TP_TOT_Workings!E51 -> 157.5
B28: Means of Finance
M29: WPI Details
B30: Equity Infused | H30: 100
B31: Debt Due | H31: 200 | M31: ="WPI at the Time of " &M38 -> WPI at the Time of Appointed Date | S31: =Road_TP_TOT_Workings!E105 -> 109.7
B32: Insurance Cover | H32: 100 | M32: ="WPI at the Time of " &M41 -> WPI at the Time of Termination Date | S32: =Road_TP_TOT_Workings!E106 -> 109.7
B33: Unexpired Cash Flow | H33: 150 | M33: ="WPI at the Time of " &M40 -> WPI at the Time of Commercial Operations Date (COD) | S33: =Road_TP_TOT_Workings!E107 -> 114.9
B34: Click here to update inputs
M36: Key Dates
B37: Project Timeline
M38: Appointed Date | S38: =H23 -> 2015-04-01
M39: Date of Construction Completion | S39: =EDATE(H23,H20)-1 -> 2017-09-30
M40: Commercial Operations Date (COD) | S40: =S39+1 -> 2017-10-01
M41: Termination Date | S41: =H24 -> 2016-02-20
M42: First Financial Year Ending | S42: =DATE(IF(MONTH(S38)>Settings!$C$28,YEAR(S38)+1,YEAR(S38)),Settings!$C$28,Settings!$C$29) -> 2016-03-31
M43: No. of months in first Financial Year | S43: =ROUND((S42-S38)/Settings!C30,0) -> 12
M44: Construction Ending Financial Year | S44: =DATE(IF(MONTH(S39)>Settings!C28,YEAR(S39)+1,YEAR(S39)),Settings!C28,Settings!C29) -> 2018-03-31
M45: Construction Ending Financial Year No. | S45: =YEAR(S44)-YEAR(S42)+1 -> 3
M46: No. of operational months in Cons Ending FY | S46: =ROUND((S44-S39)/Settings!C30,0) -> 6
M47: Last Financial Year Ending | S47: =DATE(IF(MONTH(S41)>Settings!C28,YEAR(S41)+1,YEAR(S41)),Settings!C28,Settings!C29) -> 2016-03-31
M48: Last Financial Year Ending No. | S48: =YEAR(S47)-YEAR(S42)+1 -> 1
M49: No. of months in last Financial Year | S49: =Settings!C27-ROUND((S47-S41)/Settings!C30,0) -> 11
A51: Norms
B53: Norms on Termination Payment
C54: =Road_TP_TOT_Workings!F29 -> An amount equal to 105 % of unexpired cash flows shall be paid to the concessionaire
A59: Instructions
M62: Legend
B63: General | E63: Project details need to be entered in the yellow marked cells.
O65: Input Cell
B66: Project Particulars | E66: ="Cell "&SUBSTITUTE(CELL("address",H20),"$","")&" - Construction Period" -> Cell H20 - Construction Period | O66: Results
E67: ="Cell "&SUBSTITUTE(CELL("address",H21),"$","")&" - Concession Period" -> Cell H21 - Concession Period | N67: Units | O67: Amount are in Rs. Cr
E68: ="Cell "&SUBSTITUTE(CELL("address",H22),"$","")&" - the month in which the last capex was/ has to be released." -> Cell H22 - the month in which the last capex was/ has to be released.
B70: Financial Details: | E70: ="Cell "&SUBSTITUTE(CELL("address",H30),"$","")&" - the Total Equity infused in the Project as on date" -> Cell H30 - the Total Equity infused in the Project as on date
E71: ="Cell "&SUBSTITUTE(CELL("address",H31),"$","")&" - the Debt Due on Termination Date as per Concession Agreement" -> Cell H31 - the Debt Due on Termination Date as per Concession Agreement
E72: ="Cell "&SUBSTITUTE(CELL("address",H32),"$","")&" - Insurance cover as per the Concession Agreement" -> Cell H32 - Insurance cover as per the Concession Agreement
E73: ="Cell "&SUBSTITUTE(CELL("address",H33),"$","")&" - Unexpired Cash Flow" -> Cell H33 - Unexpired Cash Flow
B76: Wholesale Price Index (WPI) Details: | E76: ="Cell "&SUBSTITUTE(CELL("address",S31),"$","")&" - WPI of 1st day of the month of Appointed Date" -> Cell S31 - WPI of 1st day of the month of Appointed Date
E77: ="Cell "&SUBSTITUTE(CELL("address",S32),"$","")&" - latest monthly WPI of Termination Date" -> Cell S32 - latest monthly WPI of Termination Date
E78: ="Cell "&SUBSTITUTE(CELL("address",S33),"$","")&" - latest monthly WPI of COD" -> Cell S33 - latest monthly WPI of COD
B80: Key Dates | E80: ="Cell "&SUBSTITUTE(CELL("address",H23),"$","")&" - Appointed Date of the Project" -> Cell H23 - Appointed Date of the Project
E81: ="Cell "&SUBSTITUTE(CELL("address",H24),"$","")&" - Termination Date" -> Cell H24 - Termination Date
B83: Option | E83: ="Cell "&SUBSTITUTE(CELL("address",C15),"$","")&" - various reasons for Termination, the adequate reason to be selected." -> Cell C15 - various reasons for Termination, the adequate reason to be selected.
B85: Results | E85: ="Cell "&SUBSTITUTE(CELL("address",S27),"$","")&" - indicates the estimated Termination Payment on Termination Date." -> Cell S27 - indicates the estimated Termination Payment on Termination Date.
A92: //End

Sheet Road_TP_TOT_Workings (hidden)
A1: Workings
F2: Inputs | G2: Inputs from other sheets
F3: Calculation | G3: Major Calculation
F4: Inputs | G4: Manual Inputs
F5: Inputs | G5: Hardcoded Values
A8: Inputs
C10: Dep Calc Dummy 1 | E10: 100 | F10: Dummy
C11: Dep Calc Dummy 2 | E11: 100 | F11: Dummy
C12: Post 4th Anniversary phase tenure (dummy) | E12: 99 | F12: Years
A14: GENERATION OF NORMS ON TERMINATION PAYMENT (AS SHOWN ON DASHBOARD)
D17: Selected Option number | E17: =Road_TP_TOT_Dashboard!H15 -> 4 | F17: #
C19: Reason | D19: Unexpired cash flows (%) | E19: Insurance Cover switch | F19: Norms | G19: Clause
C20: Non-political FM Event | D20: 0.8 | E20: 1 | F20: An amount equal to 80 % of unexpired cash flows less insurance cover shall be paid to the concessionaire | G20: Proposal, Article 27.9.1
C21: Indirect Political FM Event | D21: 1 | E21: 1 | F21: An amount equal to 100 % of unexpired cash flows less insurance cover shall be paid to the concessionaire | G21: Proposal, Article 27.9.1
C22: Political FM Event | D22: 1.05 | E22: 0 | F22: An amount equal to 105 % of unexpired cash flows shall be paid to the concessionaire | G22: Proposal, Article 27.9.1
C23: Authority Default | D23: 1.05 | E23: 0 | F23: An amount equal to 105 % of unexpired cash flows shall be paid to the concessionaire | G23: Proposal, Article 27.9.1
C24: Concessionaire Default | D24: 0.7 | E24: 0 | F24: An amount equal to 70 % of unexpired cash flows shall be paid to the concessionaire in case the authority terminates the agreement on account of concessoinaire's default | G24: Proposal, Article 27.9.1
C25: AD Pending | D25: 0 | E25: 0 | F25: 0
C26: Underconstruction | D26: 0 | E26: 0 | F26: 0
C29: =INDEX(C$20:C$26,$E$17) -> Authority Default | D29: =INDEX(D$20:D$26,$E$17) -> 1.05 | E29: =INDEX(E$20:E$26,$E$17) -> 0 | F29: =INDEX(F$20:F$26,$E$17) -> An amount equal to 105 % of unexpired cash flows shall be paid to the concessionaire
C33: Selected option | D33: =TRANSPOSE(C29:E29) -> Authority Default | E33: text
C34: % of Unexpired cash flows | D34: 1.05 | E34: %
C35: Insurance Cover switch | D35: 0 | E35: 1=On; 0=Off
A37: Insurance
C39: Insurance Cover | E39: =Road_TP_TOT_Dashboard!H32 -> 100 | F39: INR Crs
C40: Insurance Cover switch | E40: =D35 -> 0 | F40: 1=On; 0=Off
C41: Insurance Cover (INR Crs) | E41: =E39*E40 -> 0 | F41: INR Crs
A43: Termination Payment
C45: % of Unexpired cash flows | E45: =D34 -> 1.05 | F45: %
C46: Unexpired Cash Flow | E46: =Road_TP_TOT_Dashboard!H33 -> 150 | F46: INR Crs
C47: Termination Payment - Unexpired cash flows | E47: =E46*E45 -> 157.5 | F47: INR Crs
C49: Termination Payment - Unexpired cash flows | E49: =E47 -> 157.5 | F49: INR Crs
C50: Insurance Cover | E50: =E41 -> 0 | F50: INR Crs
C51: Termination Payment | E51: =E49-E50 -> 157.5 | F51: INR Crs
A54: WHOLESALE PRICE INDEX (WPI)
C56: WPI Inputs
C58: Source: GOI, Ministry of Commerce & Industry
C59: File Name: Annual Average of Monthly Index (Financial Year 2012-13 Onwards)
C60: Link: https://eaindustry.nic.in/download_data_1112.asp
C62: Do not delete the cells below
C63: Year | D63: WHOLESALE PRICE INDEX
C64: 2011 | D64: 100
C65: 2012 | D65: 106.9
C66: 2013 | D66: 112.5
C67: 2014 | D67: 113.9
C68: 2015 | D68: 109.7
C69: 2016 | D69: 111.6
C70: 2017 | D70: 114.9
C71: 2018 | D71: 119.8
C72: 2019 | D72: 121.8
C73: 2020 | D73: 123.4
C74: 2021 | D74: 139.4
C75: 2022 | D75: 0
C76: 2023 | D76: 0
C77: 2024 | D77: 0
C78: 2025 | D78: 0
C79: 2026 | D79: 0
C80: 2027 | D80: 0
C81: 2028 | D81: 0
C82: 2029 | D82: 0
C83: 2030 | D83: 0
C84: =C83+1 -> 2031 | D84: 0
C85: =C84+1 -> 2032 | D85: 0
C86: 2033 | D86: 0
C87: 2034 | D87: 0
C88: 2035 | D88: 0
C89: 2036 | D89: 0
C90: 2037 | D90: 0
C91: 2038 | D91: 0
C92: 2039 | D92: 0
C93: 2040 | D93: 0
C95: Appointed Date | E95: =Road_TP_TOT_Dashboard!S38 -> 2015-04-01 | F95: date
C96: Termination Date | E96: =Road_TP_TOT_Dashboard!S41 -> 2016-02-20 | F96: date
C97: Commercial Operations Date (COD) | E97: =Road_TP_TOT_Dashboard!S40 -> 2017-10-01 | F97: date
C99: Financial year end month number | E99: =rngYrEnd -> 3 | F99: month #
C101: Appointed Date year | E101: =IF(MONTH(E95)>$E$99,YEAR(E95),YEAR(E95)-1) -> 2015 | F101: year
C102: Termination Date year | E102: =IF(MONTH(E96)>$E$99,YEAR(E96),YEAR(E96)-1) -> 2015 | F102: year
C103: Commercial Operations Date (COD) year | E103: 2017 | F103: year
C105: WPI at the Time of Appointed Date | E105: =_xlfn.XLOOKUP(E101,$C$64:$C$93,$D$64:$D$93,"NA") -> 109.7 | F105: #
C106: WPI at the Time of Termination Date | E106: =_xlfn.XLOOKUP(E102,$C$64:$C$93,$D$64:$D$93,"NA") -> 109.7 | F106: #
C107: WPI at the Time of Commercial Operations Date (COD) | E107: 114.9 | F107: #
A110: Timeline Graph
D112: Project Days | E112: Days | F112: URN | G112: Sorted URN | H112: Project Days | I112: Days | J112: Dummy
D113: =Road_TP_TOT_Dashboard!M38 -> Appointed Date | E113: =Road_TP_TOT_Dashboard!S38 -> 2015-04-01 | F113: =E113&D113 -> 42095Appointed Date | G113: =_xlfn._xlws.SORT(F113:F116,1,1) -> 42095Appointed Date | H113: =INDEX($D$113:$D$116,MATCH(G113,$F$113:$F$116,0)) -> Appointed Date | I113: =INDEX($E$113:$E$116,MATCH(G113,$F$113:$F$116,0)) -> 2015-04-01 | J113: 1
D114: =Road_TP_TOT_Dashboard!M39 -> Date of Construction Completion | E114: =Road_TP_TOT_Dashboard!S39 -> 2017-09-30 | F114: =E114&D114 -> 43008Date of Construction Completion | G114: 42420Termination Date | H114: =INDEX($D$113:$D$116,MATCH(G114,$F$113:$F$116,0)) -> Termination Date | I114: =INDEX($E$113:$E$116,MATCH(G114,$F$113:$F$116,0)) -> 2016-02-20 | J114: 1
D115: =Road_TP_TOT_Dashboard!M40 -> Commercial Operations Date (COD) | E115: =Road_TP_TOT_Dashboard!S40 -> 2017-10-01 | F115: 43009Commercial Operations Date (COD) | G115: 43008Date of Construction Completion | H115: =INDEX($D$113:$D$116,MATCH(G115,$F$113:$F$116,0)) -> Date of Construction Completion | I115: =INDEX($E$113:$E$116,MATCH(G115,$F$113:$F$116,0)) -> 2017-09-30 | J115: 1
D116: =Road_TP_TOT_Dashboard!M41 -> Termination Date | E116: =Road_TP_TOT_Dashboard!S41 -> 2016-02-20 | F116: 42420Termination Date | G116: 43009Commercial Operations Date (COD) | H116: =INDEX($D$113:$D$116,MATCH(G116,$F$113:$F$116,0)) -> Commercial Operations Date (COD) | I116: =INDEX($E$113:$E$116,MATCH(G116,$F$113:$F$116,0)) -> 2017-10-01 | J116: 1
D118: Project Days | E118: Days
D119: =Road_TP_TOT_Dashboard!B31 -> Debt Due | E119: =Road_TP_TOT_Dashboard!H31 -> 200
D120: =Road_TP_TOT_Dashboard!B30 -> Equity Infused | E120: =Road_TP_TOT_Dashboard!H30 -> 100
D121: =Road_TP_TOT_Dashboard!M27 -> Termination Payment | E121: =Road_TP_TOT_Dashboard!S27 -> 157.5
A123: // End

Sheet Road_VT_TOT_Dashboard (hidden)
A1: Dashboard
A2: Key Inputs | L2: Key Outputs
C4: Change in Traffic Fees
C10: You selected | G10: 1
B13: Project Particulars
B15: Construction Period (months) | H15: 30
B16: Concession Period (yrs) | H16: 30
B17: Last Capex Payment Month | H17: 30
B18: Appointed Date | H18: 2015-04-01
M20: Result
B21: Traffic Details | M21: =IF( S21= H16, "Concession Period (yrs)", "Revised Concession Period (yrs)" ) -> Revised Concession Period (yrs) | S21: =Road_VT_TOT_Workings!E65 -> 36.9
B23: Target Date | H23: 2022-10-01 | M23: Increase / Decrease in CP
B24: Target Fees | H24: 15000
B25: Actual Traffic on Target Date | H25: 11500 | M25: % Difference | S25: =IF(H24=0,0,(H25-H24)/H24) -> -0.2333333333
B26: Click here to update Norms | M26: % Increase / Decrease in CP | S26: =Road_VT_TOT_Workings!E54 -> 0.23
B27: Click here to update inputs | M27: % Incr / Decr (subjected to ceilings) | S27: =Road_VT_TOT_Workings!E53 -> 6.9
B30: Project Timeline | M30: Key Dates
M32: Appointed Date | S32: =H18 -> 2015-04-01
M33: Date of Construction Completion | S33: =EDATE(S32,H15)-1 -> 2017-09-30
M34: Commercial Operations Date (COD) | S34: =S33+1 -> 2017-10-01
M35: Termination Date | S35: =EDATE(S32,S21*rngMthsYr)-1 -> 2052-01-31
M36: First Financial Year Ending | S36: =DATE(IF(MONTH(S32)>rngYrEnd,YEAR(S32)+1,YEAR(S32)),rngYrEnd,rngYrEndDay) -> 2016-03-31
M37: No. of months in first Financial Year | S37: =ROUND((S36-S32)/rngMthDays,0) -> 12
M38: Construction Ending Financial Year | S38: =DATE(IF(MONTH(S33)>rngYrEnd,YEAR(S33)+1,YEAR(S33)),rngYrEnd,rngYrEndDay) -> 2018-03-31
M39: Construction Ending Financial Year No. | S39: =YEAR(S38)-YEAR(S36)+1 -> 3
M40: No. of operational months in Cons Ending FY | S40: =ROUND((S38-S33)/rngMthDays,0) -> 6
M41: Last Financial Year Ending | S41: =DATE(IF(MONTH(S35)>rngYrEnd,YEAR(S35)+1,YEAR(S35)),rngYrEnd,rngYrEndDay) -> 2052-03-31
M42: Last Financial Year Ending No. | S42: =YEAR(S41)-YEAR(S36)+1 -> 37
M43: No. of months in last Financial Year | S43: =rngMthsYr-ROUND((S41-S35)/rngMthDays,0) -> 10
A46: Norms
B48: Norms on Variation in Traffic
C50: =Road_VT_TOT_Workings!D156 -> For every 1.00% shortage of actual average traffic from target PCUs, the CP is reduced by a multiple of 1.00% with an upper ceiling of 10.00 years
A53: Instructions
L56: Legend
B57: General | E57: Project details need to be entered in the yellow marked cells.
N59: Input Cell
B60: Project Particulars | E60: ="Cell "&SUBSTITUTE(CELL("address",H15),"$","")&" - Construction Period" -> Cell H15 - Construction Period | N60: Results
E61: ="Cell "&SUBSTITUTE(CELL("address",H16),"$","")&" - Concession Period" -> Cell H16 - Concession Period | M61: Units | N61: Amount are in Rs. Cr
E62: ="Cell "&SUBSTITUTE(CELL("address",H17),"$","")&" - the month in which the last capex was/ has to be released." -> Cell H17 - the month in which the last capex was/ has to be released. | M62: Green font | N62: Positive (Excess)
M63: Red font | N63: Negative (Shortfall)
B64: Traffic Details | E64: ="Cell "&SUBSTITUTE(CELL("address",H23),"$","")&" - the target date as mentioned in the Concession Agreement" -> Cell H23 - the target date as mentioned in the Concession Agreement
E65: ="Cell "&SUBSTITUTE(CELL("address",H24),"$","")&" - the target fees as mentioned in the Concession Agreement " -> Cell H24 - the target fees as mentioned in the Concession Agreement
E66: ="Cell "&SUBSTITUTE(CELL("address",H25),"$","")&" - actual traffic at the target date as per Traffic Survey" -> Cell H25 - actual traffic at the target date as per Traffic Survey
E67: ="Cell "&SUBSTITUTE(CELL("address",S21),"$","")&" - revised concession period in years." -> Cell S21 - revised concession period in years.
B69: Increase/Decrease in CP Details | E69: ="Cell "&SUBSTITUTE(CELL("address",S25),"$","")&" - % Difference" -> Cell S25 - % Difference
E70: ="Cell "&SUBSTITUTE(CELL("address",S26),"$","")&" - % Increase/ Decrease in CP" -> Cell S26 - % Increase/ Decrease in CP
E71: ="Cell "&SUBSTITUTE(CELL("address",S27),"$","")&" - % Increase/ Decrease subject to limits" -> Cell S27 - % Increase/ Decrease subject to limits
B74: Key Dates | E74: ="Cell "&SUBSTITUTE(CELL("address",H18),"$","")&" - Appointed Date of the Project" -> Cell H18 - Appointed Date of the Project
E75: ="Cell "&SUBSTITUTE(CELL("address",S35),"$","")&" - Termination Date" -> Cell S35 - Termination Date
B77: Option | E77: ="Cell "&SUBSTITUTE(CELL("address",C4),"$","")&" - Options for Adjustment 1. Change in Concession Period via Traffic fees (1)- please select 'Traffic fees (1)' Option. 2. Change in Concession Period via Traffic fees (1)- please select 'Traffic fees (1)' Option." -> Cell C4 - Options for Adjustment 1. Change in Concession Period via Traffic fees (1)- please select 'Traffic fees (1)' Option. 2. Change in Concession Period via Traffic fees (1)- please select 'Traffic fees (1)' Option.
B82: Results | E82: ="Cell "&SUBSTITUTE(CELL("address",S21),"$","")&" - indicates the revised concession period." -> Cell S21 - indicates the revised concession period.
A89: //End

Sheet Road_VT_TOT_Workings (hidden)
A1: Workings
F2: Inputs | G2: Inputs from other sheets
F3: Calculation | G3: Major Calculation
F4: Inputs | G4: Manual Inputs
F5: Inputs | G5: Hardcoded Values
A8: INPUTS
C10: Shortage in traffic (1) multiplier | E10: 0.01 | F10: % - Input related to Norms, do not change
C11: Excess in traffic (1) multiplier | E11: 0.01 | F11: % - Input related to Norms, do not change
C12: Lower tolerance % for variation in traffic (1) fees | E12: 0 | F12: % - Input related to Norms, do not change
C13: % Increase in CP for every 1 % shortfall of actual traffic (1) fees | E13: 0.01 | F13: % - Input related to Norms, do not change
C14: Upper tolerance % for variation in traffic (1) fees | E14: 0.2 | F14: % - Input related to Norms, do not change
C15: % Decrease in CP for every 1 % excess of actual traffic (1) | E15: 0.0075 | F15: % - Input related to Norms, do not change
C16: Floor for CP (years) in case of excess | E16: 5 | F16: Year - Input related to Norms, do not change
C17: Ceiling for CP (years) in case of shortage | E17: 10 | F17: Year - Input related to Norms, do not change
C19: Shortage in traffic (2) multiplier | E19: 0.01 | F19: % - Input related to Norms, do not change
C20: Excess in traffic (2) multiplier | E20: 0.01 | F20: % - Input related to Norms, do not change
C21: Lower tolerance % for variation in traffic (2) fees | E21: -0.3 | F21: % - Input related to Norms, do not change
C22: % Increase in CP for every 1 % shortfall of actual traffic (2) | E22: 0.015 | F22: % - Input related to Norms, do not change
C23: Upper tolerance % for variation in traffic (2) fees | E23: 0.3 | F23: % - Input related to Norms, do not change
C24: % Decrease in CP for every 1 % excess of actual traffic (2) | E24: 0.0075 | F24: % - Input related to Norms, do not change
C25: Floor for CP (years) in case of excess | E25: 5 | F25: Year - Input related to Norms, do not change
C26: Ceiling for CP (years) in case of shortage | E26: 10 | F26: Year - Input related to Norms, do not change
C28: Option 1 | E28: Traffic (1) | F28: text
C29: Option 2 | E29: Traffic (2) | F29: text
A31: CHANGES IN CP
C33: Selected option (linked to option buttons) | E33: =Road_VT_TOT_Dashboard!G10 -> 1 | F33: 1=traffic (1) ; 2=traffic (2)
C35: % Difference | E35: =E71 -> -0.2333333333 | F35: %
C36: Traffic Fees (1) - Decrease in CP % | E36: =E81 -> 0 | F36: %
C37: Traffic Fees (1) - Increase in CP % | E37: =E76 -> 0.23 | F37: %
C38: Traffic Fees (1) - % Increase / Decrease in CP | E38: =IF(E35>0,E36,E37) -> 0.23 | F38: %
C39: Traffic Fees (2) - Decrease in CP % | E39: =E108 -> 0 | F39: %
C40: Traffic Fees (2) - Increase in CP % | E40: =E103 -> 0 | F40: %
C41: Traffic Fees (2) - % Increase / Decrease in CP | E41: =IF(E35>0,E39,E40) -> 0 | F41: %
C42: % Increase / Decrease in CP | E42: =IF(E33=1,E38,E41) -> 0.23 | F42: %
C44: % Difference | E44: =E35 -> -0.2333333333 | F44: %
C45: Traffic Fees (1) - Decrease subjected to floor | E45: =E85 -> 0 | F45: years
C46: Traffic Fees (1) - Increase subjected to ceiling | E46: =E90 -> 6.9 | F46: years
C47: Traffic Fees (1) - Incr / Decr (subjected to ceilings) | E47: =IF(E44>0,E45,E46) -> 6.9 | F47: years
C48: Traffic Fees (2) - Decrease subjected to floor | E48: =E112 -> 0 | F48: years
C49: Traffic Fees (2) - Increase subjected to ceiling | E49: =E117 -> 0 | F49: years
C50: Traffic Fees (2) - Incr / Decr (subjected to ceilings) | E50: =IF(E44>0,E48,E49) -> 0 | F50: years
C51: Incr / Decr (subjected to ceilings) | E51: =IF(E33=1,E47,E50) -> 6.9 | F51: years
C53: Incr / Decr (subjected to ceilings) | E53: =E51 -> 6.9 | F53: years
C54: % Increase / Decrease in CP | E54: =E42 -> 0.23 | F54: %
A56: REVISED CONCESSION PERIOD (YRS)
C58: Selected option (linked to option buttons) | E58: =E33 -> 1 | F58: 1=traffic (1) ; 2=traffic (2)
C59: Option 1 | E59: =E28 -> Traffic (1) | F59: text
C60: Option 2 | E60: =E29 -> Traffic (2) | F60: text
C61: Selected Option | E61: =INDEX(E59:E60,E58) -> Traffic (1) | F61: text
C63: Concession Period (years) | E63: =Road_VT_TOT_Dashboard!H16 -> 30 | F63: years
C64: Incr / Decr (subjected to ceilings) | E64: =E51 -> 6.9 | F64: years
C65: Revised Concession Period (yrs) | E65: =SUM(E63:E64) -> 36.9 | F65: years
A67: TRAFFIC FEES (1)
C69: Target revenue | E69: =Road_VT_TOT_Dashboard!H24 -> 15000 | F69: INR
C70: Actual revenue on target dates | E70: =Road_VT_TOT_Dashboard!H25 -> 11500 | F70: INR
C71: % Difference | E71: =IF(E69=0,0,(E70-E69)/E69) -> -0.2333333333 | F71: %
C73: % Difference | E73: =E71 -> -0.2333333333 | F73: %
C74: Lower tolerance % for variation in traffic (1) fees | E74: =E12 -> 0 | F74: %
C75: % Increase in CP for every 1 % shortfall of actual traffic (1) fees | E75: =E13 -> 0.01 | F75: %
C76: Traffic Fees (1) - Increase in CP % | E76: =(E$73 < E$74) * ROUNDDOWN(( -(E73-E74) * 100), 0) * E$75 -> 0.23 | F76: %
C78: % Difference | E78: =E71 -> -0.2333333333 | F78: %
C79: Upper tolerance % for variation in traffic (1) fees | E79: =E14 -> 0.2 | F79: %
C80: % Decrease in CP for every 1 % excess of actual traffic (1) | E80: =E15 -> 0.0075 | F80: %
C81: Traffic Fees (1) - Decrease in CP % | E81: =(E78 > E$79) * ROUNDDOWN(( -(E78 - E79) * 100 ), 0) * E$80 -> 0 | F81: %
C83: Floor for CP (years) in case of excess | E83: =E16 -> 5 | F83: years
C84: Traffic Fees (1) - Decrease in CP % | E84: =E81 -> 0 | F84: %
C85: Traffic Fees (1) - Decrease subjected to floor | E85: =-((E$84 < 0) * MAX(E$84 * E86, E$83)) -> 0 | F85: years
C86: Concession Period (years) | E86: =Road_VT_TOT_Dashboard!H16 -> 30 | F86: years
C88: Ceiling for CP (years) in case of shortage | E88: =E17 -> 10 | F88: years
C89: Traffic Fees (1) - Increase in CP % | E89: =E76 -> 0.23 | F89: %
C90: Traffic Fees (1) - Increase subjected to ceiling | E90: =IF((E$89 > 0), MIN( E$89 * E91, E$88), 0) -> 6.9 | F90: years
C91: Concession Period (years) | E91: =E86 -> 30 | F91: years
A93: TARGET FEES (2)
C96: Target revenue | E96: =E69 -> 15000 | F96: INR
C97: Actual revenue on target dates | E97: =E70 -> 11500 | F97: INR
C98: % Difference | E98: =IF(E96=0,0,(E97-E96)/E96) -> -0.2333333333 | F98: %
C100: % Difference | E100: =E98 -> -0.2333333333 | F100: %
C101: Lower tolerance % for variation in traffic (2) fees | E101: =E21 -> -0.3 | F101: %
C102: % Increase in CP for every 1 % shortfall of actual traffic (2) | E102: =E22 -> 0.015 | F102: %
C103: Traffic Fees (2) - Increase in CP % | E103: =(E$100 < E$101) * ROUNDDOWN(( -(E$100-E101) * 100), 0) * E$102 -> 0 | F103: %
C105: % Difference | E105: =E98 -> -0.2333333333 | F105: %
C106: Upper tolerance % for variation in traffic (2) fees | E106: =E23 -> 0.3 | F106: %
C107: % Decrease in CP for every 1 % excess of actual traffic (2) | E107: =E24 -> 0.0075 | F107: %
C108: Traffic Fees (2) - Decrease in CP % | E108: =(E105 > E$106) * ROUNDDOWN(( - (E105-E106) * 100 ), 0) * E$107 -> 0 | F108: %
C110: Floor for CP (years) in case of excess | E110: =E25 -> 5 | F110: years
C111: Traffic Fees (2) - Decrease in CP % | E111: =E108 -> 0 | F111: %
C112: Traffic Fees (2) - Decrease subjected to floor | E112: =-(IF(E$111<0,MIN(- E$111*E113,E$110),0)) -> 0 | F112: years
C113: Concession Period (years) | E113: =Road_VT_TOT_Dashboard!H16 -> 30 | F113: years
C115: Ceiling for CP (years) in case of shortage | E115: =E26 -> 10 | F115: years
C116: Traffic Fees (2) - Increase in CP % | E116: =E103 -> 0 | F116: %
C117: Traffic Fees (2) - Increase subjected to ceiling | E117: =IF(E$116 > 0, MIN(E$116 * E118, E$115), 0) -> 0 | F117: years
C118: Concession Period (years) | E118: =E113 -> 30 | F118: years
A122: Norms
C124: Traffic (1) | H124: Traffic (2)
D126: Ceiling for CP (years) in case of shortage | F126: =E17 -> 10 | G126: Years | I126: Ceiling for CP in case of shortage | K126: =E26 -> 10 | L126: Years
D127: Shortage in traffic (1) multiplier | F127: =E10 -> 0.01 | G127: % | I127: Shortage in traffic multiplier | K127: =E19 -> 0.01 | L127: %
D128: % Increase in CP for every 1 % shortfall of actual traffic (1) fees | F128: =E13 -> 0.01 | G128: % | I128: % increase in CP for every 1 % shortfall of actual traffic | K128: =E22 -> 0.015 | L128: %
D131: ="For every "& TEXT($F$127, "0.00%") &" shortage of actual average traffic from target PCUs, the CP is reduced by a multiple of "&TEXT( $F$128, "0.00%") &" with an upper ceiling of "& TEXT($F$126, "0.00") & " years" -> For every 1.00% shortage of actual average traffic from target PCUs, the CP is reduced by a multiple of 1.00% with an upper ceiling of 10.00 years | G131: Text | I131: ="For every "& TEXT($K$127, "0.00%") &" shortage of actual average traffic from target PCUs, the CP is reduced by a multiple of "&TEXT( $K$128, "0.00%") &" with an upper ceiling of "& TEXT($K$126, "0.00") & " years" -> For every 1.00% shortage of actual average traffic from target PCUs, the CP is reduced by a multiple of 1.50% with an upper ceiling of 10.00 years | L131: Text
D134: Excess in traffic (1) multiplier | F134: =E11 -> 0.01 | G134: % | I134: Excess in traffic multiplier | K134: =E20 -> 0.01 | L134: %
D135: % Decrease in CP for every 1 % excess of actual traffic (1) | F135: =E15 -> 0.0075 | G135: % | I135: % decrease in CP for every 1 % excess of actual traffic | K135: =E24 -> 0.0075 | L135: %
D136: Floor for CP (years) in case of excess | F136: =E16 -> 5 | G136: Year | I136: Floor for CP in case of excess | K136: =E25 -> 5 | L136: Year
D138: ="For every "&TEXT($F$134, "0.00%")&" excess of actual average traffic from target PCUs, the CP is increased by a multiple of "&TEXT($F$135, "0.00%") &" with an upper ceiling of "&TEXT($F$136, "0.00") & " years" -> For every 1.00% excess of actual average traffic from target PCUs, the CP is increased by a multiple of 0.75% with an upper ceiling of 5.00 years | G138: Text | I138: ="For every "&TEXT($K$134, "0.00%")&" excess of actual average traffic from target PCUs, the CP is increased by a multiple of "&TEXT($K$135, "0.00%") &" with an upper ceiling of "&TEXT($K$136, "0.00") & " years" -> For every 1.00% excess of actual average traffic from target PCUs, the CP is increased by a multiple of 0.75% with an upper ceiling of 5.00 years | L138: Text
D141: Lower tolerance % for variation in traffic (1) fees | F141: =E12 -> 0 | G141: % | I141: Lower tolerance % for variation in traffic | K141: =E21 -> -0.3 | L141: %
D142: Upper tolerance % for variation in traffic (1) fees | F142: =E14 -> 0.2 | G142: % | I142: Upper tolerance % for variation in traffic | K142: =E23 -> 0.3 | L142: %
D144: ="Since the change in traffic is between " & TEXT($F$141, "0.00%") & " and " & TEXT($F$142, "0.00%") & " there is no change in the Concession Period" -> Since the change in traffic is between 0.00% and 20.00% there is no change in the Concession Period | G144: Text | I144: ="Since the change in traffic is between " & TEXT($K$141, "0.00%") & " and " & TEXT($K$142, "0.00%") & " there is no change in the Concession Period" -> Since the change in traffic is between -30.00% and 30.00% there is no change in the Concession Period | L144: Text
D147: % Difference | F147: =$E$71 -> -0.2333333333 | G147: % | I147: % Difference | K147: =$E$71 -> -0.2333333333 | L147: %
D148: Lower tolerance % for variation in traffic (1) fees | F148: =E12 -> 0 | G148: % | I148: Lower tolerance % for variation in traffic | K148: =E21 -> -0.3 | L148: %
D149: Upper tolerance % for variation in traffic (1) fees | F149: =E14 -> 0.2 | G149: % | I149: Upper tolerance % for variation in traffic | K149: =E23 -> 0.3 | L149: %
D151: =IF(AND($F$147 >= $F$148, $F$147 <= $F$149), D144, IF($F$147 < $F$148, D131, D138)) -> For every 1.00% shortage of actual average traffic from target PCUs, the CP is reduced by a multiple of 1.00% with an upper ceiling of 10.00 years | G151: Text | I151: =IF(AND($F$147 >= $F$148, $F$147 <= $F$149), I144, IF($F$147 < $F$148, I131, I138)) -> For every 1.00% shortage of actual average traffic from target PCUs, the CP is reduced by a multiple of 1.50% with an upper ceiling of 10.00 years | L151: Text
D156: =IF(E33=1,D151,I151) -> For every 1.00% shortage of actual average traffic from target PCUs, the CP is reduced by a multiple of 1.00% with an upper ceiling of 10.00 years | L156: Final Norms
A160: Graph Data
D162: Project Days | E162: Days | F162: URN | G162: Sorted URN | H162: Project Days | I162: Days | J162: Dummy
D163: =Road_VT_TOT_Dashboard!M32 -> Appointed Date | E163: =Road_VT_TOT_Dashboard!S32 -> 2015-04-01 | F163: =E163&D163 -> 42095Appointed Date | G163: =_xlfn._xlws.SORT(F163:F166,1,1) -> 42095Appointed Date | H163: =INDEX($D$163:$D$166,MATCH(G163,$F$163:$F$166,0)) -> Appointed Date | I163: =INDEX($E$163:$E$166,MATCH(G163,$F$163:$F$166,0)) -> 2015-04-01 | J163: 1
D164: =Road_VT_TOT_Dashboard!M33 -> Date of Construction Completion | E164: =Road_VT_TOT_Dashboard!S33 -> 2017-09-30 | F164: =E164&D164 -> 43008Date of Construction Completion | G164: 43008Date of Construction Completion | H164: =INDEX($D$163:$D$166,MATCH(G164,$F$163:$F$166,0)) -> Date of Construction Completion | I164: =INDEX($E$163:$E$166,MATCH(G164,$F$163:$F$166,0)) -> 2017-09-30 | J164: 1
D165: =Road_VT_TOT_Dashboard!M34 -> Commercial Operations Date (COD) | E165: =Road_VT_TOT_Dashboard!S34 -> 2017-10-01 | F165: 43009Commercial Operations Date (COD) | G165: 43009Commercial Operations Date (COD) | H165: =INDEX($D$163:$D$166,MATCH(G165,$F$163:$F$166,0)) -> Commercial Operations Date (COD) | I165: =INDEX($E$163:$E$166,MATCH(G165,$F$163:$F$166,0)) -> 2017-10-01 | J165: 1
D166: =Road_VT_TOT_Dashboard!M35 -> Termination Date | E166: =Road_VT_TOT_Dashboard!S35 -> 2052-01-31 | F166: 55549Termination Date | G166: 55549Termination Date | H166: =INDEX($D$163:$D$166,MATCH(G166,$F$163:$F$166,0)) -> Termination Date | I166: =INDEX($E$163:$E$166,MATCH(G166,$F$163:$F$166,0)) -> 2052-01-31 | J166: 1
D168: Project Days | E168: Years
D169: =Road_VT_TOT_Dashboard!B16 -> Concession Period (yrs) | E169: =Road_VT_TOT_Dashboard!H16 -> 30
D170: =Road_VT_TOT_Dashboard!M21 -> Revised Concession Period (yrs) | E170: =Road_VT_TOT_Dashboard!S21-Road_VT_TOT_Workings!E169 -> 6.9
A173: // End

Sheet Road_CIL_DBFOT_Dashboard (hidden)
A2: Key Inputs | L2: Key Outputs
C6: Change in CP/ One Time Payment
C11: Reference of your selection | G11: 2
B18: Project Particulars
B20: Construction Period (months) | H20: 36
B21: Appointed Date | H21: 2015-06-01
B22: Change in Law (months) from Appointed Date | H22: 38 | M22: Result
B23: Reduction in Revenue | H23: 0.3
B24: Total Cashflow - No change period | H24: =HYPERLINK("#'" & RIGHT(CELL("FILENAME",F64:F94), LEN(CELL("FILENAME",F64:F94)) - SEARCH("]", CELL("FILENAME",F64:F94))) & "'!" &CELL("address",F64:F94), "Click here to update figures") -> Click here to update figures | M24: Change in law year | S24: =EDATE(S36, H22) -> 2018-08-01
B25: Concession Period Considered (yrs) | H25: 20 | M25: You have selected | S25: =IF($G$11=1,"Change in CP", "One Time Payment") -> One Time Payment
B26: Total Project Cost | H26: 15 | M26: Change in Revenue | S26: =H27*H30 -> 0.25
B27: Initial Revenue (in INR Crs) | H27: 50 | M27: Is Change in CP/ Compensation valid ? | S27: =IF(S60>=0,IF(S60>MAX(H32,S26),"YES","NO"),IF(-SS60>MAX(H32,S26),"YES","NO")) -> YES
B28: Discount Factor | H28: 0.11 | M28: Change in Concession Period | S28: =Road_CIL_DBFOT_Workings!G11 -> 0
B29: Total Cashflow - Last Period | H29: =HYPERLINK("#'" & RIGHT(CELL("FILENAME",R64:R94), LEN(CELL("FILENAME",R64:R94)) - SEARCH("]", CELL("FILENAME",R64:R94))) & "'!" &CELL("address",R64:R94), "Click here to update figures") -> Click here to update figures | M29: Revised Concession Period | S29: =Road_CIL_DBFOT_Workings!G14 -> 20
B30: Limit for % change in realisable fees | H30: 0.005 | M30: =IF(S25="One Time Payment","Payment to be made by either party","") -> Payment to be made by either party | S30: =Road_CIL_DBFOT_Workings!G17 -> 43.96475155
B31: Capex infusion post concession period | M31: Change in NPV post concession period | S31: =S60-S61-H31 -> 23.17716085
B32: Limit for change in realisable fees | H32: 1
B33: Applicable Norms | H33: =HYPERLINK("#'" & RIGHT(CELL("FILENAME", Road_CIL_DBFOT_Workings!$C$70), LEN(CELL("FILENAME", Road_CIL_DBFOT_Workings!$C$70)) - SEARCH("]", CELL("FILENAME",Road_CIL_DBFOT_Workings!$C$70))) & "'!" & MID(CELL("address", Road_CIL_DBFOT_Workings!$C$70), SEARCH("!", CELL("address", Road_CIL_DBFOT_Workings!$C$70)) + 1, LEN(CELL("address",Road_CIL_DBFOT_Workings!$C$70)) - SEARCH("!", CELL("address", Road_CIL_DBFOT_Workings!$C$70))), "Click here to update figures") -> Click here to update figures
M34: Key Dates
M36: Appointed Date | S36: =H21 -> 2015-06-01
M37: Date of Construction Completion | S37: =EDATE(H21,H20)-1 -> 2018-05-31
M38: Commercial Operations Date (COD) | S38: =S37+1 -> 2018-06-01
B39: Project Timeline | M39: Termination Date | S39: =EDATE(H21,H25*rngMthsYr)-1 -> 2035-05-31
M40: First Financial Year Ending | S40: =DATE(IF(MONTH(S36) > rngYrEnd, YEAR(S36) + 1, YEAR(S36)), rngYrEnd, rngYrEndDay) -> 2016-03-31
M41: No. of months in first Financial Year | S41: =ROUND((S40 - S36) / rngMthDays, 0) -> 10
M42: Construction Ending Financial Year | S42: =DATE(IF(MONTH(S37) > rngYrEnd, YEAR(S37) + 1, YEAR(S37)), rngYrEnd, rngYrEndDay) -> 2019-03-31
M43: Construction Ending Financial Year No. | S43: =YEAR(S42) - YEAR(S40) + 1 -> 4
M44: No. of operational months in Cons Ending FY | S44: =ROUND((S42-S37)/rngMthDays,0) -> 10
M45: Last Financial Year Ending | S45: =DATE(IF(MONTH(S39) > rngYrEnd, YEAR(S39) + 1, YEAR(S39)), rngYrEnd, rngYrEndDay) -> 2036-03-31
M46: Last Financial Year Ending No. | S46: =YEAR(S45)-YEAR(S40)+1 -> 21
M47: No. of months in last Financial Year | S47: =rngMthsYr - ROUND((S45 - S39) / rngMthDays, 0) -> 2
A50: Norms on Change in Law
B52: =Road_CIL_DBFOT_Workings!G76 -> Increase in costs If because of change in law, the concessionaire suffers increase in cost or reduction in after tax return [aggregate financial effect of which exceeds higher of Rs. 1 crore or 0.5 % of realizable fees in any accounting year, concessionaire may notify the authority and Propose amendments to nullify the aftermath of change in laws by transferring the amount of NPV lacking from authority.
A57: Cash Flows
B59: No Change in Law Scenario | H59: Change in Law Scenario | N59: Post Last FY Period
B60: NPV at Change in Law Year | H60: =NPV(H28,F64:F94) -> 142.3492175 | I60: NPV at Change in Law Year | L60: =NPV(H28,I64:I94) -> 75.20730509 | N60: Difference between the NPVs | S60: =H60-L60-H34 -> 67.1419124
B61: Till Termination period - NPV at Change in Law Year | H61: =NPV(H28,F64:INDEX(F64:F94,H25)) -> 65.09201466 | I61: NPV at Change in Law Year (Termination Period) | L61: =NPV(H28,I64:INDEX(I64:I94,H25)) -> 21.12726311 | N61: Difference between the NPVs | S61: =H61-L61 -> 43.96475155
B63: Change in Law Year | C63: Year Ending | F63: Net Cash Flow | H63: Discounted Cash Flow | I63: Net Cash Flow | L63: Discounted Cash Flow | N63: Year No. | O63: Year Ending | R63: Net Cash Flow | S63: Discounted Cash Flow | T63: Cumulative Discounted Cash Flow
B64: =Road_CIL_DBFOT_Workings!J27 ->  | C64: =S40 -> 2016-03-31 | F64: -33.33333333 | H64: =Road_CIL_DBFOT_Workings!F27 -> 0 | I64: =Road_CIL_DBFOT_Workings!L27 -> -33.33333333 | L64: =Road_CIL_DBFOT_Workings!M27 -> 0 | N64: =Road_CIL_DBFOT_Workings!O27 -> 1 | O64: =Road_CIL_DBFOT_Workings!P27 -> 2036-03-31 | R64: 100 | S64: =Road_CIL_DBFOT_Workings!R27 -> 13.76776369 | T64: =Road_CIL_DBFOT_Workings!T27 -> 13.76776369
B65: =Road_CIL_DBFOT_Workings!J28 ->  | C65: =EDATE(C64,12) -> 2017-03-31 | F65: -33.33333333 | H65: =Road_CIL_DBFOT_Workings!F28 -> 0 | I65: =Road_CIL_DBFOT_Workings!L28 -> -33.33333333 | L65: =Road_CIL_DBFOT_Workings!M28 -> 0 | N65: =Road_CIL_DBFOT_Workings!O28 -> 2 | O65: =Road_CIL_DBFOT_Workings!P28 -> 2037-03-31 | R65: 260.9 | S65: =Road_CIL_DBFOT_Workings!R28 -> 32.36044636 | T65: =Road_CIL_DBFOT_Workings!T28 -> 46.12821005
B66: =Road_CIL_DBFOT_Workings!J29 ->  | C66: =EDATE(C65,12) -> 2018-03-31 | F66: -33.33333333 | H66: =Road_CIL_DBFOT_Workings!F29 -> 0 | I66: =Road_CIL_DBFOT_Workings!L29 -> -33.33333333 | L66: =Road_CIL_DBFOT_Workings!M29 -> 0 | N66: =Road_CIL_DBFOT_Workings!O29 -> 3 | O66: =Road_CIL_DBFOT_Workings!P29 -> 2038-03-31 | R66: 339.2 | S66: =Road_CIL_DBFOT_Workings!R29 -> 37.90297413 | T66: =Road_CIL_DBFOT_Workings!T29 -> 84.03118418
B67: =Road_CIL_DBFOT_Workings!J30 -> CIL | C67: 2019-03-31 | F67: 14.05536 | H67: =Road_CIL_DBFOT_Workings!F30 -> 12.66248649 | I67: =Road_CIL_DBFOT_Workings!L30 -> 9.838752 | L67: =Road_CIL_DBFOT_Workings!M30 -> 8.863740541 | N67: =Road_CIL_DBFOT_Workings!O30 -> 4 | O67: =Road_CIL_DBFOT_Workings!P30 -> 2039-03-31 | R67: 441 | S67: =Road_CIL_DBFOT_Workings!R30 -> 44.39489735 | T67: =Road_CIL_DBFOT_Workings!T30 -> 128.4260815
B68: =Road_CIL_DBFOT_Workings!J31 ->  | C68: 2020-03-31 | F68: 15.460896 | H68: =Road_CIL_DBFOT_Workings!F31 -> 12.54841003 | I68: =Road_CIL_DBFOT_Workings!L31 -> 10.8226272 | L68: =Road_CIL_DBFOT_Workings!M31 -> 8.783887022 | N68: =Road_CIL_DBFOT_Workings!O31 -> 5 | O68: =Road_CIL_DBFOT_Workings!P31 -> 2040-03-31 | R68: 573.3 | S68: =Road_CIL_DBFOT_Workings!R31 -> 51.99402392 | T68: =Road_CIL_DBFOT_Workings!T31 -> 180.4201055
B69: =Road_CIL_DBFOT_Workings!J32 ->  | C69: 2021-03-31 | F69: 17.0069856 | H69: =Road_CIL_DBFOT_Workings!F32 -> 12.43536129 | I69: =Road_CIL_DBFOT_Workings!L32 -> 11.90488992 | L69: =Road_CIL_DBFOT_Workings!M32 -> 8.704752905 | N69: =Road_CIL_DBFOT_Workings!O32 -> 6 | O69: =Road_CIL_DBFOT_Workings!P32 -> 2041-03-31 | R69: 745.4 | S69: =Road_CIL_DBFOT_Workings!R32 -> 60.90288944 | T69: =Road_CIL_DBFOT_Workings!T32 -> 241.3229949
B70: =Road_CIL_DBFOT_Workings!J33 ->  | C70: 2022-03-31 | F70: 18.70768416 | H70: =Road_CIL_DBFOT_Workings!F33 -> 12.32333101 | I70: =Road_CIL_DBFOT_Workings!L33 -> 13.09537891 | L70: =Road_CIL_DBFOT_Workings!M33 -> 8.626331707 | N70: =Road_CIL_DBFOT_Workings!O33 -> 7 | O70: =Road_CIL_DBFOT_Workings!P33 -> 2042-03-31 | R70: 969 | S70: =Road_CIL_DBFOT_Workings!R33 -> 71.32623619 | T70: =Road_CIL_DBFOT_Workings!T33 -> 312.6492311
B71: =Road_CIL_DBFOT_Workings!J34 ->  | C71: 2023-03-31 | F71: 20.57845258 | H71: =Road_CIL_DBFOT_Workings!F34 -> 12.21231001 | I71: =Road_CIL_DBFOT_Workings!L34 -> 14.4049168 | L71: =Road_CIL_DBFOT_Workings!M34 -> 8.548617007 | N71: =Road_CIL_DBFOT_Workings!O34 -> 8 | O71: =Road_CIL_DBFOT_Workings!P34 -> 2043-03-31 | R71: 0 | S71: =Road_CIL_DBFOT_Workings!R34 -> 0 | T71: =Road_CIL_DBFOT_Workings!T34 -> 312.6492311
B72: =Road_CIL_DBFOT_Workings!J35 ->  | C72: 2024-03-31 | F72: 22.63629783 | H72: =Road_CIL_DBFOT_Workings!F35 -> 12.1022892 | I72: =Road_CIL_DBFOT_Workings!L35 -> 15.84540848 | L72: =Road_CIL_DBFOT_Workings!M35 -> 8.47160244 | N72: =Road_CIL_DBFOT_Workings!O35 -> 9 | O72: =Road_CIL_DBFOT_Workings!P35 -> 2044-03-31 | R72: 0 | S72: =Road_CIL_DBFOT_Workings!R35 -> 0 | T72: =Road_CIL_DBFOT_Workings!T35 -> 312.6492311
B73: =Road_CIL_DBFOT_Workings!J36 ->  | C73: 2025-03-31 | F73: 24.89992762 | H73: =Road_CIL_DBFOT_Workings!F36 -> 11.99325957 | I73: =Road_CIL_DBFOT_Workings!L36 -> 17.42994933 | L73: =Road_CIL_DBFOT_Workings!M36 -> 8.395281697 | N73: =Road_CIL_DBFOT_Workings!O36 -> 10 | O73: =Road_CIL_DBFOT_Workings!P36 -> 2045-03-31 | R73: 0 | S73: =Road_CIL_DBFOT_Workings!R36 -> 0 | T73: =Road_CIL_DBFOT_Workings!T36 -> 312.6492311
B74: =Road_CIL_DBFOT_Workings!J37 ->  | C74: 2026-03-31 | F74: 27.38992038 | H74: =Road_CIL_DBFOT_Workings!F37 -> 11.88521218 | I74: =Road_CIL_DBFOT_Workings!L37 -> 19.17294427 | L74: =Road_CIL_DBFOT_Workings!M37 -> 8.319648529 | N74: =Road_CIL_DBFOT_Workings!O37 -> 11 | O74: =Road_CIL_DBFOT_Workings!P37 -> 2046-03-31 | R74: 0 | S74: =Road_CIL_DBFOT_Workings!R37 -> 0 | T74: =Road_CIL_DBFOT_Workings!T37 -> 312.6492311
B75: =Road_CIL_DBFOT_Workings!J38 ->  | C75: 2027-03-31 | F75: 30.12891242 | H75: =Road_CIL_DBFOT_Workings!F38 -> 11.7781382 | I75: =Road_CIL_DBFOT_Workings!L38 -> 21.09023869 | L75: =Road_CIL_DBFOT_Workings!M38 -> 8.24469674 | N75: =Road_CIL_DBFOT_Workings!O38 -> 12 | O75: =Road_CIL_DBFOT_Workings!P38 -> 2047-03-31 | R75: 0 | S75: =Road_CIL_DBFOT_Workings!R38 -> 0 | T75: =Road_CIL_DBFOT_Workings!T38 -> 312.6492311
B76: =Road_CIL_DBFOT_Workings!J39 ->  | C76: 2028-03-31 | F76: 33.14180366 | H76: =Road_CIL_DBFOT_Workings!F39 -> 11.67202885 | I76: =Road_CIL_DBFOT_Workings!L39 -> 23.19926256 | L76: =Road_CIL_DBFOT_Workings!M39 -> 8.170420193 | N76: =Road_CIL_DBFOT_Workings!O39 -> 13 | O76: =Road_CIL_DBFOT_Workings!P39 -> 2048-03-31 | R76: 0 | S76: =Road_CIL_DBFOT_Workings!R39 -> 0 | T76: =Road_CIL_DBFOT_Workings!T39 -> 312.6492311
B77: =Road_CIL_DBFOT_Workings!J40 ->  | C77: 2029-03-31 | F77: 36.45598402 | H77: =Road_CIL_DBFOT_Workings!F40 -> 11.56687543 | I77: =Road_CIL_DBFOT_Workings!L40 -> 25.51918882 | L77: =Road_CIL_DBFOT_Workings!M40 -> 8.096812804 | N77: =Road_CIL_DBFOT_Workings!O40 -> 14 | O77: =Road_CIL_DBFOT_Workings!P40 -> 2049-03-31 | R77: 0 | S77: =Road_CIL_DBFOT_Workings!R40 -> 0 | T77: =Road_CIL_DBFOT_Workings!T40 -> 312.6492311
B78: =Road_CIL_DBFOT_Workings!J41 ->  | C78: 2030-03-31 | F78: 40.10158243 | H78: =Road_CIL_DBFOT_Workings!F41 -> 11.46266935 | I78: =Road_CIL_DBFOT_Workings!L41 -> 28.0711077 | L78: =Road_CIL_DBFOT_Workings!M41 -> 8.023868544 | N78: =Road_CIL_DBFOT_Workings!O41 -> 15 | O78: =Road_CIL_DBFOT_Workings!P41 -> 2050-03-31 | R78: 0 | S78: =Road_CIL_DBFOT_Workings!R41 -> 0 | T78: =Road_CIL_DBFOT_Workings!T41 -> 312.6492311
B79: =Road_CIL_DBFOT_Workings!J42 ->  | C79: 2031-03-31 | F79: 44.11174067 | H79: =Road_CIL_DBFOT_Workings!F42 -> 11.35940206 | I79: =Road_CIL_DBFOT_Workings!L42 -> 30.87821847 | L79: =Road_CIL_DBFOT_Workings!M42 -> 7.95158144 | N79: =Road_CIL_DBFOT_Workings!O42 -> 16 | O79: =Road_CIL_DBFOT_Workings!P42 -> 2051-03-31 | R79: 0 | S79: =Road_CIL_DBFOT_Workings!R42 -> 0 | T79: =Road_CIL_DBFOT_Workings!T42 -> 312.6492311
B80: =Road_CIL_DBFOT_Workings!J43 ->  | C80: 2032-03-31 | F80: 48.52291474 | H80: =Road_CIL_DBFOT_Workings!F43 -> 11.2570651 | I80: =Road_CIL_DBFOT_Workings!L43 -> 33.96604032 | L80: =Road_CIL_DBFOT_Workings!M43 -> 7.879945571 | N80: =Road_CIL_DBFOT_Workings!O43 -> 17 | O80: =Road_CIL_DBFOT_Workings!P43 -> 2052-03-31 | R80: 0 | S80: =Road_CIL_DBFOT_Workings!R43 -> 0 | T80: =Road_CIL_DBFOT_Workings!T43 -> 312.6492311
B81: =Road_CIL_DBFOT_Workings!J44 ->  | C81: 2033-03-31 | F81: 53.37520621 | H81: =Road_CIL_DBFOT_Workings!F44 -> 11.1556501 | I81: =Road_CIL_DBFOT_Workings!L44 -> 37.36264435 | L81: =Road_CIL_DBFOT_Workings!M44 -> 7.808955071 | N81: =Road_CIL_DBFOT_Workings!O44 -> 18 | O81: =Road_CIL_DBFOT_Workings!P44 -> 2053-03-31 | R81: 0 | S81: =Road_CIL_DBFOT_Workings!R44 -> 0 | T81: =Road_CIL_DBFOT_Workings!T44 -> 312.6492311
B82: =Road_CIL_DBFOT_Workings!J45 ->  | C82: 2034-03-31 | F82: 58.71272683 | H82: =Road_CIL_DBFOT_Workings!F45 -> 11.05514875 | I82: =Road_CIL_DBFOT_Workings!L45 -> 41.09890878 | L82: =Road_CIL_DBFOT_Workings!M45 -> 7.738604124 | N82: =Road_CIL_DBFOT_Workings!O45 -> 19 | O82: =Road_CIL_DBFOT_Workings!P45 -> 2054-03-31 | R82: 0 | S82: =Road_CIL_DBFOT_Workings!R45 -> 0 | T82: =Road_CIL_DBFOT_Workings!T45 -> 312.6492311
B83: =Road_CIL_DBFOT_Workings!J46 ->  | C83: 2035-03-31 | F83: 64.58399951 | H83: =Road_CIL_DBFOT_Workings!F46 -> 10.95555281 | I83: =Road_CIL_DBFOT_Workings!L46 -> 45.20879966 | L83: =Road_CIL_DBFOT_Workings!M46 -> 7.66888697 | N83: =Road_CIL_DBFOT_Workings!O46 -> 20 | O83: =Road_CIL_DBFOT_Workings!P46 -> 2055-03-31 | R83: 0 | S83: =Road_CIL_DBFOT_Workings!R46 -> 0 | T83: =Road_CIL_DBFOT_Workings!T46 -> 312.6492311
B84: =Road_CIL_DBFOT_Workings!J47 ->  | C84: 2036-03-31 | F84: 71.04239946 | H84: =Road_CIL_DBFOT_Workings!F47 -> 10.85685414 | I84: =Road_CIL_DBFOT_Workings!L47 -> 49.72967963 | L84: =Road_CIL_DBFOT_Workings!M47 -> 7.599797898 | N84: =Road_CIL_DBFOT_Workings!O47 -> 21 | O84: =Road_CIL_DBFOT_Workings!P47 -> 2056-03-31 | R84: 0 | S84: =Road_CIL_DBFOT_Workings!R47 -> 0 | T84: =Road_CIL_DBFOT_Workings!T47 -> 312.6492311
B85: =Road_CIL_DBFOT_Workings!J48 ->  | C85: 2037-03-31 | F85: 78.14663941 | H85: =Road_CIL_DBFOT_Workings!F48 -> 10.75904464 | I85: =Road_CIL_DBFOT_Workings!L48 -> 54.70264759 | L85: =Road_CIL_DBFOT_Workings!M48 -> 7.53133125 | N85: =Road_CIL_DBFOT_Workings!O48 -> 22 | O85: =Road_CIL_DBFOT_Workings!P48 -> 2057-03-31 | R85: 0 | S85: =Road_CIL_DBFOT_Workings!R48 -> 0 | T85: =Road_CIL_DBFOT_Workings!T48 -> 312.6492311
B86: =Road_CIL_DBFOT_Workings!J49 ->  | C86: 2038-03-31 | F86: 85.96130335 | H86: =Road_CIL_DBFOT_Workings!F49 -> 10.66211631 | I86: =Road_CIL_DBFOT_Workings!L49 -> 60.17291235 | L86: =Road_CIL_DBFOT_Workings!M49 -> 7.463481419 | N86: =Road_CIL_DBFOT_Workings!O49 -> 23 | O86: =Road_CIL_DBFOT_Workings!P49 -> 2058-03-31 | R86: 0 | S86: =Road_CIL_DBFOT_Workings!R49 -> 0 | T86: =Road_CIL_DBFOT_Workings!T49 -> 312.6492311
B87: =Road_CIL_DBFOT_Workings!J50 ->  | C87: 2039-03-31 | F87: 94.55743369 | H87: =Road_CIL_DBFOT_Workings!F50 -> 10.56606121 | I87: =Road_CIL_DBFOT_Workings!L50 -> 66.19020358 | L87: =Road_CIL_DBFOT_Workings!M50 -> 7.396242848 | N87: =Road_CIL_DBFOT_Workings!O50 -> 24 | O87: =Road_CIL_DBFOT_Workings!P50 -> 2059-03-31 | R87: 0 | S87: =Road_CIL_DBFOT_Workings!R50 -> 0 | T87: =Road_CIL_DBFOT_Workings!T50 -> 312.6492311
B88: =Road_CIL_DBFOT_Workings!J51 ->  | C88: 2040-03-31 | F88: 104.01 | H88: =Road_CIL_DBFOT_Workings!F51 -> 10.47055164 | I88: =Road_CIL_DBFOT_Workings!L51 -> 72.807 | L88: =Road_CIL_DBFOT_Workings!M51 -> 7.329386148 | N88: =Road_CIL_DBFOT_Workings!O51 -> 25 | O88: =Road_CIL_DBFOT_Workings!P51 -> 2060-03-31 | R88: 0 | S88: =Road_CIL_DBFOT_Workings!R51 -> 0 | T88: =Road_CIL_DBFOT_Workings!T51 -> 312.6492311
B89: =Road_CIL_DBFOT_Workings!J52 ->  | C89: 2041-03-31 | F89: 114.41 | H89: =Road_CIL_DBFOT_Workings!F52 -> 10.37613165 | I89: =Road_CIL_DBFOT_Workings!L52 -> 80.087 | L89: =Road_CIL_DBFOT_Workings!M52 -> 7.263292158 | N89: =Road_CIL_DBFOT_Workings!O52 -> 26 | O89: =Road_CIL_DBFOT_Workings!P52 -> 2061-03-31 | R89: 0 | S89: =Road_CIL_DBFOT_Workings!R52 -> 0 | T89: =Road_CIL_DBFOT_Workings!T52 -> 312.6492311
B90: =Road_CIL_DBFOT_Workings!J53 ->  | C90: 2042-03-31 | F90: 125.84 | H90: =Road_CIL_DBFOT_Workings!F53 -> 10.28175424 | I90: =Road_CIL_DBFOT_Workings!L53 -> 88.088 | L90: =Road_CIL_DBFOT_Workings!M53 -> 7.197227965 | N90: =Road_CIL_DBFOT_Workings!O53 -> 27 | O90: =Road_CIL_DBFOT_Workings!P53 -> 2062-03-31 | R90: 0 | S90: =Road_CIL_DBFOT_Workings!R53 -> 0 | T90: =Road_CIL_DBFOT_Workings!T53 -> 312.6492311
B91: =Road_CIL_DBFOT_Workings!J54 ->  | C91: 2043-03-31 | F91: 138.41 | H91: =Road_CIL_DBFOT_Workings!F54 -> 10.18809531 | I91: =Road_CIL_DBFOT_Workings!L54 -> 96.887 | L91: =Road_CIL_DBFOT_Workings!M54 -> 7.131666714 | N91: =Road_CIL_DBFOT_Workings!O54 -> 28 | O91: =Road_CIL_DBFOT_Workings!P54 -> 2063-03-31 | R91: 0 | S91: =Road_CIL_DBFOT_Workings!R54 -> 0 | T91: =Road_CIL_DBFOT_Workings!T54 -> 312.6492311
B92: =Road_CIL_DBFOT_Workings!J55 ->  | C92: 2044-03-31 | F92: 152.24 | H92: =Road_CIL_DBFOT_Workings!F55 -> 10.09558121 | I92: =Road_CIL_DBFOT_Workings!L55 -> 106.568 | L92: =Road_CIL_DBFOT_Workings!M55 -> 7.06690685 | N92: =Road_CIL_DBFOT_Workings!O55 -> 29 | O92: =Road_CIL_DBFOT_Workings!P55 -> 2064-03-31 | R92: 0 | S92: =Road_CIL_DBFOT_Workings!R55 -> 0 | T92: =Road_CIL_DBFOT_Workings!T55 -> 312.6492311
B93: =Road_CIL_DBFOT_Workings!J56 ->  | C93: 2045-03-31 | F93: 167.45 | H93: =Road_CIL_DBFOT_Workings!F56 -> 10.00379364 | I93: =Road_CIL_DBFOT_Workings!L56 -> 117.215 | L93: =Road_CIL_DBFOT_Workings!M56 -> 7.002655551 | N93: =Road_CIL_DBFOT_Workings!O56 -> 30 | O93: =Road_CIL_DBFOT_Workings!P56 -> 2065-03-31 | R93: 0 | S93: =Road_CIL_DBFOT_Workings!R56 -> 0 | T93: =Road_CIL_DBFOT_Workings!T56 -> 312.6492311
B94: =Road_CIL_DBFOT_Workings!J57 ->  | C94: 2046-03-31 | F94: 26 | H94: =Road_CIL_DBFOT_Workings!F57 -> 1.399361567 | I94: =Road_CIL_DBFOT_Workings!L57 -> 18.2 | L94: =Road_CIL_DBFOT_Workings!M57 -> 0.9795530968 | N94: =Road_CIL_DBFOT_Workings!O57 -> 31 | O94: =Road_CIL_DBFOT_Workings!P57 -> 2066-03-31 | R94: 0 | S94: =Road_CIL_DBFOT_Workings!R57 -> 0 | T94: =Road_CIL_DBFOT_Workings!T57 -> 312.6492311
A118: Instructions
L121: Legend
B122: General | E122: Project details need to be entered in the yellow marked cells.
N124: Input Cell
B125: Project Particulars | E125: ="Cell "&SUBSTITUTE(CELL("address",H20),"$","")&" - Construction Period" -> Cell H20 - Construction Period | N125: Change in law Year
E126: ="Cell "&SUBSTITUTE(CELL("address",H25),"$","")&" - Concession Period" -> Cell H25 - Concession Period | M126: Units | N126: Amount are in Rs. Cr
B128: Change in Law | E128: ="Cell "&SUBSTITUTE(CELL("address",S24),"$","")&" - the year in which change of law is observed." -> Cell S24 - the year in which change of law is observed.
E129: ="Cell "&SUBSTITUTE(CELL("address",B23),"$","")&" - type of change observed." -> Cell B23 - type of change observed.
E130: ="Cell "&SUBSTITUTE(CELL("address",H23),"$","")&" - reduction in revenue due to change in law." -> Cell H23 - reduction in revenue due to change in law.
E131: ="Cell "&SUBSTITUTE(CELL("address",F63),"$","")&" - Cash Flow in every additional year" -> Cell F63 - Cash Flow in every additional year
B133: Key Information about the Project | E133: ="Cell "&SUBSTITUTE(CELL("address",H25),"$","")&" - Concession Period Considered (yrs)" -> Cell H25 - Concession Period Considered (yrs)
E134: ="Cell "&SUBSTITUTE(CELL("address",H26),"$","")&" - Total Project Cost " -> Cell H26 - Total Project Cost
E135: ="Cell "&SUBSTITUTE(CELL("address",H27),"$","")&" - Initial Revenue (in INR Crs) " -> Cell H27 - Initial Revenue (in INR Crs)
E136: ="Cell "&SUBSTITUTE(CELL("address",H28),"$","")&" - Discount Factor " -> Cell H28 - Discount Factor
E137: ="Cell "&SUBSTITUTE(CELL("address",H30),"$","")&" - Limit for % change in realisable fees" -> Cell H30 - Limit for % change in realisable fees
E138: ="Cell "&SUBSTITUTE(CELL("address",H32),"$","")&" - Limit for change in realisable fees" -> Cell H32 - Limit for change in realisable fees
B140: Key Dates | E140: ="Cell "&SUBSTITUTE(CELL("address",H21),"$","")&" - Appointed Date" -> Cell H21 - Appointed Date
B142: Option | E142: ="Cell "&SUBSTITUTE(CELL("address",C9),"$","")&" - various reasons for method of completion" -> Cell C9 - various reasons for method of completion
B144: Results | E144: ="Cell "&SUBSTITUTE(CELL("address",S28),"$","")&" - indicates the inc/ dec in concession period." -> Cell S28 - indicates the inc/ dec in concession period.
A147: // End

Sheet Road_CIL_DBFOT_Workings (hidden)
A1: Workings
F2: Inputs | G2: Inputs from other sheets
F3: Calculation | G3: Major Calculation
F4: Inputs | G4: Manual Inputs
F5: Inputs | G5: Hardcoded Values
A7: Results
C9: Reason Selected | G9: =Road_CIL_DBFOT_Dashboard!S25 -> One Time Payment
C10: Change in Concession Period | G10: =V22 -> 1.933144974
C11: Change in Concession Period | G11: =IF(G9="Change in CP",G10,0) -> 0
C13: Concession Period Considered (yrs) | G13: =Road_CIL_DBFOT_Dashboard!H25 -> 20
C14: Concession Period | G14: =G13+G11 -> 20
C16: Difference Between the NPVs | G16: =V21 -> 43.96475155
C17: Payment to be made by either party | G17: =IF(G9="One Time Payment",G16,"") -> 43.96475155
A19: NPV Calculations
C21: Change in the law date | F21: =Road_CIL_DBFOT_Dashboard!S24 -> 2018-08-01 | H21: Change in law year | J21: =IF(MONTH(F21)<= 3, YEAR(F21) -1, YEAR(F21)) -> 2018 | O21: Last Financial Year | R21: =Road_CIL_DBFOT_Dashboard!S45 -> 2036-03-31 | T21: Difference between the NPVs | V21: =Road_CIL_DBFOT_Dashboard!S61 -> 43.96475155
C22: Discount Factor | F22: =Road_CIL_DBFOT_Dashboard!H28 -> 0.11 | H22: Reduction in Revenue | J22: =Road_CIL_DBFOT_Dashboard!H23 -> 0.3 | O22: Month in a Year | R22: =rngMthsYr -> 12 | T22: Change in Concession Period | V22: =SUM(V27:V57) -> 1.933144974
C23: Appointed Date | F23: =Road_CIL_DBFOT_Dashboard!S36 -> 2015-06-01 | H23: Appointed Date Year | J23: =YEAR(F23) -> 2015
C25: Year Ending | E25: Net Cash Flow | F25: Discounted Cash Flow | G25: Post change in law period flag | H25: Pre change in law period flag | I25: Duration (Yrs) | J25: Change in Law (CIL) | L25: Net Cash Flow | M25: Discounted Cash Flow | O25: Year No. | P25: Year Ending | Q25: Net Cash Flow | R25: Discounted Cash Flow | S25: Duration (Yrs) | T25: Cumulative Discounted Cash Flow | U25: Recovery Period | V25: Recovery Year
C27: =Road_CIL_DBFOT_Dashboard!C64 -> 2016-03-31 | E27: =Road_CIL_DBFOT_Dashboard!F64 -> -33.33333333 | F27: =(E27/((1+$F$22)^$I27))*$G27 -> 0 | G27: =IF(C27>$F$21,1,0) -> 0 | H27: =IF(C27<$F$21,1,0) -> 1 | I27: =IF(H27=1,YEAR(C27)-$J$23,YEAR(C27)-$J$21) -> 1 | J27: =IF(AND($F$21>C26,$F$21<C27),"CIL","") ->  | L27: =IF(G27=1,E27*(1-$J$22),E27) -> -33.33333333 | M27: =(L27/((1+$F$22)^$I27))*$G27 -> 0 | O27: =SUM(O26)+1 -> 1 | P27: =IF(O27=1,$R$21,EDATE(P26,$R$22)) -> 2036-03-31 | Q27: =Road_CIL_DBFOT_Dashboard!R64 -> 100 | R27: =(Q27/((1+$F$22)^S27)) -> 13.76776369 | S27: =YEAR(P27)+1-$J$21 -> 19 | T27: =SUM($R$27:R27) -> 13.76776369 | U27: =IF(AND(T27>$V$21,T26<$V$21),1,0) -> 0 | V27: =IF(U27=1,O26+(($V$21-T26)/R27),0) -> 0
C28: =Road_CIL_DBFOT_Dashboard!C65 -> 2017-03-31 | E28: =Road_CIL_DBFOT_Dashboard!F65 -> -33.33333333 | F28: =(E28/((1+$F$22)^$I28))*$G28 -> 0 | G28: =IF(C28>$F$21,1,0) -> 0 | H28: =IF(C28<$F$21,1,0) -> 1 | I28: =IF(H28=1,YEAR(C28)-$J$23,YEAR(C28)-$J$21) -> 2 | J28: =IF(AND($F$21>C27,$F$21<C28),"CIL","") ->  | L28: =IF(G28=1,E28*(1-$J$22),E28) -> -33.33333333 | M28: =(L28/((1+$F$22)^$I28))*$G28 -> 0 | O28: =SUM(O27)+1 -> 2 | P28: =IF(O28=1,$R$21,EDATE(P27,$R$22)) -> 2037-03-31 | Q28: =Road_CIL_DBFOT_Dashboard!R65 -> 260.9 | R28: =(Q28/((1+$F$22)^S28)) -> 32.36044636 | S28: =YEAR(P28)+1-$J$21 -> 20 | T28: =SUM($R$27:R28) -> 46.12821005 | U28: =IF(AND(T28>$V$21,T27<$V$21),1,0) -> 1 | V28: =IF(U28=1,O27+(($V$21-T27)/R28),0) -> 1.933144974
C29: =Road_CIL_DBFOT_Dashboard!C66 -> 2018-03-31 | E29: =Road_CIL_DBFOT_Dashboard!F66 -> -33.33333333 | F29: 0 | G29: 0 | H29: 1 | I29: 3 | L29: -33.33333333 | M29: 0 | O29: 3 | P29: 2038-03-31 | Q29: =Road_CIL_DBFOT_Dashboard!R66 -> 339.2 | R29: 37.90297413 | S29: 21 | T29: =SUM($R$27:R29) -> 84.03118418 | U29: 0 | V29: 0
C30: =Road_CIL_DBFOT_Dashboard!C67 -> 2019-03-31 | E30: =Road_CIL_DBFOT_Dashboard!F67 -> 14.05536 | F30: 12.66248649 | G30: 1 | H30: 0 | I30: 1 | J30: CIL | L30: 9.838752 | M30: 8.863740541 | O30: 4 | P30: 2039-03-31 | Q30: =Road_CIL_DBFOT_Dashboard!R67 -> 441 | R30: 44.39489735 | S30: 22 | T30: =SUM($R$27:R30) -> 128.4260815 | U30: 0 | V30: 0
C31: =Road_CIL_DBFOT_Dashboard!C68 -> 2020-03-31 | E31: =Road_CIL_DBFOT_Dashboard!F68 -> 15.460896 | F31: 12.54841003 | G31: 1 | H31: 0 | I31: 2 | L31: 10.8226272 | M31: 8.783887022 | O31: 5 | P31: 2040-03-31 | Q31: =Road_CIL_DBFOT_Dashboard!R68 -> 573.3 | R31: 51.99402392 | S31: 23 | T31: =SUM($R$27:R31) -> 180.4201055 | U31: 0 | V31: 0
C32: =Road_CIL_DBFOT_Dashboard!C69 -> 2021-03-31 | E32: =Road_CIL_DBFOT_Dashboard!F69 -> 17.0069856 | F32: 12.43536129 | G32: 1 | H32: 0 | I32: 3 | L32: 11.90488992 | M32: 8.704752905 | O32: 6 | P32: 2041-03-31 | Q32: =Road_CIL_DBFOT_Dashboard!R69 -> 745.4 | R32: 60.90288944 | S32: 24 | T32: =SUM($R$27:R32) -> 241.3229949 | U32: 0 | V32: 0
C33: =Road_CIL_DBFOT_Dashboard!C70 -> 2022-03-31 | E33: =Road_CIL_DBFOT_Dashboard!F70 -> 18.70768416 | F33: 12.32333101 | G33: 1 | H33: 0 | I33: 4 | L33: 13.09537891 | M33: 8.626331707 | O33: 7 | P33: 2042-03-31 | Q33: =Road_CIL_DBFOT_Dashboard!R70 -> 969 | R33: 71.32623619 | S33: 25 | T33: =SUM($R$27:R33) -> 312.6492311 | U33: 0 | V33: 0
C34: =Road_CIL_DBFOT_Dashboard!C71 -> 2023-03-31 | E34: =Road_CIL_DBFOT_Dashboard!F71 -> 20.57845258 | F34: 12.21231001 | G34: 1 | H34: 0 | I34: 5 | L34: 14.4049168 | M34: 8.548617007 | O34: 8 | P34: 2043-03-31 | Q34: =Road_CIL_DBFOT_Dashboard!R71 -> 0 | R34: 0 | S34: 26 | T34: =SUM($R$27:R34) -> 312.6492311 | U34: 0 | V34: 0
C35: =Road_CIL_DBFOT_Dashboard!C72 -> 2024-03-31 | E35: =Road_CIL_DBFOT_Dashboard!F72 -> 22.63629783 | F35: 12.1022892 | G35: 1 | H35: 0 | I35: 6 | L35: 15.84540848 | M35: 8.47160244 | O35: 9 | P35: 2044-03-31 | Q35: =Road_CIL_DBFOT_Dashboard!R72 -> 0 | R35: 0 | S35: 27 | T35: =SUM($R$27:R35) -> 312.6492311 | U35: 0 | V35: 0
C36: =Road_CIL_DBFOT_Dashboard!C73 -> 2025-03-31 | E36: =Road_CIL_DBFOT_Dashboard!F73 -> 24.89992762 | F36: 11.99325957 | G36: 1 | H36: 0 | I36: 7 | L36: 17.42994933 | M36: 8.395281697 | O36: 10 | P36: 2045-03-31 | Q36: =Road_CIL_DBFOT_Dashboard!R73 -> 0 | R36: 0 | S36: 28 | T36: =SUM($R$27:R36) -> 312.6492311 | U36: 0 | V36: 0
C37: =Road_CIL_DBFOT_Dashboard!C74 -> 2026-03-31 | E37: =Road_CIL_DBFOT_Dashboard!F74 -> 27.38992038 | F37: 11.88521218 | G37: 1 | H37: 0 | I37: 8 | L37: 19.17294427 | M37: 8.319648529 | O37: 11 | P37: 2046-03-31 | Q37: =Road_CIL_DBFOT_Dashboard!R74 -> 0 | R37: 0 | S37: 29 | T37: =SUM($R$27:R37) -> 312.6492311 | U37: 0 | V37: 0
C38: =Road_CIL_DBFOT_Dashboard!C75 -> 2027-03-31 | E38: =Road_CIL_DBFOT_Dashboard!F75 -> 30.12891242 | F38: 11.7781382 | G38: 1 | H38: 0 | I38: 9 | L38: 21.09023869 | M38: 8.24469674 | O38: 12 | P38: 2047-03-31 | Q38: =Road_CIL_DBFOT_Dashboard!R75 -> 0 | R38: 0 | S38: 30 | T38: =SUM($R$27:R38) -> 312.6492311 | U38: 0 | V38: 0
C39: =Road_CIL_DBFOT_Dashboard!C76 -> 2028-03-31 | E39: =Road_CIL_DBFOT_Dashboard!F76 -> 33.14180366 | F39: 11.67202885 | G39: 1 | H39: 0 | I39: 10 | L39: 23.19926256 | M39: 8.170420193 | O39: 13 | P39: 2048-03-31 | Q39: =Road_CIL_DBFOT_Dashboard!R76 -> 0 | R39: 0 | S39: 31 | T39: =SUM($R$27:R39) -> 312.6492311 | U39: 0 | V39: 0
C40: =Road_CIL_DBFOT_Dashboard!C77 -> 2029-03-31 | E40: =Road_CIL_DBFOT_Dashboard!F77 -> 36.45598402 | F40: 11.56687543 | G40: 1 | H40: 0 | I40: 11 | L40: 25.51918882 | M40: 8.096812804 | O40: 14 | P40: 2049-03-31 | Q40: =Road_CIL_DBFOT_Dashboard!R77 -> 0 | R40: 0 | S40: 32 | T40: =SUM($R$27:R40) -> 312.6492311 | U40: 0 | V40: 0
C41: =Road_CIL_DBFOT_Dashboard!C78 -> 2030-03-31 | E41: =Road_CIL_DBFOT_Dashboard!F78 -> 40.10158243 | F41: 11.46266935 | G41: 1 | H41: 0 | I41: 12 | L41: 28.0711077 | M41: 8.023868544 | O41: 15 | P41: 2050-03-31 | Q41: =Road_CIL_DBFOT_Dashboard!R78 -> 0 | R41: 0 | S41: 33 | T41: =SUM($R$27:R41) -> 312.6492311 | U41: 0 | V41: 0
C42: =Road_CIL_DBFOT_Dashboard!C79 -> 2031-03-31 | E42: =Road_CIL_DBFOT_Dashboard!F79 -> 44.11174067 | F42: 11.35940206 | G42: 1 | H42: 0 | I42: 13 | L42: 30.87821847 | M42: 7.95158144 | O42: 16 | P42: 2051-03-31 | Q42: =Road_CIL_DBFOT_Dashboard!R79 -> 0 | R42: 0 | S42: 34 | T42: =SUM($R$27:R42) -> 312.6492311 | U42: 0 | V42: 0
C43: =Road_CIL_DBFOT_Dashboard!C80 -> 2032-03-31 | E43: =Road_CIL_DBFOT_Dashboard!F80 -> 48.52291474 | F43: 11.2570651 | G43: 1 | H43: 0 | I43: 14 | L43: 33.96604032 | M43: 7.879945571 | O43: 17 | P43: 2052-03-31 | Q43: =Road_CIL_DBFOT_Dashboard!R80 -> 0 | R43: 0 | S43: 35 | T43: =SUM($R$27:R43) -> 312.6492311 | U43: 0 | V43: 0
C44: =Road_CIL_DBFOT_Dashboard!C81 -> 2033-03-31 | E44: =Road_CIL_DBFOT_Dashboard!F81 -> 53.37520621 | F44: 11.1556501 | G44: 1 | H44: 0 | I44: 15 | L44: 37.36264435 | M44: 7.808955071 | O44: 18 | P44: 2053-03-31 | Q44: =Road_CIL_DBFOT_Dashboard!R81 -> 0 | R44: 0 | S44: 36 | T44: =SUM($R$27:R44) -> 312.6492311 | U44: 0 | V44: 0
C45: =Road_CIL_DBFOT_Dashboard!C82 -> 2034-03-31 | E45: =Road_CIL_DBFOT_Dashboard!F82 -> 58.71272683 | F45: 11.05514875 | G45: 1 | H45: 0 | I45: 16 | L45: 41.09890878 | M45: 7.738604124 | O45: 19 | P45: 2054-03-31 | Q45: =Road_CIL_DBFOT_Dashboard!R82 -> 0 | R45: 0 | S45: 37 | T45: =SUM($R$27:R45) -> 312.6492311 | U45: 0 | V45: 0
C46: =Road_CIL_DBFOT_Dashboard!C83 -> 2035-03-31 | E46: =Road_CIL_DBFOT_Dashboard!F83 -> 64.58399951 | F46: 10.95555281 | G46: 1 | H46: 0 | I46: 17 | L46: 45.20879966 | M46: 7.66888697 | O46: 20 | P46: 2055-03-31 | Q46: =Road_CIL_DBFOT_Dashboard!R83 -> 0 | R46: 0 | S46: 38 | T46: =SUM($R$27:R46) -> 312.6492311 | U46: 0 | V46: 0
C47: =Road_CIL_DBFOT_Dashboard!C84 -> 2036-03-31 | E47: =Road_CIL_DBFOT_Dashboard!F84 -> 71.04239946 | F47: 10.85685414 | G47: 1 | H47: 0 | I47: 18 | L47: 49.72967963 | M47: 7.599797898 | O47: 21 | P47: 2056-03-31 | Q47: =Road_CIL_DBFOT_Dashboard!R84 -> 0 | R47: 0 | S47: 39 | T47: =SUM($R$27:R47) -> 312.6492311 | U47: 0 | V47: 0
C48: =Road_CIL_DBFOT_Dashboard!C85 -> 2037-03-31 | E48: =Road_CIL_DBFOT_Dashboard!F85 -> 78.14663941 | F48: 10.75904464 | G48: 1 | H48: 0 | I48: 19 | L48: 54.70264759 | M48: 7.53133125 | O48: 22 | P48: 2057-03-31 | Q48: =Road_CIL_DBFOT_Dashboard!R85 -> 0 | R48: 0 | S48: 40 | T48: =SUM($R$27:R48) -> 312.6492311 | U48: 0 | V48: 0
C49: =Road_CIL_DBFOT_Dashboard!C86 -> 2038-03-31 | E49: =Road_CIL_DBFOT_Dashboard!F86 -> 85.96130335 | F49: 10.66211631 | G49: 1 | H49: 0 | I49: 20 | L49: 60.17291235 | M49: 7.463481419 | O49: 23 | P49: 2058-03-31 | Q49: =Road_CIL_DBFOT_Dashboard!R86 -> 0 | R49: 0 | S49: 41 | T49: =SUM($R$27:R49) -> 312.6492311 | U49: 0 | V49: 0
C50: =Road_CIL_DBFOT_Dashboard!C87 -> 2039-03-31 | E50: =Road_CIL_DBFOT_Dashboard!F87 -> 94.55743369 | F50: 10.56606121 | G50: 1 | H50: 0 | I50: 21 | L50: 66.19020358 | M50: 7.396242848 | O50: 24 | P50: 2059-03-31 | Q50: =Road_CIL_DBFOT_Dashboard!R87 -> 0 | R50: 0 | S50: 42 | T50: =SUM($R$27:R50) -> 312.6492311 | U50: 0 | V50: 0
C51: =Road_CIL_DBFOT_Dashboard!C88 -> 2040-03-31 | E51: =Road_CIL_DBFOT_Dashboard!F88 -> 104.01 | F51: 10.47055164 | G51: 1 | H51: 0 | I51: 22 | L51: 72.807 | M51: 7.329386148 | O51: 25 | P51: 2060-03-31 | Q51: =Road_CIL_DBFOT_Dashboard!R88 -> 0 | R51: 0 | S51: 43 | T51: =SUM($R$27:R51) -> 312.6492311 | U51: 0 | V51: 0
C52: =Road_CIL_DBFOT_Dashboard!C89 -> 2041-03-31 | E52: =Road_CIL_DBFOT_Dashboard!F89 -> 114.41 | F52: 10.37613165 | G52: 1 | H52: 0 | I52: 23 | L52: 80.087 | M52: 7.263292158 | O52: 26 | P52: 2061-03-31 | Q52: =Road_CIL_DBFOT_Dashboard!R89 -> 0 | R52: 0 | S52: 44 | T52: =SUM($R$27:R52) -> 312.6492311 | U52: 0 | V52: 0
C53: =Road_CIL_DBFOT_Dashboard!C90 -> 2042-03-31 | E53: =Road_CIL_DBFOT_Dashboard!F90 -> 125.84 | F53: 10.28175424 | G53: 1 | H53: 0 | I53: 24 | L53: 88.088 | M53: 7.197227965 | O53: 27 | P53: 2062-03-31 | Q53: =Road_CIL_DBFOT_Dashboard!R90 -> 0 | R53: 0 | S53: 45 | T53: =SUM($R$27:R53) -> 312.6492311 | U53: 0 | V53: 0
C54: =Road_CIL_DBFOT_Dashboard!C91 -> 2043-03-31 | E54: =Road_CIL_DBFOT_Dashboard!F91 -> 138.41 | F54: 10.18809531 | G54: 1 | H54: 0 | I54: 25 | L54: 96.887 | M54: 7.131666714 | O54: 28 | P54: 2063-03-31 | Q54: =Road_CIL_DBFOT_Dashboard!R91 -> 0 | R54: 0 | S54: 46 | T54: =SUM($R$27:R54) -> 312.6492311 | U54: 0 | V54: 0
C55: =Road_CIL_DBFOT_Dashboard!C92 -> 2044-03-31 | E55: =Road_CIL_DBFOT_Dashboard!F92 -> 152.24 | F55: 10.09558121 | G55: 1 | H55: 0 | I55: 26 | L55: 106.568 | M55: 7.06690685 | O55: 29 | P55: 2064-03-31 | Q55: =Road_CIL_DBFOT_Dashboard!R92 -> 0 | R55: 0 | S55: 47 | T55: =SUM($R$27:R55) -> 312.6492311 | U55: 0 | V55: 0
C56: =Road_CIL_DBFOT_Dashboard!C93 -> 2045-03-31 | E56: =Road_CIL_DBFOT_Dashboard!F93 -> 167.45 | F56: 10.00379364 | G56: 1 | H56: 0 | I56: 27 | L56: 117.215 | M56: 7.002655551 | O56: 30 | P56: 2065-03-31 | Q56: =Road_CIL_DBFOT_Dashboard!R93 -> 0 | R56: 0 | S56: 48 | T56: =SUM($R$27:R56) -> 312.6492311 | U56: 0 | V56: 0
C57: =Road_CIL_DBFOT_Dashboard!C94 -> 2046-03-31 | E57: =Road_CIL_DBFOT_Dashboard!F94 -> 26 | F57: 1.399361567 | G57: 1 | H57: 0 | I57: 28 | L57: 18.2 | M57: 0.9795530968 | O57: 31 | P57: 2066-03-31 | Q57: =Road_CIL_DBFOT_Dashboard!R94 -> 0 | R57: 0 | S57: 49 | T57: =SUM($R$27:R57) -> 312.6492311 | U57: 0 | V57: 0
A64: Norms
D67: Reason Selected | H67: =Road_CIL_DBFOT_Dashboard!$S$25 -> One Time Payment
D68: Difference between the NPVs | H68: =$V$21 -> 43.96475155
C70: Applicable Norms
G72: Increase in costs | H72: Decrease in costs | I72: Clause
D73: Option 1 | E73: One Time Payment | G73: Increase in costs If because of change in law, the concessionaire suffers increase in cost or reduction in after tax return [aggregate financial effect of which exceeds higher of Rs. 1 crore or 0.5 % of realizable fees in any accounting year, concessionaire may notify the authority and Propose amendments to nullify the aftermath of change in laws by transferring the amount of NPV lacking from authority. | H73: Reduction in costs If because of change in law, the concessionaire enjoys reduction in cost or increase in after tax return [aggregate financial effect of which exceeds higher of Rs. 1 crore or 0.5 % of realizable fees in any accounting year, authority may notify the concessionaire and Propose amendments to nullify the aftermath of change in laws by transferring the amount of excess NPV to authority .
D74: Option 1 | E74: Change in CP | G74: Increase in cost If because of change in law, the concessionaire suffers escalation in cost or decrease in after tax return [aggregate financial effect of which exceeds higher of Rs. 1 crore or 0.5 % of realizable fees in any accounting year, the concession period would be increased by the proportion of certain years to nullify the effect on both the parties. | H74: Reduction in cost If because of change in law, the concessionaire enjoys reduction in cost or increase in after tax return [aggregate financial effect of which exceeds higher of Rs. 1 crore or 0.5 % of realizable fees in any accounting year, the concession period would be decreased by the proportion of certain years to nullify the effect on both the parties.
G75: =IF(H67=E73,G73,G74) -> Increase in costs If because of change in law, the concessionaire suffers increase in cost or reduction in after tax return [aggregate financial effect of which exceeds higher of Rs. 1 crore or 0.5 % of realizable fees in any accounting year, concessionaire may notify the authority and Propose amendments to nullify the aftermath of change in laws by transferring the amount of NPV lacking from authority. | H75: =IF(H67=E73,H73,H74) -> Reduction in costs If because of change in law, the concessionaire enjoys reduction in cost or increase in after tax return [aggregate financial effect of which exceeds higher of Rs. 1 crore or 0.5 % of realizable fees in any accounting year, authority may notify the concessionaire and Propose amendments to nullify the aftermath of change in laws by transferring the amount of excess NPV to authority .
C76: Applicable Norm | G76: =IF(H68>0,G75,H75) -> Increase in costs If because of change in law, the concessionaire suffers increase in cost or reduction in after tax return [aggregate financial effect of which exceeds higher of Rs. 1 crore or 0.5 % of realizable fees in any accounting year, concessionaire may notify the authority and Propose amendments to nullify the aftermath of change in laws by transferring the amount of NPV lacking from authority.
A79: Graph Data
D81: Project Days | E81: Days | F81: URN | G81: Sorted URN | H81: Project Days | I81: Days | J81: Dummy
D82: =Road_CIL_DBFOT_Dashboard!M36 -> Appointed Date | E82: =Road_CIL_DBFOT_Dashboard!S36 -> 2015-06-01 | F82: =E82&D82 -> 42156Appointed Date | G82: =_xlfn._xlws.SORT(F82:F85,1,1) -> 42156Appointed Date | H82: =INDEX($D$82:$D$85,MATCH(G82,$F$82:$F$85,0)) -> Appointed Date | I82: =INDEX($E$82:$E$85,MATCH(G82,$F$82:$F$85,0)) -> 2015-06-01 | J82: 1
D83: =Road_CIL_DBFOT_Dashboard!M37 -> Date of Construction Completion | E83: =Road_CIL_DBFOT_Dashboard!S37 -> 2018-05-31 | F83: =E83&D83 -> 43251Date of Construction Completion | G83: 43251Date of Construction Completion | H83: =INDEX($D$82:$D$85,MATCH(G83,$F$82:$F$85,0)) -> Date of Construction Completion | I83: =INDEX($E$82:$E$85,MATCH(G83,$F$82:$F$85,0)) -> 2018-05-31 | J83: 1
D84: =Road_CIL_DBFOT_Dashboard!M38 -> Commercial Operations Date (COD) | E84: =Road_CIL_DBFOT_Dashboard!S38 -> 2018-06-01 | F84: 43252Commercial Operations Date (COD) | G84: 43252Commercial Operations Date (COD) | H84: =INDEX($D$82:$D$85,MATCH(G84,$F$82:$F$85,0)) -> Commercial Operations Date (COD) | I84: 2018-06-01 | J84: 1
D85: =Road_CIL_DBFOT_Dashboard!M39 -> Termination Date | E85: =Road_CIL_DBFOT_Dashboard!S39 -> 2035-05-31 | F85: 49460Termination Date | G85: 49460Termination Date | H85: =INDEX($D$82:$D$85,MATCH(G85,$F$82:$F$85,0)) -> Termination Date | I85: 2035-05-31 | J85: 1
D87: Particular | E87: Years
D88: ="Actual "&Road_CIL_DBFOT_Dashboard!B25 -> Actual Concession Period Considered (yrs) | E88: =Road_CIL_DBFOT_Dashboard!H25 -> 20
D89: =Road_CIL_DBFOT_Dashboard!M29 -> Revised Concession Period | E89: =Road_CIL_DBFOT_Dashboard!S29-E88 -> 0
A91: // End

Sheet Road_TP_DBFOT_Dashboard (hidden)
A2: Key Inputs | L2: Key Outputs
B6: Risk events for calculation of Contingent Liability
B18: Your Selection | H18: 7 | I18: TRUE
B21: Project Particulars
M22: Result
B23: Construction Period (months) | H23: 30
B24: Concession Period Considered (yrs) | H24: 30 | M24: Base Adjusted Equity at COD | S24: =Road_TP_DBFOT_Workings!E44 -> 102.3701003
B25: Last Capex Payment Month | H25: 30 | M25: % Reduction per Month | S25: =Road_TP_DBFOT_Workings!E49 -> 0.0042
B26: Appointment Date | H26: 2015-04-01 | M26: No. of months from 4th Anniversary of COD | S26: =Road_TP_DBFOT_Workings!E56 -> 0
B27: Termination Date | H27: 2020-02-20 | M27: Adjusted Equity | S27: =Road_TP_DBFOT_Workings!E101 -> 108.517652
M28: % of Debt Due | S28: =Road_TP_DBFOT_Workings!D125 -> 0
B29: No Termination Payment | M29: % of Adjusted Equity | S29: =Road_TP_DBFOT_Workings!D126 -> 0
B30: =IF(AND($H$18=2,$I$18=FALSE),"Actual Cost",IF(AND($H$18=3,$I$18=FALSE),"Interest Payment on Debt","")) ->  | M30: Insurance Cover (INR Crs) | S30: =Road_TP_DBFOT_Workings!E134 -> 0
B31: =IF(AND($H$18=2,$I$18=FALSE),"Insurance Cover",IF(AND($H$18=3,$I$18=FALSE),"O&M Expenses","")) ->  | M31: Insurance Claims | S31: =Road_TP_DBFOT_Workings!E139 -> 0
B32: =IF(AND($H$18=2,$I$18=FALSE),"",IF(AND($H$18=3,$I$18=FALSE),"Any increase in cost of construction due to inflation","")) ->  | M32: =IF(AND(OR($H$18=2,$H$18=3),$I$18=FALSE),"Non Termination Payment","Termination Payment") -> Termination Payment | S32: =IF(AND($H$18=2,$I$18=FALSE),0.5*(H30-H31),IF(AND($H$18=3,$I$18=FALSE),SUM(H30:H33),Road_TP_DBFOT_Workings!E161)) -> 0
B33: =IF(AND($H$18=2,$I$18=FALSE),"",IF(AND($H$18=3,$I$18=FALSE),"All other cost directly attributable to FM","")) -> 
B35: Means of Finance | M35: WPI Details
B37: Equity Infused | H37: 100 | M37: ="WPI at the Time of " &M44 -> WPI at the Time of Appointed Date | S37: =Road_TP_DBFOT_Workings!E215 -> 109.7
B38: Debt Due | H38: 200 | M38: ="WPI at the Time of " &M47 -> WPI at the Time of Termination Date | S38: =Road_TP_DBFOT_Workings!E216 -> 121.8
B39: Insurance Cover | H39: 100 | M39: ="WPI at the Time of " &M46 -> WPI at the Time of Commercial Operations Date (COD) | S39: =Road_TP_DBFOT_Workings!E217 -> 114.9
B40: Insurance Claims (not admitted and paid) | H40: 50
B42: General Inputs | M42: Key Dates
B43: Year count for 4th Anniversary | H43: 4
M44: Appointed Date | S44: =H26 -> 2015-04-01
B45: =HYPERLINK("#'" & RIGHT(CELL("FILENAME", Road_TP_DBFOT_Workings!$D$173), LEN(CELL("FILENAME", Road_TP_DBFOT_Workings!$D$173)) - SEARCH("]", CELL("FILENAME", Road_TP_DBFOT_Workings!$D$173))) & "'!" & MID(CELL("address", Road_TP_DBFOT_Workings!$D$173), SEARCH("!", CELL("address", Road_TP_DBFOT_Workings!$D$173)) + 1, LEN(CELL("address", Road_TP_DBFOT_Workings!$D$173)) - SEARCH("!", CELL("address", Road_TP_DBFOT_Workings!$D$173))), "Click here to update WPI figures if project timeline is not between 2011-2021") -> Click here to update WPI figures if project timeline is not between 2011-2021 | M45: Date of Construction Completion | S45: =EDATE(H26,H23)-1 -> 2017-09-30
B46: =HYPERLINK("#'" & RIGHT(CELL("FILENAME", Road_TP_DBFOT_Workings!$C$110), LEN(CELL("FILENAME", Road_TP_DBFOT_Workings!$C$110)) - SEARCH("]", CELL("FILENAME", Road_TP_DBFOT_Workings!$C$110))) & "'!" & MID(CELL("address", Road_TP_DBFOT_Workings!$C$110), SEARCH("!", CELL("address", Road_TP_DBFOT_Workings!$C$110)) + 1, LEN(CELL("address", Road_TP_DBFOT_Workings!$C$110)) - SEARCH("!", CELL("address", Road_TP_DBFOT_Workings!$C$110))), "Click here to update Norms.") -> Click here to update Norms. | M46: Commercial Operations Date (COD) | S46: =S45+1 -> 2017-10-01
B47: =HYPERLINK("#'" & RIGHT(CELL("FILENAME", Road_TP_DBFOT_Workings!$A$7), LEN(CELL("FILENAME", Road_TP_DBFOT_Workings!$A$7)) - SEARCH("]", CELL("FILENAME", Road_TP_DBFOT_Workings!$A$7))) & "'!" & MID(CELL("address", Road_TP_DBFOT_Workings!$A$7), SEARCH("!", CELL("address", Road_TP_DBFOT_Workings!$A$7)) + 1, LEN(CELL("address", Road_TP_DBFOT_Workings!$A$7)) - SEARCH("!", CELL("address", Road_TP_DBFOT_Workings!$A$7))), "Click here to update Inputs") -> Click here to update Inputs | M47: Termination Date | S47: =H27 -> 2020-02-20
M48: First Financial Year Ending | S48: =DATE(IF(MONTH(S44)>Settings!$C$28,YEAR(S44)+1,YEAR(S44)),Settings!$C$28,Settings!$C$29) -> 2016-03-31
M49: No. of months in first Financial Year | S49: =ROUND((S48-S44)/Settings!C30,0) -> 12
B50: Project Timeline | M50: Construction Ending Financial Year | S50: =DATE(IF(MONTH(S45)>Settings!C28,YEAR(S45)+1,YEAR(S45)),Settings!C28,Settings!C29) -> 2018-03-31
M51: Construction Ending Financial Year No. | S51: =YEAR(S50)-YEAR(S48)+1 -> 3
M52: No. of operational months in Cons Ending FY | S52: =ROUND((S50-S45)/Settings!C30,0) -> 6
M53: Last Financial Year Ending | S53: =DATE(IF(MONTH(S47)>Settings!C28,YEAR(S47)+1,YEAR(S47)),Settings!C28,Settings!C29) -> 2020-03-31
M54: Last Financial Year Ending No. | S54: =YEAR(S53)-YEAR(S48)+1 -> 5
M55: No. of months in last Financial Year | S55: =Settings!C27-ROUND((S53-S47)/Settings!C30,0) -> 11
M56: 4th Anniversary from COD | S56: =EDATE(S46,H43*Settings!$C$27)-1 -> 2021-09-30
M57: Termination Period | S57: =Road_TP_DBFOT_Workings!G30 -> Between COD and 4th Anniversary
A60: Norms
B62: Norms on Adjusted Equity Calculation | L62: Norms on Termination Payment
C63: =Road_TP_DBFOT_Workings!G27 -> From COD and until the 4th (fourth) anniversary thereof, an amount equal to the Adjusted Equity as on COD shall be deemed to be the base (the “Base Adjusted Equity”) and the Adjusted Equity hereunder shall be a sum equal to the Base Adjusted Equity, revised at the commencement of each month following COD to the extent of variation in WPI occurring between COD and the Reference Date | M63: =IF(AND(OR(H18=2,H18=3),I18=FALSE),Road_TP_DBFOT_Workings!I120,Road_TP_DBFOT_Workings!H120) -> 0% - For the avoidance of doubt, the Concessionaire hereby acknowledges that no Termination Payment shall be due or payable on account of a Concessionaire Default occurring prior to COD
A68: Instructions
L71: Legend
B72: General | E72: Project details need to be entered in the yellow marked cells.
N74: Input Cell
B75: Project Particulars | E75: ="Cell "&SUBSTITUTE(CELL("address",H23),"$","")&" - Construction Period" -> Cell H23 - Construction Period | N75: Results
E76: ="Cell "&SUBSTITUTE(CELL("address",H24),"$","")&" - Concession Period" -> Cell H24 - Concession Period | M76: Units | N76: Amount are in Rs. Cr
E77: ="Cell "&SUBSTITUTE(CELL("address",H25),"$","")&" - the month in which the last capex was/ has to be released." -> Cell H25 - the month in which the last capex was/ has to be released.
B79: Financial Details: | E79: ="Cell "&SUBSTITUTE(CELL("address",H37),"$","")&" - the Total Equity infused in the Project as on date" -> Cell H37 - the Total Equity infused in the Project as on date
E80: ="Cell "&SUBSTITUTE(CELL("address",H38),"$","")&" - the Debt Due on Termination Date as per Concession Agreement" -> Cell H38 - the Debt Due on Termination Date as per Concession Agreement
E81: ="Cell "&SUBSTITUTE(CELL("address",H39),"$","")&" - Insurance cover as per the Concession Agreement" -> Cell H39 - Insurance cover as per the Concession Agreement
E82: ="Cell "&SUBSTITUTE(CELL("address",H40),"$","")&" - Insurance claim in part of the Insurance cover are not admitted and paid." -> Cell H40 - Insurance claim in part of the Insurance cover are not admitted and paid.
B85: Wholesale Price Index (WPI) Details: | E85: ="Cell "&SUBSTITUTE(CELL("address",S37),"$","")&" - WPI of 1st day of the month of Appointed Date" -> Cell S37 - WPI of 1st day of the month of Appointed Date
E86: ="Cell "&SUBSTITUTE(CELL("address",S38),"$","")&" - latest monthly WPI of Termination Date" -> Cell S38 - latest monthly WPI of Termination Date
E87: ="Cell "&SUBSTITUTE(CELL("address",S39),"$","")&" - latest monthly WPI of COD" -> Cell S39 - latest monthly WPI of COD
B89: Key Dates | E89: ="Cell "&SUBSTITUTE(CELL("address",H26),"$","")&" - Appointed Date of the Project" -> Cell H26 - Appointed Date of the Project
E90: ="Cell "&SUBSTITUTE(CELL("address",H27),"$","")&" - Termination Date" -> Cell H27 - Termination Date
B92: Option | E92: ="Cell "&SUBSTITUTE(CELL("address",B18),"$","")&" - various reasons for Termination, the adequate reason to be selected." -> Cell B18 - various reasons for Termination, the adequate reason to be selected.
B94: Results | E94: ="Cell "&SUBSTITUTE(CELL("address",S32),"$","")&" - indicates the estimated Termination Payment on Termination Date." -> Cell S32 - indicates the estimated Termination Payment on Termination Date.
A101: //End

Sheet Road_TP_DBFOT_Workings (hidden)
A1: Workings
F2: Inputs | G2: Inputs from other sheets
F3: Calculation | G3: Major Calculation
F4: Inputs | G4: Manual Inputs
F5: Inputs | G5: Hardcoded Values
A7: Inputs
C9: Dep Calc for % Reduction per Month | E9: 0.0042 | F9: % - Proposal, Article 48, Notes
C10: Insurance Claim Limit | E10: 0.8 | F10: % - Proposal, Article 34, Notes
A13: GENERATION OF NORMS ON ADJUSTED EQUITY (AS SHOWN ON DASHBOARD)
C15: Termination Period
D17: Termination Date | F17: =Road_TP_DBFOT_Dashboard!S47 -> 2020-02-20 | G17: Date
D18: Months in a year | F18: =rngMthsYr -> 12 | G18: Months
D19: Post 4th Anniversary phase tenure (dummy) | F19: 99 | G19: Years
C21: Project Phases | D21: Start | E21: End | F21: Termination flag | G21: Norms | H21: Clause
C23: On or before COD | E23: =Road_TP_DBFOT_Dashboard!S46 -> 2017-10-01 | F23: =IF(AND($F$17>=D23,$F$17<=E23),1,0) -> 0 | G23: On or before COD, the Adjusted Equity shall be a sum equal to the Equity funded in Indian Rupees and expended on the Project, revised to the extent of one half of the variation in WPI occurring between the first day of the month of Appointed Date and the Reference Date | H23: Proposal, Article 48
C24: Between COD and 4th Anniversary | D24: =E23+1 -> 2017-10-02 | E24: =Road_TP_DBFOT_Dashboard!S56 -> 2021-09-30 | F24: =IF(AND($F$17>=D24,$F$17<=E24),1,0) -> 1 | G24: From COD and until the 4th (fourth) anniversary thereof, an amount equal to the Adjusted Equity as on COD shall be deemed to be the base (the “Base Adjusted Equity”) and the Adjusted Equity hereunder shall be a sum equal to the Base Adjusted Equity, revised at the commencement of each month following COD to the extent of variation in WPI occurring between COD and the Reference Date | H24: Proposal, Article 48
C25: Post 4th Anniversary | D25: =E24+1 -> 2021-10-01 | E25: =EOMONTH(D25,F19*F18) -> 2120-10-31 | F25: 0 | G25: after the 4th (fourth) anniversary of COD, the Adjusted Equity hereunder shall be a sum equal to the Base Adjusted Equity, reduced by 0.42% (zero point four two per cent) thereof at the commencement of each month following the 4th (fourth) anniversary of COD and the amount so arrived at shall be revised to the extent of variation in WPI occurring between COD and the Reference Date | H25: Proposal, Article 48
C27: =INDEX($C$23:$C$25,F27) -> Between COD and 4th Anniversary | F27: =MATCH(1,$F$23:$F$25,0) -> 2 | G27: =INDEX($G$23:$G$25,F27) -> From COD and until the 4th (fourth) anniversary thereof, an amount equal to the Adjusted Equity as on COD shall be deemed to be the base (the “Base Adjusted Equity”) and the Adjusted Equity hereunder shall be a sum equal to the Base Adjusted Equity, revised at the commencement of each month following COD to the extent of variation in WPI occurring between COD and the Reference Date
C29: Termination Period active in project phase | G29: =F27 -> 2 | H29: #
C30: Termination Period | G30: =C27 -> Between COD and 4th Anniversary | H30: Text
A32: Base Adjusted Equity at COD
C34: WPI at the Time of Appointed Date | E34: =E215 -> 109.7 | F34: #
C35: WPI at the Time of Commercial Operations Date (COD) | E35: =E217 -> 114.9 | F35: #
C36: WPI growth rate - Appointed date & COD | E36: =IF(E34=0,0,(E35-E34)/E34) -> 0.04740200547 | F36: % p.a.
C38: WPI growth rate - Appointed date & COD | E38: =E36 -> 0.04740200547 | F38: % p.a.
C39: Semis in a year | E39: =Settings!C31 -> 2 | F39: semis
C40: WPI growth rate - Appointed date & COD - semi | E40: =E38/E39 -> 0.02370100273 | F40: % p.semi
C42: WPI growth rate - Appointed date & COD - semi | E42: =E40 -> 0.02370100273 | F42: % p.semi
C43: Equity Infused | E43: =Road_TP_DBFOT_Dashboard!H37 -> 100 | F43: INR Crs
C44: Base Adjusted Equity at COD | E44: =E43*(1+E42) -> 102.3701003 | F44: INR Crs
A47: % Reduction per Month
C49: % Reduction per Month | E49: =E9 -> 0.0042 | F49: %
C51: No. of months from 4th Anniversary of COD
C53: Days in a month | E53: =rngMthDays -> 30 | F53: days
C54: Termination Date | E54: =Road_TP_DBFOT_Dashboard!S47 -> 2020-02-20 | F54: date
C55: 4th Anniversary from COD | E55: =Road_TP_DBFOT_Dashboard!S56 -> 2021-09-30 | F55: date
C56: No. of months from 4th Anniversary of COD | E56: =MAX(ROUND((E54 - E55) / E53, 0), 0) -> 0 | F56: months
A58: ADJUSTED EQUITY
C60: Adjusted Equity - On or before COD
C61: WPI at the Time of Appointed Date | E61: =E34 -> 109.7 | F61: #
C62: WPI at the Time of Termination Date | E62: =E216 -> 121.8 | F62: #
C63: WPI growth rate - Appointed & Termination date | E63: =(E62-E61)/E61 -> 0.1103008204 | F63: % p.a.
C65: WPI growth rate - Appointed & Termination date | E65: =E63 -> 0.1103008204 | F65: % p.a.
C66: Semis in a year | E66: =E39 -> 2 | F66: semis
C67: WPI growth rate - Appointed & Termination date - semi | E67: =E65/E66 -> 0.05515041021 | F67: % p.semi
C69: WPI growth rate - Appointed & Termination date - semi | E69: =E67 -> 0.05515041021 | F69: % p.semi
C70: Equity Infused | E70: =Road_TP_DBFOT_Dashboard!H37 -> 100 | F70: INR Crs
C71: Adjusted Equity - On or before COD | E71: =E70*(1+E69) -> 105.515041 | F71: INR Crs
C74: Adjusted Equity - Between COD and 4th Anniversary
C76: WPI at the Time of Termination Date | E76: =E62 -> 121.8 | F76: #
C77: WPI at the Time of Commercial Operations Date (COD) | E77: =E35 -> 114.9 | F77: #
C78: WPI growth rate - COD & 4th Anniversary | E78: =(E76-E77)/E77 -> 0.06005221932 | F78: % p.a.
C80: WPI growth rate - COD & 4th Anniversary | E80: =E78 -> 0.06005221932 | F80: % p.a.
C81: Base Adjusted Equity at COD | E81: =E44 -> 102.3701003 | F81: INR Crs
C82: Adjusted Equity - Between COD and 4th Anniversary | E82: =E81*(1+E80) -> 108.517652 | F82: INR Crs
C84: Adjusted Equity - Post 4th Anniversary
C86: % Reduction per Month | E86: =E49 -> 0.0042 | F86: %
C87: No. of months from 4th Anniversary of COD | E87: =E56 -> 0 | F87: months
C88: Total reduction | E88: =E86*E87 -> 0 | F88: %
C90: Base Adjusted Equity at COD | E90: =E44 -> 102.3701003 | F90: INR Crs
C91: Total reduction | E91: =E88 -> 0 | F91: %
C92: WPI growth rate - COD & 4th Anniversary | E92: =E78 -> 0.06005221932 | F92: % p.a.
C93: Adjusted Equity - Post 4th Anniversary | E93: =E90*(1-E91)*(1+E92) -> 108.517652 | F93: INR Crs
C95: Applicable Adjusted Equity
C97: Termination Period active in project phase | E97: =G29 -> 2 | F97: #
C98: Adjusted Equity - On or before COD | E98: =E71 -> 105.515041 | F98: INR Crs
C99: Adjusted Equity - Between COD and 4th Anniversary | E99: =E82 -> 108.517652 | F99: INR Crs
C100: Adjusted Equity - Post 4th Anniversary | E100: =E93 -> 108.517652 | F100: INR Crs
C101: Adjusted Equity | E101: =INDEX(E98:E100,E97) -> 108.517652 | F101: INR Crs
A104: GENERATION OF NORMS ON TERMINATION PAYMENT (AS SHOWN ON DASHBOARD)
D107: Selected Option number | H107: =Road_TP_DBFOT_Dashboard!H18 -> 7 | I107: #
D108: Termination Period active in project phase | H108: =G29 -> 2 | I108: #
C110: Reason | D110: % of Debt Due | E110: % of Adjusted Equity | F110: Insurance Cover switch | G110: Insurance Claim switch | H110: Norms | I110: Norms - Non Termination | J110: Clause
C111: Non-political FM Event | D111: 0.9 | E111: 0 | F111: 1 | G111: 0 | H111: If Termination is on account of a Non-Political Event, the Authority shall make a Termination Payment to the Concessionaire in an amount equal to 90% (ninety per cent) of the Debt Due less Insurance Cover. | I111: NA | J111: Proposal, Article 34 & 37
C112: Indirect Political FM Event | D112: 1 | E112: 1.1 | F112: 1 | G112: 1 | H112: If Termination is on account of an Indirect Political Event, the Authority shall make a Termination Payment to the Concessionaire in an amount equal to: (a) Debt Due less Insurance Cover; provided that if any insurance claims forming part of the Insurance Cover are not admitted and paid, then 80% (eighty per cent) of such unpaid claims shall be included in the computation of Debt Due; and (b) 110% (one hundred and ten per cent) of the Adjusted Equity. | I112: Upon occurrence of an Indirect Political Event, all Force Majeure Costs attributable to such Indirect Political Event, and not exceeding the Insurance Cover for such Indirect Political Event, shall be borne by the Concessionaire, and to the extent Force Majeure Costs exceed such Insurance Cover, one half of such excess amount shall be reimbursed by the Authority to the Concessionaire | J112: Proposal, Article 34 & 37
C113: Political FM Event | D113: 1 | E113: 1.5 | F113: 0 | G113: 0 | H113: Upon Termination on account of an Political FM Event, the Authority shall pay to the Concessionaire, by way of Termination Payment, an amount equal to: (a) Debt Due; and (b) 150% (one hundred and fifty per cent) of the Adjusted Equity. Provided that the Termination Payment shall not be less than an amount equal to the product of 6 (six) and the average monthly Fee actually realised 12 (twelve) months prior to the Transfer Date. | J113: Proposal, Article 34 & 37
C114: Authority Default | D114: 1 | E114: 1.5 | F114: 0 | G114: 0 | H114: Upon Termination on account of an Authority Default, the Authority shall pay to the Concessionaire, by way of Termination Payment, an amount equal to: (a) Debt Due; and (b) 150% (one hundred and fifty per cent) of the Adjusted Equity. Provided that the Termination Payment shall not be less than an amount equal to the product of 6 (six) and the average monthly Fee actually realised 12 (twelve) months prior to the Transfer Date | I114: NA | J114: Proposal, Article 34 & 37
C115: Concessionaire Default | D115: 0.9 | E115: 0 | F115: =IF(H108<>1,1,0) -> 1 | G115: =IF(H108<>1,1,0) -> 1 | H115: Upon Termination on account of a Concessionaire Default during the Operation Period, the Authority hall pay to the Concessionaire, by way of Termination Payment, an amount equal to 90% (ninety per cent) of the Debt Due less Insurance Cover; provided that if any insurance claims forming part of the Insurance over are not admitted and paid, then 80% (eighty per cent) of such unpaid claims shall be included in the computation of Debt Due. For the avoidance of doubt, the Concessionaire hereby acknowledges that no Termination Payment shall be due or payable on account of a Concessionaire Default occurring prior to Project Completion Date. | I115: NA | J115: Proposal, Article 34 & 37
C116: AD Pending | D116: 0 | E116: 0 | F116: 0 | G116: 0 | H116: 0% - For the avoidance of doubt, the Concessionaire hereby acknowledges that no Termination Payment shall be due or payable on account of a Concessionaire Default occurring prior to COD | I116: NA
C117: Underconstruction | D117: 0 | E117: 0 | F117: 0 | G117: 0 | H117: 0% - For the avoidance of doubt, the Concessionaire hereby acknowledges that no Termination Payment shall be due or payable on account of a Concessionaire Default occurring prior to COD | I117: NA
C120: =INDEX(C$111:C$117,$H$107) -> Underconstruction | D120: =INDEX(D$111:D$117,$H$107) -> 0 | E120: =INDEX(E$111:E$117,$H$107) -> 0 | F120: =INDEX(F$111:F$117,$H$107) -> 0 | G120: =INDEX(G$111:G$117,$H$107) -> 0 | H120: =INDEX(H$111:H$117,$H$107) -> 0% - For the avoidance of doubt, the Concessionaire hereby acknowledges that no Termination Payment shall be due or payable on account of a Concessionaire Default occurring prior to COD | I120: =INDEX(I$111:I$117,$H$107) -> NA
C124: Selected option | D124: =TRANSPOSE(C120:G120) -> Underconstruction | E124: text
C125: % of Debt Due | D125: 0 | E125: %
C126: % of Adjusted Equity | D126: 0 | E126: %
C127: Insurance Cover switch | D127: 0 | E127: 1=On; 0=Off
C128: Insurance Claim switch | D128: 0 | E128: 1=On; 0=Off
A130: Insurance
C132: Insurance Cover | E132: =Road_TP_DBFOT_Dashboard!H39 -> 100 | F132: INR Crs
C133: Insurance Cover switch | E133: =D127 -> 0 | F133: 1=On; 0=Off
C134: Insurance Cover (INR Crs) | E134: =E132*E133 -> 0 | F134: INR Crs
C136: Insurance Claim Limit | E136: =E10 -> 0.8 | F136: % - Proposal, Article 34, Notes
C137: Insurance Claims (not admitted and paid) | E137: =Road_TP_DBFOT_Dashboard!H40 -> 50 | F137: INR Crs
C138: Insurance Claim switch | E138: =D128 -> 0 | F138: 1=On; 0=Off
C139: Insurance Claims | E139: =E137*E138*E136 -> 0 | F139: INR Crs
A141: Termination Payment
C143: Insurance Cover | E143: =Road_TP_DBFOT_Dashboard!H39 -> 100 | F143: INR Crs
C144: Insurance Claims | E144: =E139 -> 0 | F144: INR Crs
C145: Unclaimed Insurance Cover | E145: =E143-E144 -> 100 | F145: INR Crs
C147: Debt Due | E147: =Road_TP_DBFOT_Dashboard!H38 -> 200 | F147: INR Crs
C148: Unclaimed Insurance Cover | E148: =E145 -> 100 | F148: INR Crs
C149: Net Debt Due | E149: =E147 -> 200 | F149: INR Crs
C151: % of Debt Due | E151: =D125 -> 0 | F151: %
C152: Net Debt Due | E152: =E149 -> 200 | F152: INR Crs
C153: Termination Payment - Debt | E153: =((E152*E151)-E148) -> -100 | F153: INR Crs
C155: % of Adjusted Equity | E155: =D126 -> 0 | F155: %
C156: Adjusted Equity | E156: =E101 -> 108.517652 | F156: INR Crs
C157: Termination Payment - Adjusted Equity | E157: =E156*E155 -> 0 | F157: INR Crs
C159: Termination Payment - Debt | E159: =E153 -> -100 | F159: INR Crs
C160: Termination Payment - Adjusted Equity | E160: =E157 -> 0 | F160: INR Crs
C161: Termination Payment | E161: =IF(H107=6, 0, IF(H107=7, 0, SUM(E159:E160))) -> 0 | F161: INR Crs
A164: WHOLESALE PRICE INDEX (WPI)
C166: WPI Inputs
C168: Source: GOI, Ministry of Commerce & Industry
C169: File Name: Annual Average of Monthly Index (Financial Year 2012-13 Onwards)
C170: Link: https://eaindustry.nic.in/download_data_1112.asp
C172: Do not delete the cells below
C173: Year | D173: WHOLESALE PRICE INDEX
C174: 2011 | D174: 100
C175: 2012 | D175: 106.9
C176: 2013 | D176: 112.5
C177: 2014 | D177: 113.9
C178: 2015 | D178: 109.7
C179: 2016 | D179: 111.6
C180: 2017 | D180: 114.9
C181: 2018 | D181: 119.8
C182: 2019 | D182: 121.8
C183: 2020 | D183: 123.4
C184: 2021 | D184: 139.4
C185: 2022 | D185: 0
C186: 2023 | D186: 0
C187: 2024 | D187: 0
C188: 2025 | D188: 0
C189: 2026 | D189: 0
C190: 2027 | D190: 0
C191: 2028 | D191: 0
C192: 2029 | D192: 0
C193: 2030 | D193: 0
C194: =C193+1 -> 2031 | D194: 0
C195: =C194+1 -> 2032 | D195: 0
C196: 2033 | D196: 0
C197: 2034 | D197: 0
C198: 2035 | D198: 0
C199: 2036 | D199: 0
C200: 2037 | D200: 0
C201: 2038 | D201: 0
C202: 2039 | D202: 0
C203: 2040 | D203: 0
C205: Appointed Date | E205: =Road_TP_DBFOT_Dashboard!S44 -> 2015-04-01 | F205: date
C206: Termination Date | E206: =Road_TP_DBFOT_Dashboard!S47 -> 2020-02-20 | F206: date
C207: Commercial Operations Date (COD) | E207: =Road_TP_DBFOT_Dashboard!S46 -> 2017-10-01 | F207: date
C209: Financial year end month number | E209: =rngYrEnd -> 3 | F209: month #
C211: Appointed Date year | E211: =IF(MONTH(E205)>$E$209,YEAR(E205),YEAR(E205)-1) -> 2015 | F211: year
C212: Termination Date year | E212: =IF(MONTH(E206)>$E$209,YEAR(E206),YEAR(E206)-1) -> 2019 | F212: year
C213: Commercial Operations Date (COD) year | E213: 2017 | F213: year
C215: WPI at the Time of Appointed Date | E215: =_xlfn.XLOOKUP(E211,$C$174:$C$203,$D$174:$D$203,"NA") -> 109.7 | F215: #
C216: WPI at the Time of Termination Date | E216: =_xlfn.XLOOKUP(E212,$C$174:$C$203,$D$174:$D$203,"NA") -> 121.8 | F216: #
C217: WPI at the Time of Commercial Operations Date (COD) | E217: 114.9 | F217: #
A220: Graph Data
D222: Timeline Graph Data
D223: Project Days | E223: Days | F223: URN | G223: Sorted URN | H223: Project Days | I223: Days | J223: Dummy
D224: =Road_TP_DBFOT_Dashboard!M44 -> Appointed Date | E224: =Road_TP_DBFOT_Dashboard!S44 -> 2015-04-01 | F224: =E224&D224 -> 42095Appointed Date | G224: =_xlfn._xlws.SORT(F224:F228,1,1) -> 42095Appointed Date | H224: =INDEX($D$224:$D$228,MATCH(G224,$F$224:$F$228,0)) -> Appointed Date | I224: =INDEX($E$224:$E$228,MATCH(G224,$F$224:$F$228,0)) -> 2015-04-01 | J224: 1
D225: =Road_TP_DBFOT_Dashboard!M45 -> Date of Construction Completion | E225: =Road_TP_DBFOT_Dashboard!S45 -> 2017-09-30 | F225: =E225&D225 -> 43008Date of Construction Completion | G225: 43008Date of Construction Completion | H225: =INDEX($D$224:$D$228,MATCH(G225,$F$224:$F$228,0)) -> Date of Construction Completion | I225: =INDEX($E$224:$E$228,MATCH(G225,$F$224:$F$228,0)) -> 2017-09-30 | J225: 1
D226: =Road_TP_DBFOT_Dashboard!M46 -> Commercial Operations Date (COD) | E226: =Road_TP_DBFOT_Dashboard!S46 -> 2017-10-01 | F226: 43009Commercial Operations Date (COD) | G226: 43009Commercial Operations Date (COD) | H226: Commercial Operations Date (COD) | I226: 2017-10-01 | J226: 1
D227: =Road_TP_DBFOT_Dashboard!M47 -> Termination Date | E227: =Road_TP_DBFOT_Dashboard!S47 -> 2020-02-20 | F227: 43881Termination Date | G227: 43881Termination Date | H227: Termination Date | I227: 2020-02-20 | J227: 1
D228: =Road_TP_DBFOT_Dashboard!M56 -> 4th Anniversary from COD | E228: =Road_TP_DBFOT_Dashboard!S56 -> 2021-09-30 | F228: 444694th Anniversary from COD | G228: 444694th Anniversary from COD | H228: 4th Anniversary from COD | I228: 2021-09-30 | J228: 1
D231: Pie Chart Data
D232: Particulars | E232: Amount
D233: =Road_TP_DBFOT_Dashboard!B38 -> Debt Due | E233: =Road_TP_DBFOT_Dashboard!H38 -> 200
D234: =Road_TP_DBFOT_Dashboard!B37 -> Equity Infused | E234: =Road_TP_DBFOT_Dashboard!H37 -> 100
D235: =Road_TP_DBFOT_Dashboard!M32 -> Termination Payment | E235: =Road_TP_DBFOT_Dashboard!S32 -> 0
A240: // End

Sheet Road_VT_DBFOT_Dashboard (hidden)
A1: Dashboard
A2: Key Inputs | L2: Key Outputs
C6: Change in CP / Revenue Share
C11: You selected | E11: 3
B16: Project Particulars
B18: Construction Period (months) | H18: 30
B19: Concession Period (yrs) | H19: 30
B20: Last Capex Payment Month | H20: 30 | M20: Result
B21: Appointed Date | H21: 2015-04-01 | M21: Compensation for competing roads | S21: =IF(E11=3,(H22-H23)*((ROUND((TODAY()-$H$24)/rngMthDays,0)))*0.5%,0) -> 0
B22: Average Daily Realisable Fees | M22: =IF( S22= H19, "Concession Period (yrs)", "Revised Concession Period (yrs)" ) -> Revised Concession Period (yrs) | S22: =Road_VT_DBFOT_Workings!E50 -> 33.3
B23: Projected Fees | M23: Revenue Share Date | S23: =Road_VT_DBFOT_Workings!E67 -> NA
B24: Date when competing road achived COD | M24: Revenue Share | S24: =Road_VT_DBFOT_Workings!E56 -> NA
B25: =HYPERLINK("#'" & RIGHT(CELL("FILENAME", Road_VT_DBFOT_Workings!$A$90), LEN(CELL("FILENAME", Road_VT_DBFOT_Workings!$A$90)) - SEARCH("]", CELL("FILENAME", Road_VT_DBFOT_Workings!$A$90))) & "'!" & MID(CELL("address", Road_VT_DBFOT_Workings!$A$90), SEARCH("!", CELL("address", Road_VT_DBFOT_Workings!$A$90)) + 1, LEN(CELL("address", Road_VT_DBFOT_Workings!$A$90)) - SEARCH("!", CELL("address", Road_VT_DBFOT_Workings!$A$90))), "Click here to update Norms.") -> Click here to update Norms. | M25: Selected Option | S25: =IF(E11=1,"Revenue",IF(E11=2,"CP","Compensation for Competing Roads")) -> Compensation for Competing Roads
B26: =HYPERLINK("#'" & RIGHT(CELL("FILENAME", Road_VT_DBFOT_Workings!$A$8), LEN(CELL("FILENAME", Road_VT_DBFOT_Workings!$A$8)) - SEARCH("]", CELL("FILENAME", Road_VT_DBFOT_Workings!$A$8))) & "'!" & MID(CELL("address", Road_VT_DBFOT_Workings!$A$8), SEARCH("!", CELL("address", Road_VT_DBFOT_Workings!$A$8)) + 1, LEN(CELL("address", Road_VT_DBFOT_Workings!$A$8)) - SEARCH("!", CELL("address", Road_VT_DBFOT_Workings!$A$8))), "Click here to update Inputs") -> Click here to update Inputs
M27: Increase / Decrease in CP
B28: Traffic Details
M29: % Difference | S29: =IF(H31=0,0,(H32-H31)/H31) -> -0.1176470588
B30: Target Date | H30: 2022-10-01 | M30: % Increase / Decrease in CP | S30: =Road_VT_DBFOT_Workings!E28 -> 0.11
B31: Target PCUs | H31: 17000 | M31: % Incr / Decr (subjected to ceilings) | S31: =Road_VT_DBFOT_Workings!E33 -> 0.11
B32: Actual Traffic on Target Date | H32: 15000 | M32: Increase / Decrease in CP (yrs) | S32: =S31*H19 -> 3.3
M34: Key Dates
B36: Project Timeline | M36: Appointed Date | S36: =H21 -> 2015-04-01
M37: Date of Construction Completion | S37: =EDATE(S36,H18)-1 -> 2017-09-30
M38: Commercial Operations Date (COD) | S38: =S37+1 -> 2017-10-01
M39: Termination Date | S39: =EDATE(S36,S22*rngMthsYr)-1 -> 2048-06-30
M40: First Financial Year Ending | S40: =DATE(IF(MONTH(S36)>rngYrEnd,YEAR(S36)+1,YEAR(S36)),rngYrEnd,rngYrEndDay) -> 2016-03-31
M41: No. of months in first Financial Year | S41: =ROUND((S40-S36)/rngMthDays,0) -> 12
M42: Construction Ending Financial Year | S42: =DATE(IF(MONTH(S37)>rngYrEnd,YEAR(S37)+1,YEAR(S37)),rngYrEnd,rngYrEndDay) -> 2018-03-31
M43: Construction Ending Financial Year No. | S43: =YEAR(S42)-YEAR(S40)+1 -> 3
M44: No. of operational months in Cons Ending FY | S44: =ROUND((S42-S37)/rngMthDays,0) -> 6
M45: Last Financial Year Ending | S45: =DATE(IF(MONTH(S39)>rngYrEnd,YEAR(S39)+1,YEAR(S39)),rngYrEnd,rngYrEndDay) -> 2049-03-31
M46: Last Financial Year Ending No. | S46: =YEAR(S45)-YEAR(S40)+1 -> 34
M47: No. of months in last Financial Year | S47: =rngMthsYr-ROUND((S45-S39)/rngMthDays,0) -> 3
A49: Norms
B51: Norms on Variation in Traffic | L51: Norms on Premium
C52: =Road_VT_DBFOT_Workings!I120 -> For every 1.00% shortage of actual average traffic from target PCUs, the CP is reduced by a multiple of 1.00% with an upper ceiling of 20.00% | M52: =Road_VT_DBFOT_Workings!D116 -> Subject to the provisions of Clause 35.6, in the event that an Additional Tollway or a Competing Road, as the case may be, is opened to traffic in breach of this Agreement, the Authority shall pay to the Concessionaire, for each day of breach, compensation in a sum equal to the difference between the average daily Realisable Fee and the projected daily Fee (the "Projected Fee") until the breach is cured. The Projected Fee hereunder shall be an amount equal to the Average Daily Fee, increased at the close of every month by 0.5% (zero point five per cent) thereof and revised in accordance with Clawe 27.2. For the avoidance of doubt, the Average Daily Fee for the purposes of this Clause shall be the amount so determined in respect of the Accounting Year or period, as the case may be, occurring prior to such opening or operation of an Additional Tollway or a Competing Road, as the case may be.
A57: Instructions
L60: Legend
B61: General | E61: Project details need to be entered in the yellow marked cells.
N63: Input Cell
B64: Project Particulars | E64: ="Cell "&SUBSTITUTE(CELL("address",H18),"$","")&" - Construction Period" -> Cell H18 - Construction Period | N64: Results
E65: ="Cell "&SUBSTITUTE(CELL("address",H19),"$","")&" - Concession Period" -> Cell H19 - Concession Period | M65: Units | N65: Amount are in Rs. Cr
E66: ="Cell "&SUBSTITUTE(CELL("address",H20),"$","")&" - the month in which the last capex was/ has to be released." -> Cell H20 - the month in which the last capex was/ has to be released.
B68: Traffic Details | E68: ="Cell "&SUBSTITUTE(CELL("address",H30),"$","")&" - the target date as mentioned in the Concession Agreement" -> Cell H30 - the target date as mentioned in the Concession Agreement
E69: ="Cell "&SUBSTITUTE(CELL("address",H31),"$","")&" - the target PCUs as mentioned in the Concession Agreement" -> Cell H31 - the target PCUs as mentioned in the Concession Agreement
E70: ="Cell "&SUBSTITUTE(CELL("address",H32),"$","")&" - actual traffic at the target date as per Traffic Survey" -> Cell H32 - actual traffic at the target date as per Traffic Survey
E71: ="Cell "&SUBSTITUTE(CELL("address",S22),"$","")&" - revised concession period in years." -> Cell S22 - revised concession period in years.
B73: Increase/Decrease in CP Details | E73: ="Cell "&SUBSTITUTE(CELL("address",S29),"$","")&" - % Difference" -> Cell S29 - % Difference
E74: ="Cell "&SUBSTITUTE(CELL("address",S30),"$","")&" - % Increase/ Decrease in CP" -> Cell S30 - % Increase/ Decrease in CP
E75: ="Cell "&SUBSTITUTE(CELL("address",S31),"$","")&" - % Increase/ Decrease subject to limits" -> Cell S31 - % Increase/ Decrease subject to limits
E76: ="Cell "&SUBSTITUTE(CELL("address",S32),"$","")&" - % Increase/ Decrease in CP years" -> Cell S32 - % Increase/ Decrease in CP years
B78: Key Dates | E78: ="Cell "&SUBSTITUTE(CELL("address",H21),"$","")&" - Appointed Date of the Project" -> Cell H21 - Appointed Date of the Project
E79: ="Cell "&SUBSTITUTE(CELL("address",S39),"$","")&" - Termination Date" -> Cell S39 - Termination Date
